Effective Date,Department,Supplier Name,Payment Date,Amount **,Purpose of Spend,Merchant Category,Card Transaction
Statement 18/10/2016 - 17/11/2016,Adults and Communities,Aldi,01/11/2016,40.39,Provisions - General,"Grocery Stores, Supermarkets",GPC
Statement 18/10/2016 - 17/11/2016,Adults and Communities,Amazon Prime,09/11/2016,7.99,Other Expenditure - General,Continuity/Subscription Merchants,GPC
Statement 18/10/2016 - 17/11/2016,Adults and Communities,"Amazon Svcs Europe,sar",23/10/2016,3.95,Books - General,Book Stores,GPC
Statement 18/10/2016 - 17/11/2016,Adults and Communities,"Amazon Svcs Europe,sar",09/11/2016,4.40,Books - General,Book Stores,GPC
Statement 18/10/2016 - 17/11/2016,Adults and Communities,Amazon UK Marketplace,19/10/2016,10.75,Books - General,Book Stores,GPC
Statement 18/10/2016 - 17/11/2016,Adults and Communities,Amazon UK Marketplace,21/10/2016,13.66,Books - General,Book Stores,GPC
Statement 18/10/2016 - 17/11/2016,Adults and Communities,Amazon UK Marketplace,22/10/2016,5.99,Books - General,Book Stores,GPC
Statement 18/10/2016 - 17/11/2016,Adults and Communities,Amazon UK Marketplace,27/10/2016,18.51,Books - General,Book Stores,GPC
Statement 18/10/2016 - 17/11/2016,Adults and Communities,Amazon UK Marketplace,28/10/2016,1.99,Books - General,Book Stores,GPC
Statement 18/10/2016 - 17/11/2016,Adults and Communities,Amazon UK Marketplace,28/10/2016,3.74,Books - General,Book Stores,GPC
Statement 18/10/2016 - 17/11/2016,Adults and Communities,Amazon UK Marketplace,28/10/2016,4.54,Books - General,Book Stores,GPC
Statement 18/10/2016 - 17/11/2016,Adults and Communities,Amazon UK Marketplace,28/10/2016,0.81,Books - General,Book Stores,GPC
Statement 18/10/2016 - 17/11/2016,Adults and Communities,Amazon UK Marketplace,30/10/2016,3.96,Books - General,Book Stores,GPC
Statement 18/10/2016 - 17/11/2016,Adults and Communities,Amazon UK Marketplace,01/11/2016,25.34,Books - General,Book Stores,GPC
Statement 18/10/2016 - 17/11/2016,Adults and Communities,Amazon UK Marketplace,08/11/2016,3.44,Books - General,Book Stores,GPC
Statement 18/10/2016 - 17/11/2016,Adults and Communities,Amazon UK Marketplace,09/11/2016,11.18,Books - General,Book Stores,GPC
Statement 18/10/2016 - 17/11/2016,Adults and Communities,Amazon UK Marketplace,16/11/2016,4.06,Books - General,Book Stores,GPC
Statement 18/10/2016 - 17/11/2016,Adults and Communities,Amazon UK Marketplace,17/10/2016,32.16,Educational Visits - General,Miscellaneous and Specialty Retail Stores,GPC
Statement 18/10/2016 - 17/11/2016,Adults and Communities,Amazon UK Marketplace,18/10/2016,11.90,Educational Visits - General,Book Stores,GPC
Statement 18/10/2016 - 17/11/2016,Adults and Communities,Amazon UK Marketplace,18/10/2016,1.66,Educational Visits - General,Miscellaneous and Specialty Retail Stores,GPC
Statement 18/10/2016 - 17/11/2016,Adults and Communities,Amazon UK Marketplace,19/10/2016,21.98,Educational Visits - General,Book Stores,GPC
Statement 18/10/2016 - 17/11/2016,Adults and Communities,Amazon UK Marketplace,25/10/2016,21.89,General Equipment - General,Miscellaneous and Specialty Retail Stores,GPC
Statement 18/10/2016 - 17/11/2016,Adults and Communities,Amazon UK Marketplace,29/10/2016,27.59,General Equipment - General,Miscellaneous and Specialty Retail Stores,GPC
Statement 18/10/2016 - 17/11/2016,Adults and Communities,Amazon UK Marketplace,30/10/2016,13.98,General Equipment - General,Miscellaneous and Specialty Retail Stores,GPC
Statement 18/10/2016 - 17/11/2016,Adults and Communities,Amazon UK Marketplace,30/10/2016,33.74,General Equipment - General,Miscellaneous and Specialty Retail Stores,GPC
Statement 18/10/2016 - 17/11/2016,Adults and Communities,Amazon UK Marketplace,31/10/2016,14.79,General Equipment - General,Miscellaneous and Specialty Retail Stores,GPC
Statement 18/10/2016 - 17/11/2016,Adults and Communities,Amazon UK Marketplace,04/11/2016,65.99,General Equipment - General,Miscellaneous and Specialty Retail Stores,GPC
Statement 18/10/2016 - 17/11/2016,Adults and Communities,Amazon UK Marketplace,10/11/2016,220.66,General Equipment - General,Miscellaneous and Specialty Retail Stores,GPC
Statement 18/10/2016 - 17/11/2016,Adults and Communities,Amazon UK Marketplace,17/10/2016,6.99,Materials - General,Miscellaneous and Specialty Retail Stores,GPC
Statement 18/10/2016 - 17/11/2016,Adults and Communities,Amazon UK Marketplace,17/10/2016,13.95,Materials - General,Miscellaneous and Specialty Retail Stores,GPC
Statement 18/10/2016 - 17/11/2016,Adults and Communities,Amazon UK Marketplace,17/10/2016,8.98,Materials - General,Miscellaneous and Specialty Retail Stores,GPC
Statement 18/10/2016 - 17/11/2016,Adults and Communities,Amazon UK Marketplace,19/10/2016,11.62,Materials - General,Book Stores,GPC
Statement 18/10/2016 - 17/11/2016,Adults and Communities,Amazon UK Marketplace,22/10/2016,3.49,Materials - General,Miscellaneous and Specialty Retail Stores,GPC
Statement 18/10/2016 - 17/11/2016,Adults and Communities,Amazon UK Marketplace,24/10/2016,8.70,Materials - General,Miscellaneous and Specialty Retail Stores,GPC
Statement 18/10/2016 - 17/11/2016,Adults and Communities,Amazon UK Marketplace,25/10/2016,22.11,Materials - General,Miscellaneous and Specialty Retail Stores,GPC
Statement 18/10/2016 - 17/11/2016,Adults and Communities,Amazon UK Marketplace,27/10/2016,2.80,Materials - General,Miscellaneous and Specialty Retail Stores,GPC
Statement 18/10/2016 - 17/11/2016,Adults and Communities,Amazon UK Marketplace,27/10/2016,1.99,Materials - General,Miscellaneous and Specialty Retail Stores,GPC
Statement 18/10/2016 - 17/11/2016,Adults and Communities,Amazon UK Marketplace,27/10/2016,0.99,Materials - General,Miscellaneous and Specialty Retail Stores,GPC
Statement 18/10/2016 - 17/11/2016,Adults and Communities,Amazon UK Marketplace,28/10/2016,3.37,Materials - General,Miscellaneous and Specialty Retail Stores,GPC
Statement 18/10/2016 - 17/11/2016,Adults and Communities,Amazon UK Marketplace,28/10/2016,2.98,Materials - General,Miscellaneous and Specialty Retail Stores,GPC
Statement 18/10/2016 - 17/11/2016,Adults and Communities,Amazon UK Marketplace,28/10/2016,2.64,Materials - General,Miscellaneous and Specialty Retail Stores,GPC
Statement 18/10/2016 - 17/11/2016,Adults and Communities,Amazon UK Marketplace,30/10/2016,2.99,Materials - General,Miscellaneous and Specialty Retail Stores,GPC
Statement 18/10/2016 - 17/11/2016,Adults and Communities,Amazon UK Marketplace,30/10/2016,2.39,Materials - General,Miscellaneous and Specialty Retail Stores,GPC
Statement 18/10/2016 - 17/11/2016,Adults and Communities,Amazon UK Marketplace,02/11/2016,-28.28,Materials - General,Miscellaneous and Specialty Retail Stores,GPC
Statement 18/10/2016 - 17/11/2016,Adults and Communities,Amazon UK Marketplace,07/11/2016,10.79,Materials - General,Miscellaneous and Specialty Retail Stores,GPC
Statement 18/10/2016 - 17/11/2016,Adults and Communities,Amazon UK Marketplace,07/11/2016,5.20,Materials - General,Miscellaneous and Specialty Retail Stores,GPC
Statement 18/10/2016 - 17/11/2016,Adults and Communities,Amazon UK Marketplace,08/11/2016,6.28,Materials - General,Miscellaneous and Specialty Retail Stores,GPC
Statement 18/10/2016 - 17/11/2016,Adults and Communities,Amazon UK Marketplace,08/11/2016,14.79,Materials - General,Miscellaneous and Specialty Retail Stores,GPC
Statement 18/10/2016 - 17/11/2016,Adults and Communities,Amazon UK Marketplace,12/11/2016,24.99,Materials - General,Miscellaneous and Specialty Retail Stores,GPC
Statement 18/10/2016 - 17/11/2016,Adults and Communities,Amazon UK Marketplace,15/11/2016,4.18,Materials - General,Miscellaneous and Specialty Retail Stores,GPC
Statement 18/10/2016 - 17/11/2016,Adults and Communities,Amazon UK Marketplace,15/11/2016,16.94,Materials - General,Miscellaneous and Specialty Retail Stores,GPC
Statement 18/10/2016 - 17/11/2016,Adults and Communities,Amazon UK Marketplace,16/11/2016,4.00,Materials - General,Miscellaneous and Specialty Retail Stores,GPC
Statement 18/10/2016 - 17/11/2016,Adults and Communities,Amazon UK Marketplace,30/10/2016,18.98,Operational Equipment - General,Miscellaneous and Specialty Retail Stores,GPC
Statement 18/10/2016 - 17/11/2016,Adults and Communities,Amazon UK Marketplace,11/11/2016,1.54,Other Equipment & Materials - General,Book Stores,GPC
Statement 18/10/2016 - 17/11/2016,Adults and Communities,Amazon UK Marketplace,11/11/2016,19.57,Other Equipment & Materials - General,Book Stores,GPC
Statement 18/10/2016 - 17/11/2016,Adults and Communities,Amazon UK Marketplace,11/11/2016,6.84,Other Equipment & Materials - General,Miscellaneous and Specialty Retail Stores,GPC
Statement 18/10/2016 - 17/11/2016,Adults and Communities,Amazon UK Marketplace,11/11/2016,4.86,Other Equipment & Materials - General,Miscellaneous and Specialty Retail Stores,GPC
Statement 18/10/2016 - 17/11/2016,Adults and Communities,Amazon UK Marketplace,14/11/2016,16.64,Other Equipment & Materials - General,Book Stores,GPC
Statement 18/10/2016 - 17/11/2016,Adults and Communities,Amazon UK Marketplace,14/11/2016,24.73,Other Equipment & Materials - General,Miscellaneous and Specialty Retail Stores,GPC
Statement 18/10/2016 - 17/11/2016,Adults and Communities,Amazon UK Marketplace,15/11/2016,7.99,Other Equipment & Materials - General,Book Stores,GPC
Statement 18/10/2016 - 17/11/2016,Adults and Communities,Amazon UK Marketplace,15/11/2016,7.05,Other Equipment & Materials - General,Miscellaneous and Specialty Retail Stores,GPC
Statement 18/10/2016 - 17/11/2016,Adults and Communities,Amazon UK Marketplace,27/10/2016,4.97,Other Expenditure - General,Miscellaneous and Specialty Retail Stores,GPC
Statement 18/10/2016 - 17/11/2016,Adults and Communities,Amazon UK Marketplace,01/11/2016,32.97,Other Expenditure - General,Miscellaneous and Specialty Retail Stores,GPC
Statement 18/10/2016 - 17/11/2016,Adults and Communities,Amazon UK Marketplace,07/11/2016,9.99,Other Expenditure - General,Miscellaneous and Specialty Retail Stores,GPC
Statement 18/10/2016 - 17/11/2016,Adults and Communities,Amazon UK Marketplace,08/11/2016,23.32,Other Expenditure - General,Miscellaneous and Specialty Retail Stores,GPC
Statement 18/10/2016 - 17/11/2016,Adults and Communities,Amazon UK Marketplace,08/11/2016,20.62,Other Expenditure - General,Miscellaneous and Specialty Retail Stores,GPC
Statement 18/10/2016 - 17/11/2016,Adults and Communities,Amazon UK Marketplace,08/11/2016,14.60,Other Expenditure - General,Miscellaneous and Specialty Retail Stores,GPC
Statement 18/10/2016 - 17/11/2016,Adults and Communities,Amazon UK Marketplace,08/11/2016,10.82,Other Expenditure - General,Miscellaneous and Specialty Retail Stores,GPC
Statement 18/10/2016 - 17/11/2016,Adults and Communities,Amazon UK Marketplace,10/11/2016,76.20,Other Services - General,Book Stores,GPC
Statement 18/10/2016 - 17/11/2016,Adults and Communities,Amazon UK Marketplace,24/10/2016,26.47,Petrol/Oil/Tyres/Spares - General,Miscellaneous and Specialty Retail Stores,GPC
Statement 18/10/2016 - 17/11/2016,Adults and Communities,Amazon UK Marketplace,18/10/2016,-32.99,Schools Agency staff - Support Staff,Miscellaneous and Specialty Retail Stores,GPC
Statement 18/10/2016 - 17/11/2016,Adults and Communities,Amazon UK Marketplace,19/10/2016,8.95,Schools Agency staff - Support Staff,Miscellaneous and Specialty Retail Stores,GPC
Statement 18/10/2016 - 17/11/2016,Adults and Communities,Amazon UK Marketplace,18/10/2016,8.50,Stationery - General,Miscellaneous and Specialty Retail Stores,GPC
Statement 18/10/2016 - 17/11/2016,Adults and Communities,Amazon UK Marketplace,27/10/2016,36.49,Stationery - General,Miscellaneous and Specialty Retail Stores,GPC
Statement 18/10/2016 - 17/11/2016,Adults and Communities,Amazon UK Marketplace,02/11/2016,13.69,Stationery - General,Miscellaneous and Specialty Retail Stores,GPC
Statement 18/10/2016 - 17/11/2016,Adults and Communities,Amazon UK Marketplace,03/11/2016,15.36,Stationery - General,Book Stores,GPC
Statement 18/10/2016 - 17/11/2016,Adults and Communities,Amazon UK Retail,18/10/2016,8.00,Materials - General,Direct Marketers - Other,GPC
Statement 18/10/2016 - 17/11/2016,Adults and Communities,Amazon UK Retail,18/10/2016,8.99,Other Expenditure - General,Direct Marketers - Other,GPC
Statement 18/10/2016 - 17/11/2016,Adults and Communities,Amazon UK Retail,18/10/2016,18.78,Other Expenditure - General,Direct Marketers - Other,GPC
Statement 18/10/2016 - 17/11/2016,Adults and Communities,Amazon UK Retail,30/10/2016,48.24,Other Expenditure - General,Direct Marketers - Other,GPC
Statement 18/10/2016 - 17/11/2016,Adults and Communities,Amazon UK Retail,05/11/2016,9.15,Other Expenditure - General,Direct Marketers - Other,GPC
Statement 18/10/2016 - 17/11/2016,Adults and Communities,Amazon UK Retail,07/11/2016,6.99,Other Expenditure - General,Direct Marketers - Other,GPC
Statement 18/10/2016 - 17/11/2016,Adults and Communities,Amazon UK Retail,07/11/2016,56.41,Other Expenditure - General,Direct Marketers - Other,GPC
Statement 18/10/2016 - 17/11/2016,Adults and Communities,Amazon UK Retail,07/11/2016,93.57,Other Expenditure - General,Direct Marketers - Other,GPC
Statement 18/10/2016 - 17/11/2016,Adults and Communities,Amazon UK Retail,09/11/2016,5.72,Other Expenditure - General,Direct Marketers - Other,GPC
Statement 18/10/2016 - 17/11/2016,Adults and Communities,Amazon UK Retail,09/11/2016,28.81,Other Expenditure - General,Direct Marketers - Other,GPC
Statement 18/10/2016 - 17/11/2016,Adults and Communities,Amazon UK Retail,17/10/2016,10.59,Stationery - General,Direct Marketers - Other,GPC
Statement 18/10/2016 - 17/11/2016,Adults and Communities,Amazon UK Retail,27/10/2016,23.30,Stationery - General,Direct Marketers - Other,GPC
Statement 18/10/2016 - 17/11/2016,Adults and Communities,Amazon UK Retail Amazon.C,10/11/2016,18.46,General Equipment - General,Miscellaneous and Specialty Retail Stores,GPC
Statement 18/10/2016 - 17/11/2016,Adults and Communities,Amazon UK Retail Amazon.C,16/10/2016,8.99,Materials - General,Miscellaneous and Specialty Retail Stores,GPC
Statement 18/10/2016 - 17/11/2016,Adults and Communities,Amazon UK Retail Amazon.C,27/10/2016,14.88,Materials - General,Miscellaneous and Specialty Retail Stores,GPC
Statement 18/10/2016 - 17/11/2016,Adults and Communities,Amazon UK Retail Amazon.C,27/10/2016,14.88,Materials - General,Miscellaneous and Specialty Retail Stores,GPC
Statement 18/10/2016 - 17/11/2016,Adults and Communities,Amazon UK Retail Amazon.C,29/10/2016,60.26,Materials - General,Miscellaneous and Specialty Retail Stores,GPC
Statement 18/10/2016 - 17/11/2016,Adults and Communities,Amazon UK Retail Amazon.C,10/11/2016,9.99,Materials - General,Miscellaneous and Specialty Retail Stores,GPC
Statement 18/10/2016 - 17/11/2016,Adults and Communities,Amazon UK Retail Amazon.C,10/11/2016,92.77,Materials - General,Miscellaneous and Specialty Retail Stores,GPC
Statement 18/10/2016 - 17/11/2016,Adults and Communities,Amazon UK Retail Amazon.C,12/11/2016,16.14,Materials - General,Miscellaneous and Specialty Retail Stores,GPC
Statement 18/10/2016 - 17/11/2016,Adults and Communities,Amazon UK Retail Amazon.C,12/11/2016,10.93,Materials - General,Miscellaneous and Specialty Retail Stores,GPC
Statement 18/10/2016 - 17/11/2016,Adults and Communities,Amazon UK Retail Amazon.C,05/11/2016,8.61,Other Equipment & Materials - General,Miscellaneous and Specialty Retail Stores,GPC
Statement 18/10/2016 - 17/11/2016,Adults and Communities,Amazon UK Retail Amazon.C,05/11/2016,34.95,Other Expenditure - General,Miscellaneous and Specialty Retail Stores,GPC
Statement 18/10/2016 - 17/11/2016,Adults and Communities,Amazon UK Retail Amazon.C,27/10/2016,31.66,Protective Clothing & Uniforms - General,Miscellaneous and Specialty Retail Stores,GPC
Statement 18/10/2016 - 17/11/2016,Adults and Communities,Amazon UK Retail Amazon.C,26/10/2016,6.66,Stationery - General,Miscellaneous and Specialty Retail Stores,GPC
Statement 18/10/2016 - 17/11/2016,Adults and Communities,Amazon UK Retail Amazon.C,07/11/2016,12.45,Stationery - General,Miscellaneous and Specialty Retail Stores,GPC
Statement 18/10/2016 - 17/11/2016,Adults and Communities,Amz*isubscribe Ltd,13/11/2016,39.00,Communications Equipment - General,Computer Network/Information Services,GPC
Statement 18/10/2016 - 17/11/2016,Adults and Communities,Amz*party Delights L,16/11/2016,68.90,Other Equipment & Materials - General,Computer Network/Information Services,GPC
Statement 18/10/2016 - 17/11/2016,Adults and Communities,Ao Retail Limited,17/10/2016,45.83,General Equipment - General,Household Appliance Stores,GPC
Statement 18/10/2016 - 17/11/2016,Adults and Communities,Argos Ltd,28/10/2016,79.98,Aids & Adaptations - Minor Adaptations,Discount Stores,GPC
Statement 18/10/2016 - 17/11/2016,Adults and Communities,Argos Ltd,26/10/2016,16.66,General Equipment - General,Discount Stores,GPC
Statement 18/10/2016 - 17/11/2016,Adults and Communities,Argos Ltd,03/11/2016,41.99,General Equipment - General,Discount Stores,GPC
Statement 18/10/2016 - 17/11/2016,Adults and Communities,Argos Ltd,11/11/2016,87.98,General Equipment - General,Discount Stores,GPC
Statement 18/10/2016 - 17/11/2016,Adults and Communities,Argos Ltd,11/11/2016,24.99,General Equipment - General,Discount Stores,GPC
Statement 18/10/2016 - 17/11/2016,Adults and Communities,Argos Ltd,03/11/2016,-23.32,Other Expenditure - General,Discount Stores,GPC
Statement 18/10/2016 - 17/11/2016,Adults and Communities,Asda Stores,19/10/2016,30.70,Materials - General,"Grocery Stores, Supermarkets",GPC
Statement 18/10/2016 - 17/11/2016,Adults and Communities,Asda Stores,27/10/2016,5.50,Materials - General,"Grocery Stores, Supermarkets",GPC
Statement 18/10/2016 - 17/11/2016,Adults and Communities,Asda Stores 4477,28/10/2016,2.80,Materials - General,"Grocery Stores, Supermarkets",GPC
Statement 18/10/2016 - 17/11/2016,Adults and Communities,Asda Stores 4477,04/11/2016,8.45,Materials - General,"Grocery Stores, Supermarkets",GPC
Statement 18/10/2016 - 17/11/2016,Adults and Communities,Asda Stores 4477,08/11/2016,2.00,Materials - General,"Grocery Stores, Supermarkets",GPC
Statement 18/10/2016 - 17/11/2016,Adults and Communities,Asda Stores 4477,09/11/2016,2.17,Other Equipment & Materials - General,"Grocery Stores, Supermarkets",GPC
Statement 18/10/2016 - 17/11/2016,Adults and Communities,Asda Superstore,04/11/2016,98.39,Provisions - General,"Grocery Stores, Supermarkets",GPC
Statement 18/10/2016 - 17/11/2016,Adults and Communities,Asda Superstore,14/11/2016,122.00,Provisions - General,"Grocery Stores, Supermarkets",GPC
Statement 18/10/2016 - 17/11/2016,Adults and Communities,Asda Superstore,15/11/2016,97.90,Provisions - General,"Grocery Stores, Supermarkets",GPC
Statement 18/10/2016 - 17/11/2016,Adults and Communities,Asda Superstore 04030,02/11/2016,6.50,Consultants & Specialists - General,"Grocery Stores, Supermarkets",GPC
Statement 18/10/2016 - 17/11/2016,Adults and Communities,B & Q 1052,14/11/2016,41.16,R & M of Buildings - General,"Building Materials, Lumber Stores",GPC
Statement 18/10/2016 - 17/11/2016,Adults and Communities,B & Q 1157,21/10/2016,4.15,Aids & Adaptations - Minor Adaptations,"Building Materials, Lumber Stores",GPC
Statement 18/10/2016 - 17/11/2016,Adults and Communities,B & Q 1157,25/10/2016,11.40,Aids & Adaptations - Minor Adaptations,"Building Materials, Lumber Stores",GPC
Statement 18/10/2016 - 17/11/2016,Adults and Communities,B & Q 1157,25/10/2016,38.98,General Equipment - General,"Building Materials, Lumber Stores",GPC
Statement 18/10/2016 - 17/11/2016,Adults and Communities,Baffo,07/11/2016,20.00,Conference - General,"Eating Places, Restaurants",GPC
Statement 18/10/2016 - 17/11/2016,Adults and Communities,Balloons Galore,18/10/2016,-63.86,Other Expenditure - Public Enquiry fees,Miscellaneous Publishing and  Printing,GPC
Statement 18/10/2016 - 17/11/2016,Adults and Communities,Bathstore,01/11/2016,40.00,Materials - General,"Furniture, Home Furnishings and Equipment Stores,",GPC
Statement 18/10/2016 - 17/11/2016,Adults and Communities,Bc.Basecamp 2997305,01/11/2016,16.39,IT Equipment - Licences,Membership Organizations-Not Elsewhere Classified,GPC
Statement 18/10/2016 - 17/11/2016,Adults and Communities,Bibs Hardware,19/10/2016,9.00,Operational Equipment - General,Hardware Stores,GPC
Statement 18/10/2016 - 17/11/2016,Adults and Communities,Boc Tel Order,20/10/2016,5.10,Operational Equipment - General,Chemicals and Allied Products Not Elsewhere Classi,GPC
Statement 18/10/2016 - 17/11/2016,Adults and Communities,Boc Tel Order,15/11/2016,5.10,Operational Equipment - General,Chemicals and Allied Products Not Elsewhere Classi,GPC
Statement 18/10/2016 - 17/11/2016,Adults and Communities,Boots 0020,04/11/2016,90.97,Other Equipment & Materials - General,"Drug Stores, Pharmacies",GPC
Statement 18/10/2016 - 17/11/2016,Adults and Communities,"Boots,hinckley",16/11/2016,25.92,Other Equipment & Materials - General,"Drug Stores, Pharmacies",GPC
Statement 18/10/2016 - 17/11/2016,Adults and Communities,Campanile Glasgow,06/11/2016,148.33,Conference - General,"Lodging-Hotels, Motels, Resorts",GPC
Statement 18/10/2016 - 17/11/2016,Adults and Communities,Campanile Glasgow,08/11/2016,8.75,Conference - General,"Lodging-Hotels, Motels, Resorts",GPC
Statement 18/10/2016 - 17/11/2016,Adults and Communities,Cartridge Save,18/10/2016,50.12,Postal Services - General,"Stationary, Office Supplies, Printing and Writing",GPC
Statement 18/10/2016 - 17/11/2016,Adults and Communities,Central Eng Coop,22/10/2016,13.34,Materials - General,Department Stores,GPC
Statement 18/10/2016 - 17/11/2016,Adults and Communities,Central Eng Coop,01/11/2016,3.72,Operational Equipment - General,Department Stores,GPC
Statement 18/10/2016 - 17/11/2016,Adults and Communities,Central Eng Coop,26/10/2016,3.12,Other Expenditure - General,Department Stores,GPC
Statement 18/10/2016 - 17/11/2016,Adults and Communities,Central Eng Coop,19/10/2016,22.75,Provisions - General,Department Stores,GPC
Statement 18/10/2016 - 17/11/2016,Adults and Communities,Central Eng Coop,21/10/2016,144.60,Provisions - General,Department Stores,GPC
Statement 18/10/2016 - 17/11/2016,Adults and Communities,Central Eng Coop,24/10/2016,23.12,Provisions - General,Department Stores,GPC
Statement 18/10/2016 - 17/11/2016,Adults and Communities,Central Eng Coop,26/10/2016,19.48,Provisions - General,Department Stores,GPC
Statement 18/10/2016 - 17/11/2016,Adults and Communities,Central Eng Coop,26/10/2016,12.99,Provisions - General,Department Stores,GPC
Statement 18/10/2016 - 17/11/2016,Adults and Communities,Central Eng Coop,27/10/2016,4.14,Provisions - General,Department Stores,GPC
Statement 18/10/2016 - 17/11/2016,Adults and Communities,Central Eng Coop,27/10/2016,114.34,Provisions - General,Department Stores,GPC
Statement 18/10/2016 - 17/11/2016,Adults and Communities,Central Eng Coop,02/11/2016,91.46,Provisions - General,Department Stores,GPC
Statement 18/10/2016 - 17/11/2016,Adults and Communities,Central Eng Coop,10/11/2016,92.11,Provisions - General,Department Stores,GPC
Statement 18/10/2016 - 17/11/2016,Adults and Communities,Central Eng Coop,12/11/2016,24.05,Provisions - General,Department Stores,GPC
Statement 18/10/2016 - 17/11/2016,Adults and Communities,Central Eng Coop,12/11/2016,7.50,Provisions - General,Department Stores,GPC
Statement 18/10/2016 - 17/11/2016,Adults and Communities,Charnwood Borough Counci,19/10/2016,6.00,Casual/Essential - General,Automobile Parking Lots and Garages,GPC
Statement 18/10/2016 - 17/11/2016,Adults and Communities,Charnwood Borough Counci,25/10/2016,2.20,Casual/Essential - General,Automobile Parking Lots and Garages,GPC
Statement 18/10/2016 - 17/11/2016,Adults and Communities,Charnwood Borough Counci,01/11/2016,2.20,Casual/Essential - General,Automobile Parking Lots and Garages,GPC
Statement 18/10/2016 - 17/11/2016,Adults and Communities,Charnwood Borough Counci,02/11/2016,6.00,Casual/Essential - General,Automobile Parking Lots and Garages,GPC
Statement 18/10/2016 - 17/11/2016,Adults and Communities,Charnwood Borough Counci,15/11/2016,6.00,Casual/Essential - General,Automobile Parking Lots and Garages,GPC
Statement 18/10/2016 - 17/11/2016,Adults and Communities,Child Poverty,31/10/2016,93.99,Books - General,Charitable and Social Service Organizations,GPC
Statement 18/10/2016 - 17/11/2016,Adults and Communities,City Of Lincoln Counci,21/10/2016,6.25,Public Transport -  Staff - General,Automobile Parking Lots and Garages,GPC
Statement 18/10/2016 - 17/11/2016,Adults and Communities,Civil War / Palace,14/11/2016,13.92,Other Expenditure - General,Government Services-Not Elsewhere Classified,GPC
Statement 18/10/2016 - 17/11/2016,Adults and Communities,Clintons 499,18/10/2016,27.93,Materials - General,"Gift, Card, Novelty, and Souvenir Shops",GPC
Statement 18/10/2016 - 17/11/2016,Adults and Communities,Cmt (UK) Ltd - Glasgow,02/11/2016,23.10,Casual/Essential - General,Taxicabs and Limousines,GPC
Statement 18/10/2016 - 17/11/2016,Adults and Communities,Costa @ Tesco,16/11/2016,2.55,Other Expenditure - General,Fast-Food Restaurants (Quick Payment Service Pilot,GPC
Statement 18/10/2016 - 17/11/2016,Adults and Communities,Costa Coffee,01/11/2016,5.65,Subsistence - General,"Eating Places, Restaurants",GPC
Statement 18/10/2016 - 17/11/2016,Adults and Communities,Currys,23/10/2016,54.15,Stationery - General,"RADIO, TELEVISION, AND STEREO STORES (ELECTRONIC STORES)",GPC
Statement 18/10/2016 - 17/11/2016,Adults and Communities,Desvins,02/11/2016,89.98,Other Equipment & Materials - General,"Eating Places, Restaurants",GPC
Statement 18/10/2016 - 17/11/2016,Adults and Communities,Devonshire Place,11/11/2016,166.67,Other Expenditure - General,"Equipment Rental and Leasing Services, Tool Rental",GPC
Statement 18/10/2016 - 17/11/2016,Adults and Communities,East Midland Trains,02/11/2016,5.00,Other Equipment & Materials - General,Automobile Parking Lots and Garages,GPC
Statement 18/10/2016 - 17/11/2016,Adults and Communities,East Midlands Trai,31/10/2016,37.40,Public Transport -  Staff - General,Passenger Railways,GPC
Statement 18/10/2016 - 17/11/2016,Adults and Communities,East Midlands Trains,04/11/2016,142.60,Casual/Essential - Casual,Passenger Railways,GPC
Statement 18/10/2016 - 17/11/2016,Adults and Communities,East Midlands Trains,01/11/2016,53.00,Casual/Essential - General,Passenger Railways,GPC
Statement 18/10/2016 - 17/11/2016,Adults and Communities,East Midlands Trains,03/11/2016,13.50,Casual/Essential - General,Passenger Railways,GPC
Statement 18/10/2016 - 17/11/2016,Adults and Communities,East Midlands Trains,08/11/2016,60.00,Display/Conservn/Exhibitions - Conservation,Passenger Railways,GPC
Statement 18/10/2016 - 17/11/2016,Adults and Communities,East Midlands Trains,08/11/2016,50.00,Public Transport -  Staff - General,Passenger Railways,GPC
Statement 18/10/2016 - 17/11/2016,Adults and Communities,Eb *life Story Worksho,20/10/2016,10.00,Other Equipment & Materials - General,Business Services-Not Elsewhere Classified,GPC
Statement 18/10/2016 - 17/11/2016,Adults and Communities,Eb *life Story Worksho,25/10/2016,10.00,Other Equipment & Materials - General,Business Services-Not Elsewhere Classified,GPC
Statement 18/10/2016 - 17/11/2016,Adults and Communities,Eb *life Story Worksho,26/10/2016,10.00,Other Equipment & Materials - General,Business Services-Not Elsewhere Classified,GPC
Statement 18/10/2016 - 17/11/2016,Adults and Communities,Education & Traini,02/11/2016,200.00,Training Expenses - General,"Colleges, Universities, Professional Schools, and",GPC
Statement 18/10/2016 - 17/11/2016,Adults and Communities,Espo,19/10/2016,136.70,Stationery - General,Government Services-Not Elsewhere Classified,GPC
Statement 18/10/2016 - 17/11/2016,Adults and Communities,Facebk Zhh8taw7r2,31/10/2016,22.49,Publicity/Marketing - General,Advertising Services,GPC
Statement 18/10/2016 - 17/11/2016,Adults and Communities,Gardners Books Ltd,24/10/2016,257.87,Materials - General,Book Stores,GPC
Statement 18/10/2016 - 17/11/2016,Adults and Communities,Greggs - S1442,08/11/2016,5.50,Provisions - General,Bakeries,GPC
Statement 18/10/2016 - 17/11/2016,Adults and Communities,Gro Hm Passport Office,02/11/2016,18.50,Other Expenditure - General,Government Services-Not Elsewhere Classified,GPC
Statement 18/10/2016 - 17/11/2016,Adults and Communities,Gro Hm Passport Office,14/11/2016,23.40,Other Expenditure - General,Government Services-Not Elsewhere Classified,GPC
Statement 18/10/2016 - 17/11/2016,Adults and Communities,Halfords 0977,08/11/2016,37.47,Materials - General,Bicycle Shops-Sales and Service,GPC
Statement 18/10/2016 - 17/11/2016,Adults and Communities,Halfords 0977,16/11/2016,74.17,Materials - General,Bicycle Shops-Sales and Service,GPC
Statement 18/10/2016 - 17/11/2016,Adults and Communities,Harlow Bros Ltd,15/11/2016,80.07,Aids & Adaptations - Minor Adaptations,"Building Materials, Lumber Stores",GPC
Statement 18/10/2016 - 17/11/2016,Adults and Communities,Hawker Publication,27/10/2016,93.60,Newspapers & Periodicals - General,News Dealers and Newsstands,GPC
Statement 18/10/2016 - 17/11/2016,Adults and Communities,Hawker Publication,27/10/2016,266.40,Newspapers & Periodicals - General,News Dealers and Newsstands,GPC
Statement 18/10/2016 - 17/11/2016,Adults and Communities,Hm Passport,04/11/2016,90.00,Other Expenditure - General,Government Services-Not Elsewhere Classified,GPC
Statement 18/10/2016 - 17/11/2016,Adults and Communities,Hobbycraft (Internet),15/11/2016,18.75,Other Equipment & Materials - General,"Artist Supply Stores, Craft Shops",GPC
Statement 18/10/2016 - 17/11/2016,Adults and Communities,Iceland,27/10/2016,7.25,Materials - General,"Grocery Stores, Supermarkets",GPC
Statement 18/10/2016 - 17/11/2016,Adults and Communities,Iceland,26/10/2016,12.00,Provisions - General,"Grocery Stores, Supermarkets",GPC
Statement 18/10/2016 - 17/11/2016,Adults and Communities,Iceland,12/11/2016,27.29,Provisions - General,"Grocery Stores, Supermarkets",GPC
Statement 18/10/2016 - 17/11/2016,Adults and Communities,Ikea,01/11/2016,153.30,Materials - General,Miscellaneous House Furnishing Specialty Shops,GPC
Statement 18/10/2016 - 17/11/2016,Adults and Communities,Ikea Sacat,29/10/2016,80.00,Materials - General,Miscellaneous House Furnishing Specialty Shops,GPC
Statement 18/10/2016 - 17/11/2016,Adults and Communities,Lanes Car Park,04/11/2016,30.00,Casual/Essential - General,Automobile Parking Lots and Garages,GPC
Statement 18/10/2016 - 17/11/2016,Adults and Communities,Lcc Catering Services,31/10/2016,9.00,Other Equipment & Materials - General,Government Services-Not Elsewhere Classified,GPC
Statement 18/10/2016 - 17/11/2016,Adults and Communities,Lcc Catering Services,31/10/2016,4.50,Other Equipment & Materials - General,Government Services-Not Elsewhere Classified,GPC
Statement 18/10/2016 - 17/11/2016,Adults and Communities,Lcc Catering Services,25/10/2016,3.60,Other Expenditure - General,Government Services-Not Elsewhere Classified,GPC
Statement 18/10/2016 - 17/11/2016,Adults and Communities,Leic City Council,26/10/2016,13.00,Other Expenditure - General,Government Services-Not Elsewhere Classified,GPC
Statement 18/10/2016 - 17/11/2016,Adults and Communities,Leic City Council,26/10/2016,13.00,Other Expenditure - General,Government Services-Not Elsewhere Classified,GPC
Statement 18/10/2016 - 17/11/2016,Adults and Communities,Leic City Council,31/10/2016,13.00,Other Expenditure - General,Government Services-Not Elsewhere Classified,GPC
Statement 18/10/2016 - 17/11/2016,Adults and Communities,Leic City Council,14/11/2016,13.00,Other Expenditure - General,Government Services-Not Elsewhere Classified,GPC
Statement 18/10/2016 - 17/11/2016,Adults and Communities,London Taxi Fare,02/11/2016,16.20,Casual/Essential - General,Taxicabs and Limousines,GPC
Statement 18/10/2016 - 17/11/2016,Adults and Communities,Lul Ticket Machine,08/11/2016,15.00,Public Transport -  Staff - General,Passenger Railways,GPC
Statement 18/10/2016 - 17/11/2016,Adults and Communities,Madisons,21/10/2016,9.85,Subsistence - General,Fast-Food Restaurants (Quick Payment Service Pilot,GPC
Statement 18/10/2016 - 17/11/2016,Adults and Communities,Maplin Nuneaton Cv11,09/11/2016,17.48,General Equipment - General,Telecommunication Equipment Including Telephone Sa,GPC
Statement 18/10/2016 - 17/11/2016,Adults and Communities,Marks&spencer Plc Sf,25/10/2016,5.10,Other Expenditure - General,"Grocery Stores, Supermarkets",GPC
Statement 18/10/2016 - 17/11/2016,Adults and Communities,Marks&spencer Plc Sf,25/10/2016,16.00,Other Expenditure - General,"Grocery Stores, Supermarkets",GPC
Statement 18/10/2016 - 17/11/2016,Adults and Communities,Martindale-Electri,20/10/2016,35.40,R & M of Buildings - General,Electrical Parts and Equipment,GPC
Statement 18/10/2016 - 17/11/2016,Adults and Communities,Mobilitysma,20/10/2016,80.85,Schools Agency staff - Teaching Staff,Professional Services-Not Elsewhere Classified,GPC
Statement 18/10/2016 - 17/11/2016,Adults and Communities,Monarch Airlines,01/11/2016,754.44,Casual/Essential - General,"Air Carriers, Airlines",GPC
Statement 18/10/2016 - 17/11/2016,Adults and Communities,Monarch Airlines,01/11/2016,153.62,Casual/Essential - General,"Air Carriers, Airlines",GPC
Statement 18/10/2016 - 17/11/2016,Adults and Communities,Monarch Airlines,01/11/2016,425.01,Casual/Essential - General,"Air Carriers, Airlines",GPC
Statement 18/10/2016 - 17/11/2016,Adults and Communities,Nrs Healthcare,18/10/2016,25.54,Other Equipment & Materials - General,Laboratory/Medical/Dental/Ophthalmic Hospital Equi,GPC
Statement 18/10/2016 - 17/11/2016,Adults and Communities,Ocado Ltd.,31/10/2016,103.94,General Equipment - General,"Miscellaneous Food Stores-Convenience Stores, Mark",GPC
Statement 18/10/2016 - 17/11/2016,Adults and Communities,Ocado Ltd.,17/10/2016,117.50,Provisions - General,"Miscellaneous Food Stores-Convenience Stores, Mark",GPC
Statement 18/10/2016 - 17/11/2016,Adults and Communities,Ocado Ltd.,21/10/2016,78.07,Provisions - General,"Miscellaneous Food Stores-Convenience Stores, Mark",GPC
Statement 18/10/2016 - 17/11/2016,Adults and Communities,Ocado Ltd.,24/10/2016,78.34,Provisions - General,"Miscellaneous Food Stores-Convenience Stores, Mark",GPC
Statement 18/10/2016 - 17/11/2016,Adults and Communities,Ocado Ltd.,28/10/2016,150.41,Provisions - General,"Miscellaneous Food Stores-Convenience Stores, Mark",GPC
Statement 18/10/2016 - 17/11/2016,Adults and Communities,Ocado Ltd.,31/10/2016,23.78,Provisions - General,"Miscellaneous Food Stores-Convenience Stores, Mark",GPC
Statement 18/10/2016 - 17/11/2016,Adults and Communities,Ocado Ltd.,04/11/2016,62.42,Provisions - General,"Miscellaneous Food Stores-Convenience Stores, Mark",GPC
Statement 18/10/2016 - 17/11/2016,Adults and Communities,Ocado Ltd.,05/11/2016,9.99,Provisions - General,"Miscellaneous Food Stores-Convenience Stores, Mark",GPC
Statement 18/10/2016 - 17/11/2016,Adults and Communities,Ocado Ltd.,07/11/2016,93.76,Provisions - General,"Miscellaneous Food Stores-Convenience Stores, Mark",GPC
Statement 18/10/2016 - 17/11/2016,Adults and Communities,Ocado Retail Limit,14/11/2016,95.92,Provisions - General,"Miscellaneous Food Stores-Convenience Stores, Mark",GPC
Statement 18/10/2016 - 17/11/2016,Adults and Communities,Ocado Retail Limit,15/11/2016,114.79,Provisions - General,"Miscellaneous Food Stores-Convenience Stores, Mark",GPC
Statement 18/10/2016 - 17/11/2016,Adults and Communities,Old Swan Hotel,28/10/2016,206.00,Conference - General,"Lodging-Hotels, Motels, Resorts",GPC
Statement 18/10/2016 - 17/11/2016,Adults and Communities,Paperchase,26/10/2016,3.75,Stationery - General,"Gift, Card, Novelty, and Souvenir Shops",GPC
Statement 18/10/2016 - 17/11/2016,Adults and Communities,Paperstone,18/10/2016,13.27,IT Equipment - General,"Stationery, Office, and School Supply Stores",GPC
Statement 18/10/2016 - 17/11/2016,Adults and Communities,Paypal *britishnutr,25/10/2016,83.33,Materials - General,Charitable and Social Service Organizations,GPC
Statement 18/10/2016 - 17/11/2016,Adults and Communities,Paypal *celticwebme,11/11/2016,66.10,Other Equipment & Materials - General,"Artist Supply Stores, Craft Shops",GPC
Statement 18/10/2016 - 17/11/2016,Adults and Communities,Paypal *ecommerceb,14/11/2016,75.99,IT Equipment - Purchase - Hardware,"Artist Supply Stores, Craft Shops",GPC
Statement 18/10/2016 - 17/11/2016,Adults and Communities,Paypal *ender17,11/11/2016,28.64,Other Equipment & Materials - General,Miscellaneous and Specialty Retail Stores,GPC
Statement 18/10/2016 - 17/11/2016,Adults and Communities,Paypal *hongkongyee,26/10/2016,68.60,IT Equipment - Maintenance,Variety Stores,GPC
Statement 18/10/2016 - 17/11/2016,Adults and Communities,Paypal *shenzhenshi,16/11/2016,2.48,Materials - General,Variety Stores,GPC
Statement 18/10/2016 - 17/11/2016,Adults and Communities,Paypal *sondosarafa,14/11/2016,6.00,Other Equipment & Materials - General,Miscellaneous and Specialty Retail Stores,GPC
Statement 18/10/2016 - 17/11/2016,Adults and Communities,Paypal *ukonlinemar,09/11/2016,15.24,Materials - General,Children's and Infants' Wear Stores,GPC
Statement 18/10/2016 - 17/11/2016,Adults and Communities,Pc World Online,26/10/2016,31.99,Stationery - General,"RADIO, TELEVISION, AND STEREO STORES (ELECTRONIC STORES)",GPC
Statement 18/10/2016 - 17/11/2016,Adults and Communities,Post Office Counter,19/10/2016,12.00,Other Equipment & Materials - General,Postage Stamps,GPC
Statement 18/10/2016 - 17/11/2016,Adults and Communities,Post Office Counter,18/10/2016,6.95,Postal Services - General,Postage Stamps,GPC
Statement 18/10/2016 - 17/11/2016,Adults and Communities,Posturite (UK) Ltd,20/10/2016,57.54,Operational Equipment - DDA,Commercial Furniture,GPC
Statement 18/10/2016 - 17/11/2016,Adults and Communities,Poundland Ltd,28/10/2016,16.05,Materials - General,Discount Stores,GPC
Statement 18/10/2016 - 17/11/2016,Adults and Communities,Premier Inn44031695,07/11/2016,61.24,Casual/Essential - Casual,PREMIER TRAVEL,GPC
Statement 18/10/2016 - 17/11/2016,Adults and Communities,Pret A Manger,10/11/2016,11.29,Conference - General,"Eating Places, Restaurants",GPC
Statement 18/10/2016 - 17/11/2016,Adults and Communities,Princes Marine Hot,22/10/2016,84.00,Subsistence - General,"Lodging-Hotels, Motels, Resorts",GPC
Statement 18/10/2016 - 17/11/2016,Adults and Communities,Pumpkin Cafe,06/11/2016,5.38,Conference - General,"Package Stores, Beer, Wine, Liquor",GPC
Statement 18/10/2016 - 17/11/2016,Adults and Communities,Queensgate,03/11/2016,5.83,Public Transport -  Staff - General,Automobile Parking Lots and Garages,GPC
Statement 18/10/2016 - 17/11/2016,Adults and Communities,Queensgate,10/11/2016,10.00,Public Transport -  Staff - General,Automobile Parking Lots and Garages,GPC
Statement 18/10/2016 - 17/11/2016,Adults and Communities,Ravensden Plc,24/10/2016,319.20,Materials - General,Household Appliance Stores,GPC
Statement 18/10/2016 - 17/11/2016,Adults and Communities,Roberts Coaches,24/10/2016,182.52,Other Expenditure - General,Taxicabs and Limousines,GPC
Statement 18/10/2016 - 17/11/2016,Adults and Communities,Royal Mail,25/10/2016,321.00,Postal Services - General,Postage Stamps,GPC
Statement 18/10/2016 - 17/11/2016,Adults and Communities,Royal Mail Online Shop,09/11/2016,275.00,Postal Services - General,Postage Stamps,GPC
Statement 18/10/2016 - 17/11/2016,Adults and Communities,Safeclean,03/11/2016,200.00,General Equipment - General,Carpet and Upholstery Cleaning,GPC
Statement 18/10/2016 - 17/11/2016,Adults and Communities,Safestore Limited,20/10/2016,129.49,Other Support - Main Programme,Public Warehousing,GPC
Statement 18/10/2016 - 17/11/2016,Adults and Communities,Safestore Limited,04/11/2016,129.49,Other Support - Main Programme,Public Warehousing,GPC
Statement 18/10/2016 - 17/11/2016,Adults and Communities,Sainsburys Local,20/10/2016,5.92,Provisions - General,"Grocery Stores, Supermarkets",GPC
Statement 18/10/2016 - 17/11/2016,Adults and Communities,Sainsburys S/mkt,24/10/2016,10.00,Provisions - General,"Grocery Stores, Supermarkets",GPC
Statement 18/10/2016 - 17/11/2016,Adults and Communities,Sainsburys S/mkt,11/11/2016,115.18,Provisions - General,"Grocery Stores, Supermarkets",GPC
Statement 18/10/2016 - 17/11/2016,Adults and Communities,Sainsburys S/mkt,25/10/2016,13.12,Stationery - General,"Grocery Stores, Supermarkets",GPC
Statement 18/10/2016 - 17/11/2016,Adults and Communities,Sainsburys S/mkt,10/11/2016,13.49,Stationery - General,"Grocery Stores, Supermarkets",GPC
Statement 18/10/2016 - 17/11/2016,Adults and Communities,Sainsburys S/mkts,08/11/2016,2.70,Operational Equipment - General,"Grocery Stores, Supermarkets",GPC
Statement 18/10/2016 - 17/11/2016,Adults and Communities,Sam International,14/11/2016,46.90,Stationery - General,"Stationary, Office Supplies, Printing and Writing",GPC
Statement 18/10/2016 - 17/11/2016,Adults and Communities,Screwfix,11/11/2016,30.63,Aids & Adaptations - Minor Adaptations,"Building Materials, Lumber Stores",GPC
Statement 18/10/2016 - 17/11/2016,Adults and Communities,Screwfix,20/10/2016,3.73,General Equipment - General,"Building Materials, Lumber Stores",GPC
Statement 18/10/2016 - 17/11/2016,Adults and Communities,Screwfix Direct,27/10/2016,23.63,Aids & Adaptations - Minor Adaptations,"Building Materials, Lumber Stores",GPC
Statement 18/10/2016 - 17/11/2016,Adults and Communities,Seton,16/11/2016,81.96,Other Equipment & Materials - General,Durable Goods Not Elsewhere Classified,GPC
Statement 18/10/2016 - 17/11/2016,Adults and Communities,Shared Lives Plus Limi,21/10/2016,240.00,Other Services - General,Charitable and Social Service Organizations,GPC
Statement 18/10/2016 - 17/11/2016,Adults and Communities,Something Crafty Ltd,11/11/2016,3.68,Other Equipment & Materials - General,"Artist Supply Stores, Craft Shops",GPC
Statement 18/10/2016 - 17/11/2016,Adults and Communities,Staffordshire County C,18/10/2016,-10.00,Other Expenditure - General,Government Services-Not Elsewhere Classified,GPC
Statement 18/10/2016 - 17/11/2016,Adults and Communities,Staffordshire County C,19/10/2016,20.00,Other Expenditure - General,Government Services-Not Elsewhere Classified,GPC
Statement 18/10/2016 - 17/11/2016,Adults and Communities,Staples Uk,04/11/2016,29.95,Stationery - General,"Stationery, Office, and School Supply Stores",GPC
Statement 18/10/2016 - 17/11/2016,Adults and Communities,Superdrug Stores Plc,16/11/2016,7.96,Other Equipment & Materials - General,"Drug Stores, Pharmacies",GPC
Statement 18/10/2016 - 17/11/2016,Adults and Communities,Superdrug Stores Plc,11/11/2016,3.00,Other Services - General,"Drug Stores, Pharmacies",GPC
Statement 18/10/2016 - 17/11/2016,Adults and Communities,Surveymonkey.Com,12/11/2016,21.67,IT Equipment - Licences,Continuity/Subscription Merchants,GPC
Statement 18/10/2016 - 17/11/2016,Adults and Communities,T Golf Limited,15/11/2016,117.80,Other Expenditure - General,Sporting Goods Stores,GPC
Statement 18/10/2016 - 17/11/2016,Adults and Communities,Talktalk Business,24/10/2016,84.35,Telephones - General,Telecommunication Service Including Local and Long,GPC
Statement 18/10/2016 - 17/11/2016,Adults and Communities,Tesco Store 2846,18/10/2016,13.62,Materials - General,"Grocery Stores, Supermarkets",GPC
Statement 18/10/2016 - 17/11/2016,Adults and Communities,Tesco Stores 5182,17/10/2016,140.00,Provisions - General,"Grocery Stores, Supermarkets",GPC
Statement 18/10/2016 - 17/11/2016,Adults and Communities,Tesco Stores 5182,21/10/2016,122.22,Provisions - General,"Grocery Stores, Supermarkets",GPC
Statement 18/10/2016 - 17/11/2016,Adults and Communities,Tesco Stores 5182,24/10/2016,167.79,Provisions - General,"Grocery Stores, Supermarkets",GPC
Statement 18/10/2016 - 17/11/2016,Adults and Communities,Tesco Stores 5182,28/10/2016,114.09,Provisions - General,"Grocery Stores, Supermarkets",GPC
Statement 18/10/2016 - 17/11/2016,Adults and Communities,Tesco Stores 5182,31/10/2016,116.74,Provisions - General,"Grocery Stores, Supermarkets",GPC
Statement 18/10/2016 - 17/11/2016,Adults and Communities,Tesco Stores 5182,07/11/2016,130.77,Provisions - General,"Grocery Stores, Supermarkets",GPC
Statement 18/10/2016 - 17/11/2016,Adults and Communities,Tesco Stores 5182,14/11/2016,140.61,Provisions - General,"Grocery Stores, Supermarkets",GPC
Statement 18/10/2016 - 17/11/2016,Adults and Communities,Tesco Stores 5902,26/10/2016,6.51,Other Equipment & Materials - General,"Grocery Stores, Supermarkets",GPC
Statement 18/10/2016 - 17/11/2016,Adults and Communities,Tesco Stores 6369,18/10/2016,11.93,Materials - General,"Grocery Stores, Supermarkets",GPC
Statement 18/10/2016 - 17/11/2016,Adults and Communities,The Atrium,20/10/2016,3.87,Casual/Essential - Casual,"Eating Places, Restaurants",GPC
Statement 18/10/2016 - 17/11/2016,Adults and Communities,The Atrium,20/10/2016,4.64,Casual/Essential - Casual,"Eating Places, Restaurants",GPC
Statement 18/10/2016 - 17/11/2016,Adults and Communities,The Forge Inn,31/10/2016,21.05,Other Equipment & Materials - General,"Eating Places, Restaurants",GPC
Statement 18/10/2016 - 17/11/2016,Adults and Communities,The Forge Inn,31/10/2016,20.00,Other Expenditure - General,"Eating Places, Restaurants",GPC
Statement 18/10/2016 - 17/11/2016,Adults and Communities,The Range,02/11/2016,38.04,Other Services - General,Department Stores,GPC
Statement 18/10/2016 - 17/11/2016,Adults and Communities,The Record Office,02/11/2016,4.12,Books - General,Tourist Attractions and Exhibits,GPC
Statement 18/10/2016 - 17/11/2016,Adults and Communities,The Works,23/10/2016,4.00,Other Equipment & Materials - General,Discount Stores,GPC
Statement 18/10/2016 - 17/11/2016,Adults and Communities,Three-Billpay(Cc),14/11/2016,19.99,Personal Needs of Clients - General,Telecommunication Service Including Local and Long,GPC
Statement 18/10/2016 - 17/11/2016,Adults and Communities,Three-Billpay(Cc),14/11/2016,9.99,Schools Agency staff - Support Staff,Telecommunication Service Including Local and Long,GPC
Statement 18/10/2016 - 17/11/2016,Adults and Communities,Totaljobs Group Ltd,28/10/2016,300.00,Other Allowances/Expenses - General,Miscellaneous Publishing and  Printing,GPC
Statement 18/10/2016 - 17/11/2016,Adults and Communities,Trainline,01/11/2016,-82.20,Casual/Essential - General,Passenger Railways,GPC
Statement 18/10/2016 - 17/11/2016,Adults and Communities,Trainline,01/11/2016,85.37,Casual/Essential - General,Passenger Railways,GPC
Statement 18/10/2016 - 17/11/2016,Adults and Communities,Trainline,19/10/2016,-9.00,Public Transport -  Staff - General,Passenger Railways,GPC
Statement 18/10/2016 - 17/11/2016,Adults and Communities,Trainline,03/11/2016,40.70,Public Transport -  Staff - General,Passenger Railways,GPC
Statement 18/10/2016 - 17/11/2016,Adults and Communities,Trainline,11/11/2016,137.19,Public Transport -  Staff - General,Passenger Railways,GPC
Statement 18/10/2016 - 17/11/2016,Adults and Communities,Trainline,15/11/2016,108.63,Public Transport -  Staff - General,Passenger Railways,GPC
Statement 18/10/2016 - 17/11/2016,Adults and Communities,Trainline,16/11/2016,9.74,Public Transport -  Staff - General,Passenger Railways,GPC
Statement 18/10/2016 - 17/11/2016,Adults and Communities,Trainline.Com Ltd,19/10/2016,98.70,Casual/Essential - General,Passenger Railways,GPC
Statement 18/10/2016 - 17/11/2016,Adults and Communities,Trainline.Com Ltd,20/10/2016,96.80,Casual/Essential - General,Passenger Railways,GPC
Statement 18/10/2016 - 17/11/2016,Adults and Communities,Trainline.Com Ltd,20/10/2016,169.93,Casual/Essential - General,Passenger Railways,GPC
Statement 18/10/2016 - 17/11/2016,Adults and Communities,Trainline.Com Ltd,24/10/2016,157.50,Casual/Essential - General,Passenger Railways,GPC
Statement 18/10/2016 - 17/11/2016,Adults and Communities,Trainline.Com Ltd,25/10/2016,188.19,Casual/Essential - General,Passenger Railways,GPC
Statement 18/10/2016 - 17/11/2016,Adults and Communities,Trainline.Com Ltd,26/10/2016,30.35,Casual/Essential - General,Passenger Railways,GPC
Statement 18/10/2016 - 17/11/2016,Adults and Communities,Travel Republic Ltd,02/11/2016,1.00,Casual/Essential - General,Travel Agencies,GPC
Statement 18/10/2016 - 17/11/2016,Adults and Communities,Travel Republic Ltd,02/11/2016,1.00,Casual/Essential - General,Travel Agencies,GPC
Statement 18/10/2016 - 17/11/2016,Adults and Communities,Tvlicensing.Co.Uk,03/11/2016,145.50,Schools Agency staff - Teaching Staff,"Management, Consulting and Public Relations Servic",GPC
Statement 18/10/2016 - 17/11/2016,Adults and Communities,Upt - Emt Nottingham Rai,31/10/2016,3.33,Public Transport -  Staff - General,Professional Services-Not Elsewhere Classified,GPC
Statement 18/10/2016 - 17/11/2016,Adults and Communities,Upt - Emt Nottingham Rai,09/11/2016,9.17,Public Transport -  Staff - General,Professional Services-Not Elsewhere Classified,GPC
Statement 18/10/2016 - 17/11/2016,Adults and Communities,Virgin Trains,02/11/2016,141.00,Public Transport -  Staff - General,Passenger Railways,GPC
Statement 18/10/2016 - 17/11/2016,Adults and Communities,Virgintrainsec Kgx She,03/11/2016,33.20,Public Transport -  Staff - General,Passenger Railways,GPC
Statement 18/10/2016 - 17/11/2016,Adults and Communities,Virgintrainsec Pbo Stn,03/11/2016,69.60,Public Transport -  Staff - General,Passenger Railways,GPC
Statement 18/10/2016 - 17/11/2016,Adults and Communities,Virgintrainsec Pbo Stn,10/11/2016,101.00,Public Transport -  Staff - General,Passenger Railways,GPC
Statement 18/10/2016 - 17/11/2016,Adults and Communities,Virgintrainsec Servcs,03/11/2016,121.00,Public Transport -  Staff - General,Passenger Railways,GPC
Statement 18/10/2016 - 17/11/2016,Adults and Communities,Virgintrainsec Servcs,04/11/2016,109.00,Public Transport -  Staff - General,Passenger Railways,GPC
Statement 18/10/2016 - 17/11/2016,Adults and Communities,W M Morrison Plc,04/11/2016,20.00,Materials - General,"Grocery Stores, Supermarkets",GPC
Statement 18/10/2016 - 17/11/2016,Adults and Communities,W M Morrisons,20/10/2016,24.72,Postal Services - General,"Grocery Stores, Supermarkets",GPC
Statement 18/10/2016 - 17/11/2016,Adults and Communities,Waterstones,04/11/2016,1039.97,Books - General,Book Stores,GPC
Statement 18/10/2016 - 17/11/2016,Adults and Communities,Wh Smiths,06/11/2016,3.37,Conference - General,"Package Stores, Beer, Wine, Liquor",GPC
Statement 18/10/2016 - 17/11/2016,Adults and Communities,Wilko Retail Limit,26/10/2016,5.00,General Equipment - General,Household Appliance Stores,GPC
Statement 18/10/2016 - 17/11/2016,Adults and Communities,Wilko Retail Limit,17/10/2016,10.40,Materials - General,Household Appliance Stores,GPC
Statement 18/10/2016 - 17/11/2016,Adults and Communities,Wilko Retail Limit,22/10/2016,6.00,Materials - General,Household Appliance Stores,GPC
Statement 18/10/2016 - 17/11/2016,Adults and Communities,Wilko Retail Limit,24/10/2016,5.34,Materials - General,Household Appliance Stores,GPC
Statement 18/10/2016 - 17/11/2016,Adults and Communities,Wilko Retail Limit,04/11/2016,7.20,Materials - General,Household Appliance Stores,GPC
Statement 18/10/2016 - 17/11/2016,Adults and Communities,Wilko Retail Limit,06/11/2016,8.90,Materials - General,Household Appliance Stores,GPC
Statement 18/10/2016 - 17/11/2016,Adults and Communities,Wilko Retail Limit,16/11/2016,1.90,Other Equipment & Materials - General,Household Appliance Stores,GPC
Statement 18/10/2016 - 17/11/2016,Adults and Communities,Wilko Retail Limit,11/11/2016,4.62,Other Services - General,Household Appliance Stores,GPC
Statement 18/10/2016 - 17/11/2016,Adults and Communities,Wm Morrison 054,21/10/2016,66.61,Materials - General,"Grocery Stores, Supermarkets",GPC
Statement 18/10/2016 - 17/11/2016,Adults and Communities,Wm Morrison 054,22/10/2016,10.33,Materials - General,"Grocery Stores, Supermarkets",GPC
Statement 18/10/2016 - 17/11/2016,Adults and Communities,Wm Morrison 054,29/10/2016,18.10,Materials - General,"Grocery Stores, Supermarkets",GPC
Statement 18/10/2016 - 17/11/2016,Adults and Communities,Wm Morrison 054,29/10/2016,28.48,Materials - General,"Grocery Stores, Supermarkets",GPC
Statement 18/10/2016 - 17/11/2016,Adults and Communities,Wm Morrison 054,04/11/2016,16.19,Materials - General,"Grocery Stores, Supermarkets",GPC
Statement 18/10/2016 - 17/11/2016,Adults and Communities,Wm Morrison 054,05/11/2016,26.75,Materials - General,"Grocery Stores, Supermarkets",GPC
Statement 18/10/2016 - 17/11/2016,Adults and Communities,Wm Morrison 054,10/11/2016,71.18,Materials - General,"Grocery Stores, Supermarkets",GPC
Statement 18/10/2016 - 17/11/2016,Adults and Communities,Wm Morrison 054,12/11/2016,48.10,Materials - General,"Grocery Stores, Supermarkets",GPC
Statement 18/10/2016 - 17/11/2016,Adults and Communities,Wm Morrison 054,16/11/2016,33.54,Materials - General,"Grocery Stores, Supermarkets",GPC
Statement 18/10/2016 - 17/11/2016,Adults and Communities,Wm Morrison 054,21/10/2016,168.28,Provisions - General,"Grocery Stores, Supermarkets",GPC
Statement 18/10/2016 - 17/11/2016,Adults and Communities,Wm Morrison 054,28/10/2016,51.85,Provisions - General,"Grocery Stores, Supermarkets",GPC
Statement 18/10/2016 - 17/11/2016,Adults and Communities,Wm Morrison 054,04/11/2016,73.15,Provisions - General,"Grocery Stores, Supermarkets",GPC
Statement 18/10/2016 - 17/11/2016,Adults and Communities,Wm Morrison 054,10/11/2016,78.45,Provisions - General,"Grocery Stores, Supermarkets",GPC
Statement 18/10/2016 - 17/11/2016,Adults and Communities,Wm Morrison 054,12/11/2016,3.32,Provisions - General,"Grocery Stores, Supermarkets",GPC
Statement 18/10/2016 - 17/11/2016,Adults and Communities,Wm Morrisons,04/11/2016,12.00,Cleaning Materials - General,"Grocery Stores, Supermarkets",GPC
Statement 18/10/2016 - 17/11/2016,Adults and Communities,Wm Morrisons,26/10/2016,25.24,Materials - General,"Grocery Stores, Supermarkets",GPC
Statement 18/10/2016 - 17/11/2016,Adults and Communities,Wm Morrisons,22/10/2016,5.78,Other Expenditure - General,"Grocery Stores, Supermarkets",GPC
Statement 18/10/2016 - 17/11/2016,Adults and Communities,Wm Morrisons,25/10/2016,12.00,Provisions - General,"Grocery Stores, Supermarkets",GPC
Statement 18/10/2016 - 17/11/2016,Adults and Communities,Wp-Stamps Direct L,11/11/2016,18.92,Stationery - General,"Stationery, Office, and School Supply Stores",GPC
Statement 18/10/2016 - 17/11/2016,Adults and Communities,Www.C2uoffice.Co.U,09/11/2016,73.44,General Equipment - General,"Stationery, Office, and School Supply Stores",GPC
Statement 18/10/2016 - 17/11/2016,Adults and Communities,Www.C2uoffice.Co.U,15/11/2016,17.28,General Equipment - General,"Stationery, Office, and School Supply Stores",GPC
Statement 18/10/2016 - 17/11/2016,Adults and Communities,Www.Cheapfabrics.Co.Uk,20/10/2016,31.45,Educational Visits - General,Women's Ready to Wear Shoes,GPC
Statement 18/10/2016 - 17/11/2016,Adults and Communities,Www.Derby.Gov.Uk,04/11/2016,32.58,Other Expenditure - General,Government Services-Not Elsewhere Classified,GPC
Statement 18/10/2016 - 17/11/2016,Adults and Communities,Www.Drugs-Cabinets.Co.,31/10/2016,115.00,Other Expenditure - General,"Engineering, Architectural, and Surveying Services",GPC
Statement 18/10/2016 - 17/11/2016,Adults and Communities,Www.Ephyprivacy.Co,17/10/2016,38.99,Other Expenditure - General,Computer and Data Processing Services,GPC
Statement 18/10/2016 - 17/11/2016,Adults and Communities,Www.Goleicestershire.C,04/11/2016,453.00,Other Expenditure - General,Travel Agencies,GPC
Statement 18/10/2016 - 17/11/2016,Adults and Communities,Www.Gov.Uk,27/10/2016,20.00,Other Expenditure - Public Enquiry fees,Professional Services-Not Elsewhere Classified,GPC
Statement 18/10/2016 - 17/11/2016,Adults and Communities,Www.Neopost.Co.Uk,09/11/2016,479.40,Stationery - General,"Stationary, Office Supplies, Printing and Writing",GPC
Statement 18/10/2016 - 17/11/2016,Adults and Communities,Www.Neopost.Co.Uk,09/11/2016,479.40,Stationery - General,"Stationary, Office Supplies, Printing and Writing",GPC
Statement 18/10/2016 - 17/11/2016,Adults and Communities,Www.Neopost.Co.Uk,09/11/2016,479.40,Stationery - General,"Stationary, Office Supplies, Printing and Writing",GPC
Statement 18/10/2016 - 17/11/2016,Adults and Communities,Www.Neopost.Co.Uk,09/11/2016,479.40,Stationery - General,"Stationary, Office Supplies, Printing and Writing",GPC
Statement 18/10/2016 - 17/11/2016,Adults and Communities,Www.Oadby-Wigston.Gov.,15/11/2016,21.00,Books - General,Government Services-Not Elsewhere Classified,GPC
Statement 18/10/2016 - 17/11/2016,Adults and Communities,Www.Posturite.Co.Uk,09/11/2016,79.08,Stationery - General,Commercial Furniture,GPC
Statement 18/10/2016 - 17/11/2016,Adults and Communities,Www.Preservationequipm,08/11/2016,76.35,Consultants & Specialists - General,Public Warehousing,GPC
Statement 18/10/2016 - 17/11/2016,Adults and Communities,Www.Preservationequipm,01/11/2016,24.30,General Equipment - General,Public Warehousing,GPC
Statement 18/10/2016 - 17/11/2016,Adults and Communities,Www.Preservationequipm,21/10/2016,95.94,Other Expenditure - General,Public Warehousing,GPC
Statement 18/10/2016 - 17/11/2016,Adults and Communities,Www.Rainbowsafetey.Co.Uk,11/11/2016,205.86,General Equipment - General,Miscellaneous and Specialty Retail Stores,GPC
Statement 18/10/2016 - 17/11/2016,Adults and Communities,Www.Ryman.Co.Uk,09/11/2016,47.24,Stationery - General,"Stationery, Office, and School Supply Stores",GPC
Statement 18/10/2016 - 17/11/2016,Adults and Communities,Www.Slingsby.Com,16/11/2016,488.40,General Equipment - General,Industrial Supplies Not Elsewhere Classified,GPC
Statement 18/10/2016 - 17/11/2016,Adults and Communities,Www.Snowdome.Co.Uk,08/11/2016,55.80,Public Transport -  Staff - General,"Membership Clubs (Sports, Recreation, Athletic), C",GPC
Statement 18/10/2016 - 17/11/2016,Adults and Communities,Www.Tts-Groups.Co.Uk,17/10/2016,11.99,Educational Visits - General,"Stationery, Office, and School Supply Stores",GPC
Statement 18/10/2016 - 17/11/2016,Adults and Communities,Www.Tts-Groups.Co.Uk,14/11/2016,48.97,Other Equipment & Materials - General,"Stationery, Office, and School Supply Stores",GPC
Statement 18/10/2016 - 17/11/2016,Adults and Communities,Www.Tts-Groups.Co.Uk,15/11/2016,13.99,Other Equipment & Materials - General,"Stationery, Office, and School Supply Stores",GPC
Statement 18/10/2016 - 17/11/2016,Adults and Communities,Www.Yha.Org.Uk,24/10/2016,15.54,Subsistence - General,"Lodging-Hotels, Motels, Resorts",GPC
Statement 18/10/2016 - 17/11/2016,Adults and Communities,Www.Yha.Org.Uk,24/10/2016,10.36,Subsistence - General,"Lodging-Hotels, Motels, Resorts",GPC
Statement 18/10/2016 - 17/11/2016,Adults and Communities,Www.Yha.Org.Uk,24/10/2016,56.00,Subsistence - General,"Lodging-Hotels, Motels, Resorts",GPC
Statement 18/10/2016 - 17/11/2016,Adults and Communities,Www.Zen.Co.Uk,17/10/2016,34.76,Telephones - General,Computer Network/Information Services,GPC
Statement 18/10/2016 - 17/11/2016,Adults and Communities,Www.Zen.Co.Uk,03/11/2016,34.76,Telephones - General,Computer Network/Information Services,GPC
Statement 18/10/2016 - 17/11/2016,Adults and Communities,Xl Displays Ltd,26/10/2016,88.80,Other Equipment & Materials - General,Durable Goods Not Elsewhere Classified,GPC
Statement 18/10/2016 - 17/11/2016,Adults and Communities,Information not available ,02/11/2016,0.45,IT Equipment - Licences,Misc-Unknown,GPC
Statement 18/10/2016 - 17/11/2016,C&YPS-Non Delegated,43034775 Costa Coffee,04/11/2016,7.27,Other Expenditure - General,Fast-Food Restaurants (Quick Payment Service Pilot,GPC
Statement 18/10/2016 - 17/11/2016,C&YPS-Non Delegated,Aldi,07/11/2016,24.31,Other Expenditure - General,"Grocery Stores, Supermarkets",GPC
Statement 18/10/2016 - 17/11/2016,C&YPS-Non Delegated,Aldi,14/11/2016,26.90,Other Expenditure - General,"Grocery Stores, Supermarkets",GPC
Statement 18/10/2016 - 17/11/2016,C&YPS-Non Delegated,Aldi,17/10/2016,67.81,Provisions - General,"Grocery Stores, Supermarkets",GPC
Statement 18/10/2016 - 17/11/2016,C&YPS-Non Delegated,Aldi,18/10/2016,14.33,Provisions - General,"Grocery Stores, Supermarkets",GPC
Statement 18/10/2016 - 17/11/2016,C&YPS-Non Delegated,Aldi,20/10/2016,28.60,Provisions - General,"Grocery Stores, Supermarkets",GPC
Statement 18/10/2016 - 17/11/2016,C&YPS-Non Delegated,Aldi,21/10/2016,12.27,Provisions - General,"Grocery Stores, Supermarkets",GPC
Statement 18/10/2016 - 17/11/2016,C&YPS-Non Delegated,Aldi,26/10/2016,4.67,Provisions - General,"Grocery Stores, Supermarkets",GPC
Statement 18/10/2016 - 17/11/2016,C&YPS-Non Delegated,Aldi,28/10/2016,50.44,Provisions - General,"Grocery Stores, Supermarkets",GPC
Statement 18/10/2016 - 17/11/2016,C&YPS-Non Delegated,Aldi,31/10/2016,89.11,Provisions - General,"Grocery Stores, Supermarkets",GPC
Statement 18/10/2016 - 17/11/2016,C&YPS-Non Delegated,Aldi,04/11/2016,73.02,Provisions - General,"Grocery Stores, Supermarkets",GPC
Statement 18/10/2016 - 17/11/2016,C&YPS-Non Delegated,Aldi,07/11/2016,17.39,Provisions - General,"Grocery Stores, Supermarkets",GPC
Statement 18/10/2016 - 17/11/2016,C&YPS-Non Delegated,Aldi,11/11/2016,37.05,Provisions - General,"Grocery Stores, Supermarkets",GPC
Statement 18/10/2016 - 17/11/2016,C&YPS-Non Delegated,Aldi,14/11/2016,51.66,Provisions - General,"Grocery Stores, Supermarkets",GPC
Statement 18/10/2016 - 17/11/2016,C&YPS-Non Delegated,Aldi,15/11/2016,5.56,Provisions - General,"Grocery Stores, Supermarkets",GPC
Statement 18/10/2016 - 17/11/2016,C&YPS-Non Delegated,Allpay Moto (Callpay/ivr,03/11/2016,374.99,Other Services - General,Charitable and Social Service Organizations,GPC
Statement 18/10/2016 - 17/11/2016,C&YPS-Non Delegated,"Amazon Svcs Europe,sar",03/11/2016,16.30,Books - General,Book Stores,GPC
Statement 18/10/2016 - 17/11/2016,C&YPS-Non Delegated,"Amazon Svcs Europe,sar",01/11/2016,22.30,Other Equipment & Materials - General,Book Stores,GPC
Statement 18/10/2016 - 17/11/2016,C&YPS-Non Delegated,Amazon UK Marketplace,19/10/2016,35.30,Books - General,Book Stores,GPC
Statement 18/10/2016 - 17/11/2016,C&YPS-Non Delegated,Amazon UK Marketplace,25/10/2016,2.98,Books - General,Book Stores,GPC
Statement 18/10/2016 - 17/11/2016,C&YPS-Non Delegated,Amazon UK Marketplace,25/10/2016,14.08,Books - General,Book Stores,GPC
Statement 18/10/2016 - 17/11/2016,C&YPS-Non Delegated,Amazon UK Marketplace,26/10/2016,11.63,Books - General,Book Stores,GPC
Statement 18/10/2016 - 17/11/2016,C&YPS-Non Delegated,Amazon UK Marketplace,31/10/2016,5.31,General Equipment - General,Miscellaneous and Specialty Retail Stores,GPC
Statement 18/10/2016 - 17/11/2016,C&YPS-Non Delegated,Amazon UK Marketplace,01/11/2016,2.69,General Equipment - General,Miscellaneous and Specialty Retail Stores,GPC
Statement 18/10/2016 - 17/11/2016,C&YPS-Non Delegated,Amazon UK Marketplace,17/10/2016,19.74,IT Equipment - General,Miscellaneous and Specialty Retail Stores,GPC
Statement 18/10/2016 - 17/11/2016,C&YPS-Non Delegated,Amazon UK Marketplace,28/10/2016,26.99,IT Equipment - General,Miscellaneous and Specialty Retail Stores,GPC
Statement 18/10/2016 - 17/11/2016,C&YPS-Non Delegated,Amazon UK Marketplace,31/10/2016,5.44,IT Equipment - General,Book Stores,GPC
Statement 18/10/2016 - 17/11/2016,C&YPS-Non Delegated,Amazon UK Marketplace,31/10/2016,6.42,IT Equipment - General,Miscellaneous and Specialty Retail Stores,GPC
Statement 18/10/2016 - 17/11/2016,C&YPS-Non Delegated,Amazon UK Marketplace,02/11/2016,11.11,IT Equipment - General,Book Stores,GPC
Statement 18/10/2016 - 17/11/2016,C&YPS-Non Delegated,Amazon UK Marketplace,04/11/2016,237.00,IT Equipment - General,Book Stores,GPC
Statement 18/10/2016 - 17/11/2016,C&YPS-Non Delegated,Amazon UK Marketplace,04/11/2016,118.50,IT Equipment - General,Miscellaneous and Specialty Retail Stores,GPC
Statement 18/10/2016 - 17/11/2016,C&YPS-Non Delegated,Amazon UK Marketplace,05/11/2016,218.79,IT Equipment - General,Miscellaneous and Specialty Retail Stores,GPC
Statement 18/10/2016 - 17/11/2016,C&YPS-Non Delegated,Amazon UK Marketplace,07/11/2016,24.35,IT Equipment - General,Miscellaneous and Specialty Retail Stores,GPC
Statement 18/10/2016 - 17/11/2016,C&YPS-Non Delegated,Amazon UK Marketplace,16/11/2016,32.95,IT Equipment - General,Book Stores,GPC
Statement 18/10/2016 - 17/11/2016,C&YPS-Non Delegated,Amazon UK Marketplace,16/11/2016,15.99,IT Equipment - General,Miscellaneous and Specialty Retail Stores,GPC
Statement 18/10/2016 - 17/11/2016,C&YPS-Non Delegated,Amazon UK Marketplace,16/11/2016,363.44,IT Equipment - General,Miscellaneous and Specialty Retail Stores,GPC
Statement 18/10/2016 - 17/11/2016,C&YPS-Non Delegated,Amazon UK Marketplace,18/10/2016,97.59,Materials - General,Miscellaneous and Specialty Retail Stores,GPC
Statement 18/10/2016 - 17/11/2016,C&YPS-Non Delegated,Amazon UK Marketplace,18/10/2016,8.61,Materials - General,Miscellaneous and Specialty Retail Stores,GPC
Statement 18/10/2016 - 17/11/2016,C&YPS-Non Delegated,Amazon UK Marketplace,19/10/2016,8.99,Materials - General,Miscellaneous and Specialty Retail Stores,GPC
Statement 18/10/2016 - 17/11/2016,C&YPS-Non Delegated,Amazon UK Marketplace,24/10/2016,259.74,Materials - General,Miscellaneous and Specialty Retail Stores,GPC
Statement 18/10/2016 - 17/11/2016,C&YPS-Non Delegated,Amazon UK Marketplace,24/10/2016,2.07,Materials - General,Miscellaneous and Specialty Retail Stores,GPC
Statement 18/10/2016 - 17/11/2016,C&YPS-Non Delegated,Amazon UK Marketplace,25/10/2016,1.97,Materials - General,Miscellaneous and Specialty Retail Stores,GPC
Statement 18/10/2016 - 17/11/2016,C&YPS-Non Delegated,Amazon UK Marketplace,25/10/2016,2.00,Materials - General,Miscellaneous and Specialty Retail Stores,GPC
Statement 18/10/2016 - 17/11/2016,C&YPS-Non Delegated,Amazon UK Marketplace,26/10/2016,63.96,Materials - General,Miscellaneous and Specialty Retail Stores,GPC
Statement 18/10/2016 - 17/11/2016,C&YPS-Non Delegated,Amazon UK Marketplace,28/10/2016,2.53,Materials - General,Miscellaneous and Specialty Retail Stores,GPC
Statement 18/10/2016 - 17/11/2016,C&YPS-Non Delegated,Amazon UK Marketplace,03/11/2016,31.09,Materials - General,Miscellaneous and Specialty Retail Stores,GPC
Statement 18/10/2016 - 17/11/2016,C&YPS-Non Delegated,Amazon UK Marketplace,08/11/2016,12.20,Materials - General,Miscellaneous and Specialty Retail Stores,GPC
Statement 18/10/2016 - 17/11/2016,C&YPS-Non Delegated,Amazon UK Marketplace,10/11/2016,12.99,Materials - General,Miscellaneous and Specialty Retail Stores,GPC
Statement 18/10/2016 - 17/11/2016,C&YPS-Non Delegated,Amazon UK Marketplace,11/11/2016,3.48,Materials - General,Miscellaneous and Specialty Retail Stores,GPC
Statement 18/10/2016 - 17/11/2016,C&YPS-Non Delegated,Amazon UK Marketplace,11/11/2016,15.98,Materials - General,Miscellaneous and Specialty Retail Stores,GPC
Statement 18/10/2016 - 17/11/2016,C&YPS-Non Delegated,Amazon UK Marketplace,16/11/2016,23.50,Materials - General,Miscellaneous and Specialty Retail Stores,GPC
Statement 18/10/2016 - 17/11/2016,C&YPS-Non Delegated,Amazon UK Marketplace,22/10/2016,6.95,Other Equipment & Materials - General,Book Stores,GPC
Statement 18/10/2016 - 17/11/2016,C&YPS-Non Delegated,Amazon UK Marketplace,22/10/2016,6.60,Other Equipment & Materials - General,Miscellaneous and Specialty Retail Stores,GPC
Statement 18/10/2016 - 17/11/2016,C&YPS-Non Delegated,Amazon UK Marketplace,31/10/2016,35.79,Other Equipment & Materials - General,Miscellaneous and Specialty Retail Stores,GPC
Statement 18/10/2016 - 17/11/2016,C&YPS-Non Delegated,Amazon UK Marketplace,31/10/2016,40.75,Other Equipment & Materials - General,Miscellaneous and Specialty Retail Stores,GPC
Statement 18/10/2016 - 17/11/2016,C&YPS-Non Delegated,Amazon UK Marketplace,01/11/2016,1.85,Other Equipment & Materials - General,Book Stores,GPC
Statement 18/10/2016 - 17/11/2016,C&YPS-Non Delegated,Amazon UK Marketplace,01/11/2016,5.55,Other Equipment & Materials - General,Book Stores,GPC
Statement 18/10/2016 - 17/11/2016,C&YPS-Non Delegated,Amazon UK Marketplace,01/11/2016,2.99,Other Equipment & Materials - General,Book Stores,GPC
Statement 18/10/2016 - 17/11/2016,C&YPS-Non Delegated,Amazon UK Marketplace,01/11/2016,5.78,Other Equipment & Materials - General,Miscellaneous and Specialty Retail Stores,GPC
Statement 18/10/2016 - 17/11/2016,C&YPS-Non Delegated,Amazon UK Marketplace,01/11/2016,23.70,Other Equipment & Materials - General,Miscellaneous and Specialty Retail Stores,GPC
Statement 18/10/2016 - 17/11/2016,C&YPS-Non Delegated,Amazon UK Marketplace,02/11/2016,70.35,Other Equipment & Materials - General,Book Stores,GPC
Statement 18/10/2016 - 17/11/2016,C&YPS-Non Delegated,Amazon UK Marketplace,02/11/2016,1.50,Other Equipment & Materials - General,Miscellaneous and Specialty Retail Stores,GPC
Statement 18/10/2016 - 17/11/2016,C&YPS-Non Delegated,Amazon UK Marketplace,02/11/2016,42.63,Other Equipment & Materials - General,Book Stores,GPC
Statement 18/10/2016 - 17/11/2016,C&YPS-Non Delegated,Amazon UK Marketplace,02/11/2016,58.19,Other Equipment & Materials - General,Miscellaneous and Specialty Retail Stores,GPC
Statement 18/10/2016 - 17/11/2016,C&YPS-Non Delegated,Amazon UK Marketplace,04/11/2016,9.99,Other Equipment & Materials - General,Miscellaneous and Specialty Retail Stores,GPC
Statement 18/10/2016 - 17/11/2016,C&YPS-Non Delegated,Amazon UK Marketplace,05/11/2016,16.55,Other Equipment & Materials - General,Miscellaneous and Specialty Retail Stores,GPC
Statement 18/10/2016 - 17/11/2016,C&YPS-Non Delegated,Amazon UK Marketplace,08/11/2016,18.99,Other Equipment & Materials - General,Book Stores,GPC
Statement 18/10/2016 - 17/11/2016,C&YPS-Non Delegated,Amazon UK Marketplace,08/11/2016,1.72,Other Equipment & Materials - General,Book Stores,GPC
Statement 18/10/2016 - 17/11/2016,C&YPS-Non Delegated,Amazon UK Marketplace,08/11/2016,5.84,Other Equipment & Materials - General,Miscellaneous and Specialty Retail Stores,GPC
Statement 18/10/2016 - 17/11/2016,C&YPS-Non Delegated,Amazon UK Marketplace,12/11/2016,29.99,Other Equipment & Materials - General,Miscellaneous and Specialty Retail Stores,GPC
Statement 18/10/2016 - 17/11/2016,C&YPS-Non Delegated,Amazon UK Marketplace,15/11/2016,30.55,Other Expenditure - General,Book Stores,GPC
Statement 18/10/2016 - 17/11/2016,C&YPS-Non Delegated,Amazon UK Marketplace,31/10/2016,4.12,Stationery - General,Miscellaneous and Specialty Retail Stores,GPC
Statement 18/10/2016 - 17/11/2016,C&YPS-Non Delegated,Amazon UK Marketplace,01/11/2016,7.69,Stationery - General,Book Stores,GPC
Statement 18/10/2016 - 17/11/2016,C&YPS-Non Delegated,Amazon UK Marketplace,07/11/2016,7.95,Stationery - General,Book Stores,GPC
Statement 18/10/2016 - 17/11/2016,C&YPS-Non Delegated,Amazon UK Marketplace,07/11/2016,4.49,Stationery - General,Miscellaneous and Specialty Retail Stores,GPC
Statement 18/10/2016 - 17/11/2016,C&YPS-Non Delegated,Amazon UK Marketplace,07/11/2016,10.98,Stationery - General,Miscellaneous and Specialty Retail Stores,GPC
Statement 18/10/2016 - 17/11/2016,C&YPS-Non Delegated,Amazon UK Marketplace,08/11/2016,9.25,Stationery - General,Miscellaneous and Specialty Retail Stores,GPC
Statement 18/10/2016 - 17/11/2016,C&YPS-Non Delegated,Amazon UK Marketplace,08/11/2016,20.96,Stationery - General,Miscellaneous and Specialty Retail Stores,GPC
Statement 18/10/2016 - 17/11/2016,C&YPS-Non Delegated,Amazon UK Prime Amzn.Co.U,27/10/2016,7.99,Other Expenditure - General,Continuity/Subscription Merchants,GPC
Statement 18/10/2016 - 17/11/2016,C&YPS-Non Delegated,Amazon UK Retail,26/10/2016,313.93,IT Equipment - General,Direct Marketers - Other,GPC
Statement 18/10/2016 - 17/11/2016,C&YPS-Non Delegated,Amazon UK Retail,16/11/2016,85.56,IT Equipment - General,Direct Marketers - Other,GPC
Statement 18/10/2016 - 17/11/2016,C&YPS-Non Delegated,Amazon UK Retail,01/11/2016,27.21,Other Equipment & Materials - General,Direct Marketers - Other,GPC
Statement 18/10/2016 - 17/11/2016,C&YPS-Non Delegated,Amazon UK Retail,01/11/2016,51.26,Other Equipment & Materials - General,Direct Marketers - Other,GPC
Statement 18/10/2016 - 17/11/2016,C&YPS-Non Delegated,Amazon UK Retail,01/11/2016,61.02,Other Equipment & Materials - General,Direct Marketers - Other,GPC
Statement 18/10/2016 - 17/11/2016,C&YPS-Non Delegated,Amazon UK Retail,08/11/2016,23.37,Other Equipment & Materials - General,Direct Marketers - Other,GPC
Statement 18/10/2016 - 17/11/2016,C&YPS-Non Delegated,Amazon UK Retail,17/10/2016,20.04,Other Expenditure - General,Direct Marketers - Other,GPC
Statement 18/10/2016 - 17/11/2016,C&YPS-Non Delegated,Amazon UK Retail,03/11/2016,10.65,Other Expenditure - General,Direct Marketers - Other,GPC
Statement 18/10/2016 - 17/11/2016,C&YPS-Non Delegated,Amazon UK Retail,16/11/2016,89.64,Other Expenditure - General,Direct Marketers - Other,GPC
Statement 18/10/2016 - 17/11/2016,C&YPS-Non Delegated,Amazon UK Retail,18/10/2016,64.99,Other Transfer Payments - Section 23 Grants,Direct Marketers - Other,GPC
Statement 18/10/2016 - 17/11/2016,C&YPS-Non Delegated,Amazon UK Retail,11/11/2016,21.63,Stationery - General,Direct Marketers - Other,GPC
Statement 18/10/2016 - 17/11/2016,C&YPS-Non Delegated,Amazon UK Retail Amazon.C,19/10/2016,59.96,Books - General,Miscellaneous and Specialty Retail Stores,GPC
Statement 18/10/2016 - 17/11/2016,C&YPS-Non Delegated,Amazon UK Retail Amazon.C,28/10/2016,12.50,IT Equipment - General,Miscellaneous and Specialty Retail Stores,GPC
Statement 18/10/2016 - 17/11/2016,C&YPS-Non Delegated,Amazon UK Retail Amazon.C,29/10/2016,103.63,IT Equipment - General,Miscellaneous and Specialty Retail Stores,GPC
Statement 18/10/2016 - 17/11/2016,C&YPS-Non Delegated,Amazon UK Retail Amazon.C,07/11/2016,52.30,IT Equipment - General,Miscellaneous and Specialty Retail Stores,GPC
Statement 18/10/2016 - 17/11/2016,C&YPS-Non Delegated,Amazon UK Retail Amazon.C,07/11/2016,17.90,IT Equipment - General,Miscellaneous and Specialty Retail Stores,GPC
Statement 18/10/2016 - 17/11/2016,C&YPS-Non Delegated,Amazon UK Retail Amazon.C,09/11/2016,52.30,IT Equipment - General,Miscellaneous and Specialty Retail Stores,GPC
Statement 18/10/2016 - 17/11/2016,C&YPS-Non Delegated,Amazon UK Retail Amazon.C,21/10/2016,44.99,IT Equipment - Purchase - Hardware,Miscellaneous and Specialty Retail Stores,GPC
Statement 18/10/2016 - 17/11/2016,C&YPS-Non Delegated,Amazon UK Retail Amazon.C,07/11/2016,3.29,Materials - General,Miscellaneous and Specialty Retail Stores,GPC
Statement 18/10/2016 - 17/11/2016,C&YPS-Non Delegated,Amazon UK Retail Amazon.C,08/11/2016,18.91,Materials - General,Miscellaneous and Specialty Retail Stores,GPC
Statement 18/10/2016 - 17/11/2016,C&YPS-Non Delegated,Amazon UK Retail Amazon.C,01/11/2016,102.52,Other Equipment & Materials - General,Miscellaneous and Specialty Retail Stores,GPC
Statement 18/10/2016 - 17/11/2016,C&YPS-Non Delegated,Amazon UK Retail Amazon.C,11/11/2016,4.31,Other Equipment & Materials - General,Miscellaneous and Specialty Retail Stores,GPC
Statement 18/10/2016 - 17/11/2016,C&YPS-Non Delegated,Amazon UK Retail Amazon.C,06/11/2016,27.15,Stationery - General,Miscellaneous and Specialty Retail Stores,GPC
Statement 18/10/2016 - 17/11/2016,C&YPS-Non Delegated,Amf Bowling,24/10/2016,70.04,Other Equipment & Materials - General,"Membership Clubs (Sports, Recreation, Athletic), C",GPC
Statement 18/10/2016 - 17/11/2016,C&YPS-Non Delegated,Argos Direct,04/11/2016,211.62,Other Equipment & Materials - General,Discount Stores,GPC
Statement 18/10/2016 - 17/11/2016,C&YPS-Non Delegated,Argos Ltd,25/10/2016,4.99,General Equipment - General,Discount Stores,GPC
Statement 18/10/2016 - 17/11/2016,C&YPS-Non Delegated,Argos Ltd,10/11/2016,26.97,Other Equipment & Materials - General,Discount Stores,GPC
Statement 18/10/2016 - 17/11/2016,C&YPS-Non Delegated,Argos Ltd,10/11/2016,36.97,Other Equipment & Materials - General,Discount Stores,GPC
Statement 18/10/2016 - 17/11/2016,C&YPS-Non Delegated,Argos Retail Group,01/11/2016,34.99,Materials - General,Discount Stores,GPC
Statement 18/10/2016 - 17/11/2016,C&YPS-Non Delegated,Argos Retail Group,04/11/2016,53.44,Materials - General,Discount Stores,GPC
Statement 18/10/2016 - 17/11/2016,C&YPS-Non Delegated,Argos Retail Group,04/11/2016,149.00,Materials - General,Discount Stores,GPC
Statement 18/10/2016 - 17/11/2016,C&YPS-Non Delegated,Argos Retail Group,04/11/2016,359.98,Materials - General,Discount Stores,GPC
Statement 18/10/2016 - 17/11/2016,C&YPS-Non Delegated,Argos Retail Group,31/10/2016,15.77,Other Equipment & Materials - General,Discount Stores,GPC
Statement 18/10/2016 - 17/11/2016,C&YPS-Non Delegated,Argos Retail Group,07/11/2016,63.98,Other Equipment & Materials - General,Discount Stores,GPC
Statement 18/10/2016 - 17/11/2016,C&YPS-Non Delegated,Argos Retail Group,14/11/2016,139.98,Other Equipment & Materials - General,Discount Stores,GPC
Statement 18/10/2016 - 17/11/2016,C&YPS-Non Delegated,Argos Retail Group,20/10/2016,73.94,Other Transfer Payments - Leaving Care Grants,Discount Stores,GPC
Statement 18/10/2016 - 17/11/2016,C&YPS-Non Delegated,Argos Retail Group,26/10/2016,108.94,Other Transfer Payments - Leaving Care Grants,Discount Stores,GPC
Statement 18/10/2016 - 17/11/2016,C&YPS-Non Delegated,Argos Retail Group,26/10/2016,375.97,Other Transfer Payments - Leaving Care Grants,Discount Stores,GPC
Statement 18/10/2016 - 17/11/2016,C&YPS-Non Delegated,Argos Retail Group,26/10/2016,408.94,Other Transfer Payments - Leaving Care Grants,Discount Stores,GPC
Statement 18/10/2016 - 17/11/2016,C&YPS-Non Delegated,Argos Retail Group,04/11/2016,469.97,Other Transfer Payments - Section 23 Grants,Discount Stores,GPC
Statement 18/10/2016 - 17/11/2016,C&YPS-Non Delegated,Asda Stores,08/11/2016,61.36,Materials - General,"Grocery Stores, Supermarkets",GPC
Statement 18/10/2016 - 17/11/2016,C&YPS-Non Delegated,Asda Stores,08/11/2016,40.00,Provisions - General,"Grocery Stores, Supermarkets",GPC
Statement 18/10/2016 - 17/11/2016,C&YPS-Non Delegated,Asda Stores 4477,26/10/2016,4.94,Provisions - General,"Grocery Stores, Supermarkets",GPC
Statement 18/10/2016 - 17/11/2016,C&YPS-Non Delegated,Asda Stores 4477,01/11/2016,5.25,Provisions - General,"Grocery Stores, Supermarkets",GPC
Statement 18/10/2016 - 17/11/2016,C&YPS-Non Delegated,Asda Superstore,02/11/2016,7.92,General Equipment - General,"Grocery Stores, Supermarkets",GPC
Statement 18/10/2016 - 17/11/2016,C&YPS-Non Delegated,Asda Superstore,03/11/2016,17.25,General Equipment - General,"Grocery Stores, Supermarkets",GPC
Statement 18/10/2016 - 17/11/2016,C&YPS-Non Delegated,Asda Superstore,11/11/2016,10.69,General Equipment - General,"Grocery Stores, Supermarkets",GPC
Statement 18/10/2016 - 17/11/2016,C&YPS-Non Delegated,Asda Superstore,08/11/2016,89.66,Provisions - General,"Grocery Stores, Supermarkets",GPC
Statement 18/10/2016 - 17/11/2016,C&YPS-Non Delegated,Asda Superstore,15/11/2016,3.50,Provisions - General,"Grocery Stores, Supermarkets",GPC
Statement 18/10/2016 - 17/11/2016,C&YPS-Non Delegated,B & Q 1052,10/11/2016,10.02,R & M of Buildings - General,"Building Materials, Lumber Stores",GPC
Statement 18/10/2016 - 17/11/2016,C&YPS-Non Delegated,B & Q 1157,16/11/2016,1.55,Other Equipment & Materials - General,"Building Materials, Lumber Stores",GPC
Statement 18/10/2016 - 17/11/2016,C&YPS-Non Delegated,B&m Retail,16/11/2016,6.90,Stationery - General,Discount Stores,GPC
Statement 18/10/2016 - 17/11/2016,C&YPS-Non Delegated,Bbcn Leicester Wigston,11/11/2016,195.81,Other Transfer Payments - Section 23 Grants,Child Care Services,GPC
Statement 18/10/2016 - 17/11/2016,C&YPS-Non Delegated,Blakemore/tates Limite,07/11/2016,4.39,Other Equipment & Materials - General,"Grocery Stores, Supermarkets",GPC
Statement 18/10/2016 - 17/11/2016,C&YPS-Non Delegated,Bt Bill Payment 2,10/11/2016,110.80,IT Equipment - Rental,Telecommunication Equipment Including Telephone Sa,GPC
Statement 18/10/2016 - 17/11/2016,C&YPS-Non Delegated,Bt Bill Payment 2,09/11/2016,47.91,R & M of Buildings - General,Telecommunication Equipment Including Telephone Sa,GPC
Statement 18/10/2016 - 17/11/2016,C&YPS-Non Delegated,Bt Bill Payment 2,09/11/2016,57.27,R & M of Buildings - General,Telecommunication Equipment Including Telephone Sa,GPC
Statement 18/10/2016 - 17/11/2016,C&YPS-Non Delegated,Bt Bill Payment 2,18/10/2016,56.05,Telephones - General,Telecommunication Equipment Including Telephone Sa,GPC
Statement 18/10/2016 - 17/11/2016,C&YPS-Non Delegated,Bt Bill Payment 2,18/10/2016,66.90,Telephones - General,Telecommunication Equipment Including Telephone Sa,GPC
Statement 18/10/2016 - 17/11/2016,C&YPS-Non Delegated,Bt Bill Payment 2,18/10/2016,55.89,Telephones - General,Telecommunication Equipment Including Telephone Sa,GPC
Statement 18/10/2016 - 17/11/2016,C&YPS-Non Delegated,Bt Bill Payment 2,26/10/2016,80.97,Telephones - General,Telecommunication Equipment Including Telephone Sa,GPC
Statement 18/10/2016 - 17/11/2016,C&YPS-Non Delegated,Bt Bill Payment 2,26/10/2016,56.05,Telephones - General,Telecommunication Equipment Including Telephone Sa,GPC
Statement 18/10/2016 - 17/11/2016,C&YPS-Non Delegated,Bt Bill Payment 2,01/11/2016,80.89,Telephones - General,Telecommunication Equipment Including Telephone Sa,GPC
Statement 18/10/2016 - 17/11/2016,C&YPS-Non Delegated,Bt Bill Payment 2,10/11/2016,55.89,Telephones - General,Telecommunication Equipment Including Telephone Sa,GPC
Statement 18/10/2016 - 17/11/2016,C&YPS-Non Delegated,Bt Bill Payment 2,14/11/2016,55.89,Telephones - General,Telecommunication Equipment Including Telephone Sa,GPC
Statement 18/10/2016 - 17/11/2016,C&YPS-Non Delegated,Burger King,01/11/2016,7.68,Subsistence - General,Fast-Food Restaurants (Quick Payment Service Pilot,GPC
Statement 18/10/2016 - 17/11/2016,C&YPS-Non Delegated,Central Eng Coop,04/11/2016,70.00,Client/Volunteers - General,Department Stores,GPC
Statement 18/10/2016 - 17/11/2016,C&YPS-Non Delegated,Central Eng Coop,25/10/2016,6.13,General Equipment - General,Department Stores,GPC
Statement 18/10/2016 - 17/11/2016,C&YPS-Non Delegated,Central Eng Coop,02/11/2016,1.90,General Equipment - General,Department Stores,GPC
Statement 18/10/2016 - 17/11/2016,C&YPS-Non Delegated,Central Eng Coop,09/11/2016,5.28,General Equipment - General,Department Stores,GPC
Statement 18/10/2016 - 17/11/2016,C&YPS-Non Delegated,Central Eng Coop,03/11/2016,13.41,Other Equipment & Materials - General,Department Stores,GPC
Statement 18/10/2016 - 17/11/2016,C&YPS-Non Delegated,Chocolate Alchemy,16/11/2016,6.50,Other Expenditure - General,"Gift, Card, Novelty, and Souvenir Shops",GPC
Statement 18/10/2016 - 17/11/2016,C&YPS-Non Delegated,Clintons 499,16/11/2016,9.99,Personal Needs of Clients - General,"Gift, Card, Novelty, and Souvenir Shops",GPC
Statement 18/10/2016 - 17/11/2016,C&YPS-Non Delegated,Costa Coalville,25/10/2016,7.40,Other Expenditure - General,Fast-Food Restaurants (Quick Payment Service Pilot,GPC
Statement 18/10/2016 - 17/11/2016,C&YPS-Non Delegated,Costa Coffee,10/11/2016,8.45,Other Expenditure - General,Fast-Food Restaurants (Quick Payment Service Pilot,GPC
Statement 18/10/2016 - 17/11/2016,C&YPS-Non Delegated,Costa Coffee,25/10/2016,4.55,Subsistence - General,"Eating Places, Restaurants",GPC
Statement 18/10/2016 - 17/11/2016,C&YPS-Non Delegated,Cross Country,22/10/2016,-37.60,Client/Volunteers - General,Passenger Railways,GPC
Statement 18/10/2016 - 17/11/2016,C&YPS-Non Delegated,Currys Online,02/11/2016,169.99,Materials - General,"RADIO, TELEVISION, AND STEREO STORES (ELECTRONIC STORES)",GPC
Statement 18/10/2016 - 17/11/2016,C&YPS-Non Delegated,De Montfort Expertise Ltd,08/11/2016,241.80,Other Transfer Payments - Sector 17- Other,"Colleges, Universities, Professional Schools, and",GPC
Statement 18/10/2016 - 17/11/2016,C&YPS-Non Delegated,De Montfort Expertise Ltd,08/11/2016,320.86,Other Transfer Payments - Sector 17- Other,"Colleges, Universities, Professional Schools, and",GPC
Statement 18/10/2016 - 17/11/2016,C&YPS-Non Delegated,Dhl Express(UK)ltd,16/11/2016,60.29,Private Contractors - General,"Courier Services-Air and Ground, and Freight Forw",GPC
Statement 18/10/2016 - 17/11/2016,C&YPS-Non Delegated,Different Roads,27/10/2016,632.29,Other Expenditure - General,Catalog Merchants,GPC
Statement 18/10/2016 - 17/11/2016,C&YPS-Non Delegated,Dunelm Online Order,26/10/2016,33.94,Other Equipment & Materials - General,"Drapery, Window Coverings, and Upholstery Stores",GPC
Statement 18/10/2016 - 17/11/2016,C&YPS-Non Delegated,East Midlands Trai,26/10/2016,10.55,Client/Volunteers - General,Passenger Railways,GPC
Statement 18/10/2016 - 17/11/2016,C&YPS-Non Delegated,East Midlands Trai,07/11/2016,21.10,Client/Volunteers - General,Passenger Railways,GPC
Statement 18/10/2016 - 17/11/2016,C&YPS-Non Delegated,East Midlands Trains,10/11/2016,90.50,Casual/Essential - General,Passenger Railways,GPC
Statement 18/10/2016 - 17/11/2016,C&YPS-Non Delegated,East Riding Of Yorkshi,28/10/2016,20.00,Other Transfer Payments - Section 23 Grants,Government Services-Not Elsewhere Classified,GPC
Statement 18/10/2016 - 17/11/2016,C&YPS-Non Delegated,Espo,10/11/2016,89.61,Other Expenditure - General,Government Services-Not Elsewhere Classified,GPC
Statement 18/10/2016 - 17/11/2016,C&YPS-Non Delegated,First Enterprise,18/10/2016,75.00,R & M of Buildings - General,Electrical Contractors,GPC
Statement 18/10/2016 - 17/11/2016,C&YPS-Non Delegated,Forest Rise Hotel Ltd,09/11/2016,52.00,Subsistence - General,"Lodging-Hotels, Motels, Resorts",GPC
Statement 18/10/2016 - 17/11/2016,C&YPS-Non Delegated,Fusion Loughborough Le,02/11/2016,5.00,Subscriptions - General,"Membership Clubs (Sports, Recreation, Athletic), C",GPC
Statement 18/10/2016 - 17/11/2016,C&YPS-Non Delegated,Fusion Loughborough Le,02/11/2016,10.00,Subscriptions - General,"Membership Clubs (Sports, Recreation, Athletic), C",GPC
Statement 18/10/2016 - 17/11/2016,C&YPS-Non Delegated,Gro Hm Passport Office,25/10/2016,9.25,Other Expenditure - General,Government Services-Not Elsewhere Classified,GPC
Statement 18/10/2016 - 17/11/2016,C&YPS-Non Delegated,Gro Hm Passport Office,11/11/2016,46.80,Other Transfer Payments - Section 23 Grants,Government Services-Not Elsewhere Classified,GPC
Statement 18/10/2016 - 17/11/2016,C&YPS-Non Delegated,Hilton,25/10/2016,124.17,Other Expenditure - General,Hilton Hotels,GPC
Statement 18/10/2016 - 17/11/2016,C&YPS-Non Delegated,Hmcourts-Service.G,26/10/2016,20.00,Personal Needs of Clients - General,Fines,GPC
Statement 18/10/2016 - 17/11/2016,C&YPS-Non Delegated,Home Bargains Coalvill,15/11/2016,10.17,Other Equipment & Materials - General,Hardware Stores,GPC
Statement 18/10/2016 - 17/11/2016,C&YPS-Non Delegated,Iceland,21/10/2016,21.00,Materials - General,"Grocery Stores, Supermarkets",GPC
Statement 18/10/2016 - 17/11/2016,C&YPS-Non Delegated,J D Sports 270,10/11/2016,72.97,Other Transfer Payments - General,Sporting Goods Stores,GPC
Statement 18/10/2016 - 17/11/2016,C&YPS-Non Delegated,Jd Sports Internet,09/11/2016,149.99,Personal Needs of Clients - Clothing,Sporting Goods Stores,GPC
Statement 18/10/2016 - 17/11/2016,C&YPS-Non Delegated,John Skillen Martial Arts,03/11/2016,35.99,Public Transport -  Staff - General,"Commercial Sports, Professional Sports Clubs, Athl",GPC
Statement 18/10/2016 - 17/11/2016,C&YPS-Non Delegated,Leic City Council,18/10/2016,33.00,Other Transfer Payments - Section 23 Grants,Government Services-Not Elsewhere Classified,GPC
Statement 18/10/2016 - 17/11/2016,C&YPS-Non Delegated,Leic City Council,21/10/2016,13.00,Other Transfer Payments - Section 23 Grants,Government Services-Not Elsewhere Classified,GPC
Statement 18/10/2016 - 17/11/2016,C&YPS-Non Delegated,Leic City Council,27/10/2016,23.00,Other Transfer Payments - Section 23 Grants,Government Services-Not Elsewhere Classified,GPC
Statement 18/10/2016 - 17/11/2016,C&YPS-Non Delegated,Leic City Council,08/11/2016,23.00,Other Transfer Payments - Section 23 Grants,Government Services-Not Elsewhere Classified,GPC
Statement 18/10/2016 - 17/11/2016,C&YPS-Non Delegated,Leic City Council,08/11/2016,23.00,Other Transfer Payments - Section 23 Grants,Government Services-Not Elsewhere Classified,GPC
Statement 18/10/2016 - 17/11/2016,C&YPS-Non Delegated,Leic City Council,08/11/2016,23.00,Other Transfer Payments - Section 23 Grants,Government Services-Not Elsewhere Classified,GPC
Statement 18/10/2016 - 17/11/2016,C&YPS-Non Delegated,Leic City Council,11/11/2016,-23.00,Other Transfer Payments - Section 23 Grants,Government Services-Not Elsewhere Classified,GPC
Statement 18/10/2016 - 17/11/2016,C&YPS-Non Delegated,Leic City Council,11/11/2016,23.00,Other Transfer Payments - Section 23 Grants,Government Services-Not Elsewhere Classified,GPC
Statement 18/10/2016 - 17/11/2016,C&YPS-Non Delegated,Leicestershire C Counc,02/11/2016,50.00,Other Expenditure - General,Government Services-Not Elsewhere Classified,GPC
Statement 18/10/2016 - 17/11/2016,C&YPS-Non Delegated,Leicestershire C Counc,11/11/2016,21.00,Other Transfer Payments - Section 23 Grants,Government Services-Not Elsewhere Classified,GPC
Statement 18/10/2016 - 17/11/2016,C&YPS-Non Delegated,Lidl Uk,09/11/2016,4.35,Materials - General,"Grocery Stores, Supermarkets",GPC
Statement 18/10/2016 - 17/11/2016,C&YPS-Non Delegated,Lidl Uk,19/10/2016,19.95,Provisions - General,"Grocery Stores, Supermarkets",GPC
Statement 18/10/2016 - 17/11/2016,C&YPS-Non Delegated,Lidl Uk,26/10/2016,56.08,Provisions - General,"Grocery Stores, Supermarkets",GPC
Statement 18/10/2016 - 17/11/2016,C&YPS-Non Delegated,Loros,04/11/2016,16.10,Other Services - General,Charitable and Social Service Organizations,GPC
Statement 18/10/2016 - 17/11/2016,C&YPS-Non Delegated,Love2reward.Co.Uk,24/10/2016,2462.50,Other Expenditure - General,"Civic, Social, and Fraternal Associations",GPC
Statement 18/10/2016 - 17/11/2016,C&YPS-Non Delegated,Love2shop.Co.Uk,24/10/2016,40.00,Public Transport -  Staff - General,"Civic, Social, and Fraternal Associations",GPC
Statement 18/10/2016 - 17/11/2016,C&YPS-Non Delegated,Lul Ticket Machine,10/11/2016,24.50,Other Transport Costs - General,Passenger Railways,GPC
Statement 18/10/2016 - 17/11/2016,C&YPS-Non Delegated,Makro Self Service,04/11/2016,51.04,Other Equipment & Materials - General,Wholesale Clubs,GPC
Statement 18/10/2016 - 17/11/2016,C&YPS-Non Delegated,McDonalds,25/10/2016,4.49,Other Expenditure - General,Fast-Food Restaurants (Quick Payment Service Pilot,GPC
Statement 18/10/2016 - 17/11/2016,C&YPS-Non Delegated,McDonalds,27/10/2016,5.58,Other Expenditure - General,"Eating Places, Restaurants",GPC
Statement 18/10/2016 - 17/11/2016,C&YPS-Non Delegated,McDonalds,18/10/2016,4.69,Subsistence - General,Fast-Food Restaurants (Quick Payment Service Pilot,GPC
Statement 18/10/2016 - 17/11/2016,C&YPS-Non Delegated,McDonalds,25/10/2016,1.32,Subsistence - General,Fast-Food Restaurants (Quick Payment Service Pilot,GPC
Statement 18/10/2016 - 17/11/2016,C&YPS-Non Delegated,McDonalds,28/10/2016,1.32,Subsistence - General,Fast-Food Restaurants (Quick Payment Service Pilot,GPC
Statement 18/10/2016 - 17/11/2016,C&YPS-Non Delegated,McDonalds,31/10/2016,1.59,Subsistence - General,Fast-Food Restaurants (Quick Payment Service Pilot,GPC
Statement 18/10/2016 - 17/11/2016,C&YPS-Non Delegated,McDonalds,01/11/2016,2.32,Subsistence - General,Fast-Food Restaurants (Quick Payment Service Pilot,GPC
Statement 18/10/2016 - 17/11/2016,C&YPS-Non Delegated,McDonalds,07/11/2016,12.93,Subsistence - General,"Eating Places, Restaurants",GPC
Statement 18/10/2016 - 17/11/2016,C&YPS-Non Delegated,Ms Beauty Therapy,16/11/2016,300.00,Other Equipment & Materials - General,Beauty Shops and Barber Shops,GPC
Statement 18/10/2016 - 17/11/2016,C&YPS-Non Delegated,Nandos (Loughborough),17/10/2016,35.40,Other Expenditure - General,"Eating Places, Restaurants",GPC
Statement 18/10/2016 - 17/11/2016,C&YPS-Non Delegated,New & Nearly,20/10/2016,155.00,Materials - General,Household Appliance Stores,GPC
Statement 18/10/2016 - 17/11/2016,C&YPS-Non Delegated,New & Nearly,08/11/2016,463.00,Materials - General,Household Appliance Stores,GPC
Statement 18/10/2016 - 17/11/2016,C&YPS-Non Delegated,Nochex-Sensory Educati,07/11/2016,259.07,Other Equipment & Materials - General,Miscellaneous General Merchandise Stores,GPC
Statement 18/10/2016 - 17/11/2016,C&YPS-Non Delegated,Paypal *abakusdirec,20/10/2016,299.00,Other Transfer Payments - Leaving Care Grants,Durable Goods Not Elsewhere Classified,GPC
Statement 18/10/2016 - 17/11/2016,C&YPS-Non Delegated,Paypal *direct2publ,25/10/2016,19.95,Other Equipment & Materials - General,Children's and Infants' Wear Stores,GPC
Statement 18/10/2016 - 17/11/2016,C&YPS-Non Delegated,Post Office Counter,31/10/2016,1.71,Postal Services - General,Postage Stamps,GPC
Statement 18/10/2016 - 17/11/2016,C&YPS-Non Delegated,Post Office Counter,16/11/2016,147.50,Postal Services - General,Postage Stamps,GPC
Statement 18/10/2016 - 17/11/2016,C&YPS-Non Delegated,Poundland Ltd,15/11/2016,7.50,Provisions - General,Discount Stores,GPC
Statement 18/10/2016 - 17/11/2016,C&YPS-Non Delegated,Poundland Ltd 1219,04/11/2016,78.00,Other Equipment & Materials - General,Discount Stores,GPC
Statement 18/10/2016 - 17/11/2016,C&YPS-Non Delegated,Poundland Ltd 1219,16/11/2016,16.05,Other Equipment & Materials - General,Discount Stores,GPC
Statement 18/10/2016 - 17/11/2016,C&YPS-Non Delegated,Poundstretcher 175,17/10/2016,12.31,Provisions - General,"Drapery, Window Coverings, and Upholstery Stores",GPC
Statement 18/10/2016 - 17/11/2016,C&YPS-Non Delegated,Poundstretcher 175,28/10/2016,12.42,Provisions - General,"Drapery, Window Coverings, and Upholstery Stores",GPC
Statement 18/10/2016 - 17/11/2016,C&YPS-Non Delegated,Poundstretcher 175,14/11/2016,10.44,Provisions - General,"Drapery, Window Coverings, and Upholstery Stores",GPC
Statement 18/10/2016 - 17/11/2016,C&YPS-Non Delegated,Pp*8163code,09/11/2016,1.00,Schools Agency staff - Teaching Staff,Professional Services-Not Elsewhere Classified,GPC
Statement 18/10/2016 - 17/11/2016,C&YPS-Non Delegated,Premier Inn 44536195,11/11/2016,97.49,Subsistence - General,PREMIER TRAVEL,GPC
Statement 18/10/2016 - 17/11/2016,C&YPS-Non Delegated,Premier Inn44011950,11/11/2016,43.75,Other Equipment & Materials - General,PREMIER TRAVEL,GPC
Statement 18/10/2016 - 17/11/2016,C&YPS-Non Delegated,Primark,10/11/2016,2.00,Provisions - General,Family Clothing Stores,GPC
Statement 18/10/2016 - 17/11/2016,C&YPS-Non Delegated,Primark,10/11/2016,7.00,Provisions - General,Family Clothing Stores,GPC
Statement 18/10/2016 - 17/11/2016,C&YPS-Non Delegated,Ragland House Cafe And,07/11/2016,20.05,Subsistence - General,"Lodging-Hotels, Motels, Resorts",GPC
Statement 18/10/2016 - 17/11/2016,C&YPS-Non Delegated,Richard And Inger Mee,01/11/2016,5.95,Other Expenditure - General,"Miscellaneous Food Stores-Convenience Stores, Mark",GPC
Statement 18/10/2016 - 17/11/2016,C&YPS-Non Delegated,Sainsburys S/mkt,24/10/2016,2.20,General Equipment - General,"Grocery Stores, Supermarkets",GPC
Statement 18/10/2016 - 17/11/2016,C&YPS-Non Delegated,Sainsburys S/mkt,04/11/2016,18.50,General Equipment - General,"Grocery Stores, Supermarkets",GPC
Statement 18/10/2016 - 17/11/2016,C&YPS-Non Delegated,Sainsburys S/mkt,07/11/2016,14.65,General Equipment - General,"Grocery Stores, Supermarkets",GPC
Statement 18/10/2016 - 17/11/2016,C&YPS-Non Delegated,Sainsburys S/mkt,11/11/2016,9.00,General Equipment - General,"Grocery Stores, Supermarkets",GPC
Statement 18/10/2016 - 17/11/2016,C&YPS-Non Delegated,Sainsburys S/mkt,17/10/2016,5.00,Provisions - General,"Grocery Stores, Supermarkets",GPC
Statement 18/10/2016 - 17/11/2016,C&YPS-Non Delegated,Sainsburys S/mkt,10/11/2016,7.35,Subsistence - General,"Grocery Stores, Supermarkets",GPC
Statement 18/10/2016 - 17/11/2016,C&YPS-Non Delegated,Sainsburys S/mkts,28/10/2016,15.55,General Equipment - General,"Grocery Stores, Supermarkets",GPC
Statement 18/10/2016 - 17/11/2016,C&YPS-Non Delegated,Sainsburys S/mkts,24/10/2016,24.25,Other Expenditure - General,"Grocery Stores, Supermarkets",GPC
Statement 18/10/2016 - 17/11/2016,C&YPS-Non Delegated,Sainsburys S/mkts,02/11/2016,2.85,Other Expenditure - General,"Grocery Stores, Supermarkets",GPC
Statement 18/10/2016 - 17/11/2016,C&YPS-Non Delegated,Sainsburys S/mkts,11/11/2016,11.00,Other Expenditure - General,"Grocery Stores, Supermarkets",GPC
Statement 18/10/2016 - 17/11/2016,C&YPS-Non Delegated,Sainsburys S/mkts,18/10/2016,23.25,Provisions - General,"Grocery Stores, Supermarkets",GPC
Statement 18/10/2016 - 17/11/2016,C&YPS-Non Delegated,Sainsburys S/mkts,27/10/2016,13.00,Provisions - General,"Grocery Stores, Supermarkets",GPC
Statement 18/10/2016 - 17/11/2016,C&YPS-Non Delegated,Sainsburys S/mkts,04/11/2016,8.15,Provisions - General,"Grocery Stores, Supermarkets",GPC
Statement 18/10/2016 - 17/11/2016,C&YPS-Non Delegated,Shoe Zone Ltd,08/11/2016,14.99,Provisions - General,Shoe Stores,GPC
Statement 18/10/2016 - 17/11/2016,C&YPS-Non Delegated,Sofa,07/11/2016,120.00,Materials - General,"Furniture, Home Furnishings and Equipment Stores,",GPC
Statement 18/10/2016 - 17/11/2016,C&YPS-Non Delegated,Sportsdirect.Com,28/10/2016,45.67,Provisions - General,Sporting Goods Stores,GPC
Statement 18/10/2016 - 17/11/2016,C&YPS-Non Delegated,Staples Uk,16/11/2016,6.97,General Equipment - General,"Stationery, Office, and School Supply Stores",GPC
Statement 18/10/2016 - 17/11/2016,C&YPS-Non Delegated,Staples Uk,08/11/2016,14.96,Other Equipment & Materials - General,"Stationery, Office, and School Supply Stores",GPC
Statement 18/10/2016 - 17/11/2016,C&YPS-Non Delegated,Staples Uk,31/10/2016,20.82,Stationery - General,"Stationery, Office, and School Supply Stores",GPC
Statement 18/10/2016 - 17/11/2016,C&YPS-Non Delegated,Starbucks,24/10/2016,5.90,Other Expenditure - General,Fast-Food Restaurants (Quick Payment Service Pilot,GPC
Statement 18/10/2016 - 17/11/2016,C&YPS-Non Delegated,Starbucks,25/10/2016,5.60,Other Expenditure - General,Fast-Food Restaurants (Quick Payment Service Pilot,GPC
Statement 18/10/2016 - 17/11/2016,C&YPS-Non Delegated,Stoneycroft Hotel Ltd,11/11/2016,132.00,Subsistence - General,"Lodging-Hotels, Motels, Resorts",GPC
Statement 18/10/2016 - 17/11/2016,C&YPS-Non Delegated,Stoneycroft Hotel Ltd,16/11/2016,88.00,Subsistence - General,"Lodging-Hotels, Motels, Resorts",GPC
Statement 18/10/2016 - 17/11/2016,C&YPS-Non Delegated,Sugar & Ice,07/11/2016,8.50,General Equipment - General,Miscellaneous and Specialty Retail Stores,GPC
Statement 18/10/2016 - 17/11/2016,C&YPS-Non Delegated,Tall Chimney,11/11/2016,29.94,Subsistence - General,"Drinking Places (Alcoholic Beverages)-Bars, Tavern",GPC
Statement 18/10/2016 - 17/11/2016,C&YPS-Non Delegated,Tesco Store 2846,24/10/2016,16.99,Other Expenditure - General,"Grocery Stores, Supermarkets",GPC
Statement 18/10/2016 - 17/11/2016,C&YPS-Non Delegated,Tesco Store 2849,28/10/2016,8.89,General Equipment - General,"Grocery Stores, Supermarkets",GPC
Statement 18/10/2016 - 17/11/2016,C&YPS-Non Delegated,Tesco Store 2849,20/10/2016,33.99,Other Expenditure - General,"Grocery Stores, Supermarkets",GPC
Statement 18/10/2016 - 17/11/2016,C&YPS-Non Delegated,Tesco Store 2849,04/11/2016,33.98,Other Expenditure - General,"Grocery Stores, Supermarkets",GPC
Statement 18/10/2016 - 17/11/2016,C&YPS-Non Delegated,Tesco Store 2849,16/11/2016,39.84,Other Expenditure - General,"Grocery Stores, Supermarkets",GPC
Statement 18/10/2016 - 17/11/2016,C&YPS-Non Delegated,Tesco Store 2849,31/10/2016,16.99,Provisions - General,"Grocery Stores, Supermarkets",GPC
Statement 18/10/2016 - 17/11/2016,C&YPS-Non Delegated,Tesco Store 2849,15/11/2016,19.30,Provisions - General,"Grocery Stores, Supermarkets",GPC
Statement 18/10/2016 - 17/11/2016,C&YPS-Non Delegated,Tesco Store 2886,09/11/2016,30.08,Provisions - General,"Grocery Stores, Supermarkets",GPC
Statement 18/10/2016 - 17/11/2016,C&YPS-Non Delegated,Tesco Stores 2878,01/11/2016,3.55,Provisions - General,"Grocery Stores, Supermarkets",GPC
Statement 18/10/2016 - 17/11/2016,C&YPS-Non Delegated,Tesco Stores 5182,15/11/2016,43.86,General Equipment - General,"Grocery Stores, Supermarkets",GPC
Statement 18/10/2016 - 17/11/2016,C&YPS-Non Delegated,Tesco Stores 6135,20/10/2016,149.00,Materials - General,"Grocery Stores, Supermarkets",GPC
Statement 18/10/2016 - 17/11/2016,C&YPS-Non Delegated,Tesco Stores 6135,16/11/2016,149.00,Materials - General,"Grocery Stores, Supermarkets",GPC
Statement 18/10/2016 - 17/11/2016,C&YPS-Non Delegated,Tfh Special Needs,07/11/2016,19.25,Other Equipment & Materials - General,"Hobby, Toy, and Game Shops",GPC
Statement 18/10/2016 - 17/11/2016,C&YPS-Non Delegated,The Book People,25/10/2016,37.95,Books - General,Book Stores,GPC
Statement 18/10/2016 - 17/11/2016,C&YPS-Non Delegated,The Book People,10/11/2016,56.00,Books - General,Book Stores,GPC
Statement 18/10/2016 - 17/11/2016,C&YPS-Non Delegated,The Book People,10/11/2016,34.95,Books - General,Book Stores,GPC
Statement 18/10/2016 - 17/11/2016,C&YPS-Non Delegated,The Range,07/11/2016,36.98,Other Equipment & Materials - General,Department Stores,GPC
Statement 18/10/2016 - 17/11/2016,C&YPS-Non Delegated,The Range,16/11/2016,12.00,Stationery - General,Department Stores,GPC
Statement 18/10/2016 - 17/11/2016,C&YPS-Non Delegated,The Street Factory,10/11/2016,40.00,Public Transport -  Staff - General,"Membership Clubs (Sports, Recreation, Athletic), C",GPC
Statement 18/10/2016 - 17/11/2016,C&YPS-Non Delegated,Totalsensory.Co.Uk,07/11/2016,75.00,Other Equipment & Materials - General,"Hearing Aids-Sales, Service, Supply Stores",GPC
Statement 18/10/2016 - 17/11/2016,C&YPS-Non Delegated,Trainline,02/11/2016,172.38,Casual/Essential - General,Passenger Railways,GPC
Statement 18/10/2016 - 17/11/2016,C&YPS-Non Delegated,Trainline.Com Ltd,21/10/2016,47.60,Client/Volunteers - General,Passenger Railways,GPC
Statement 18/10/2016 - 17/11/2016,C&YPS-Non Delegated,Tvlicensing.Co.Uk,01/11/2016,145.50,Other Expenditure - General,"Management, Consulting and Public Relations Servic",GPC
Statement 18/10/2016 - 17/11/2016,C&YPS-Non Delegated,Tvlicensing.Co.Uk,04/11/2016,145.50,Schools Agency staff - Teaching Staff,"Management, Consulting and Public Relations Servic",GPC
Statement 18/10/2016 - 17/11/2016,C&YPS-Non Delegated,Tvlicensing.Co.Uk,04/11/2016,145.50,Schools Agency staff - Teaching Staff,"Management, Consulting and Public Relations Servic",GPC
Statement 18/10/2016 - 17/11/2016,C&YPS-Non Delegated,Upt - Nottinghamcity Cou,01/11/2016,3.00,Schools Agency staff - Teaching Staff,Professional Services-Not Elsewhere Classified,GPC
Statement 18/10/2016 - 17/11/2016,C&YPS-Non Delegated,Upt - Nottinghamcity Cou,08/11/2016,4.00,Schools Agency staff - Teaching Staff,Professional Services-Not Elsewhere Classified,GPC
Statement 18/10/2016 - 17/11/2016,C&YPS-Non Delegated,Waitrose 141,06/11/2016,15.28,Provisions - General,"Grocery Stores, Supermarkets",GPC
Statement 18/10/2016 - 17/11/2016,C&YPS-Non Delegated,Waitrose 728,28/10/2016,1.00,Provisions - General,"Grocery Stores, Supermarkets",GPC
Statement 18/10/2016 - 17/11/2016,C&YPS-Non Delegated,Waitrose 728,15/11/2016,1.50,Provisions - General,"Grocery Stores, Supermarkets",GPC
Statement 18/10/2016 - 17/11/2016,C&YPS-Non Delegated,Welcome Break,17/10/2016,59.00,Other Transfer Payments - Sector 17- Other,"Lodging-Hotels, Motels, Resorts",GPC
Statement 18/10/2016 - 17/11/2016,C&YPS-Non Delegated,Wh Smith,10/11/2016,48.36,Stationery - General,News Dealers and Newsstands,GPC
Statement 18/10/2016 - 17/11/2016,C&YPS-Non Delegated,Wilko Retail Limit,17/10/2016,17.20,Cleaning Materials - General,Household Appliance Stores,GPC
Statement 18/10/2016 - 17/11/2016,C&YPS-Non Delegated,Wilko Retail Limit,28/10/2016,11.18,Cleaning Materials - General,Household Appliance Stores,GPC
Statement 18/10/2016 - 17/11/2016,C&YPS-Non Delegated,Wilko Retail Limit,08/11/2016,14.05,Cleaning Materials - General,Household Appliance Stores,GPC
Statement 18/10/2016 - 17/11/2016,C&YPS-Non Delegated,Wilko Retail Limit,14/11/2016,13.08,Cleaning Materials - General,Household Appliance Stores,GPC
Statement 18/10/2016 - 17/11/2016,C&YPS-Non Delegated,Wilko Retail Limit,29/10/2016,12.25,Other Equipment & Materials - General,Household Appliance Stores,GPC
Statement 18/10/2016 - 17/11/2016,C&YPS-Non Delegated,Wilko Retail Limit,15/11/2016,7.94,Other Equipment & Materials - General,Household Appliance Stores,GPC
Statement 18/10/2016 - 17/11/2016,C&YPS-Non Delegated,Wilko Retail Limit,15/11/2016,40.70,Other Equipment & Materials - General,Household Appliance Stores,GPC
Statement 18/10/2016 - 17/11/2016,C&YPS-Non Delegated,Wilko Retail Limit,14/11/2016,1.85,Personal Needs of Clients - General,Household Appliance Stores,GPC
Statement 18/10/2016 - 17/11/2016,C&YPS-Non Delegated,Wilko Retail Limit,10/11/2016,28.70,Provisions - General,Household Appliance Stores,GPC
Statement 18/10/2016 - 17/11/2016,C&YPS-Non Delegated,Wilko Retail Limit,16/11/2016,12.25,Provisions - General,Household Appliance Stores,GPC
Statement 18/10/2016 - 17/11/2016,C&YPS-Non Delegated,Wilko.Com,14/11/2016,28.33,Other Equipment & Materials - General,Household Appliance Stores,GPC
Statement 18/10/2016 - 17/11/2016,C&YPS-Non Delegated,Wm Morrison 054,14/11/2016,28.50,Other Expenditure - General,"Grocery Stores, Supermarkets",GPC
Statement 18/10/2016 - 17/11/2016,C&YPS-Non Delegated,Wm Morrison 054,08/11/2016,60.33,Provisions - General,"Grocery Stores, Supermarkets",GPC
Statement 18/10/2016 - 17/11/2016,C&YPS-Non Delegated,Www.Annarbor.Co.Uk,09/11/2016,96.00,General Equipment - General,Catalog Merchants,GPC
Statement 18/10/2016 - 17/11/2016,C&YPS-Non Delegated,Www.C2uoffice.Co.U,20/10/2016,30.20,Materials - General,"Stationery, Office, and School Supply Stores",GPC
Statement 18/10/2016 - 17/11/2016,C&YPS-Non Delegated,Www.C2uoffice.Co.U,07/11/2016,89.05,Stationery - General,"Stationery, Office, and School Supply Stores",GPC
Statement 18/10/2016 - 17/11/2016,C&YPS-Non Delegated,Www.Citizencard.Com,20/10/2016,30.00,Other Transfer Payments - Leaving Care Grants,Government Services-Not Elsewhere Classified,GPC
Statement 18/10/2016 - 17/11/2016,C&YPS-Non Delegated,Www.Coram.Org.Uk,17/10/2016,19.90,Other Transfer Payments - Section 23 Grants,Charitable and Social Service Organizations,GPC
Statement 18/10/2016 - 17/11/2016,C&YPS-Non Delegated,Www.Evaq8.Co.Uk,09/11/2016,14.30,Other Expenditure - General,Sporting Goods Stores,GPC
Statement 18/10/2016 - 17/11/2016,C&YPS-Non Delegated,Www.Lake-Music.Com,20/10/2016,77.12,Materials - General,Record Shops,GPC
Statement 18/10/2016 - 17/11/2016,C&YPS-Non Delegated,Www.Milkandmore.Co.Uk,24/10/2016,12.48,Other Expenditure - General,Continuity/Subscription Merchants,GPC
Statement 18/10/2016 - 17/11/2016,C&YPS-Non Delegated,Www.Milkandmore.Co.Uk,01/11/2016,14.04,Provisions - General,Continuity/Subscription Merchants,GPC
Statement 18/10/2016 - 17/11/2016,C&YPS-Non Delegated,Www.Milkandmore.Co.Uk,01/11/2016,11.75,Provisions - General,Continuity/Subscription Merchants,GPC
Statement 18/10/2016 - 17/11/2016,C&YPS-Non Delegated,Www.Milkandmore.Co.Uk,01/11/2016,6.24,Provisions - General,Continuity/Subscription Merchants,GPC
Statement 18/10/2016 - 17/11/2016,C&YPS-Non Delegated,Www.Pecs.Org.Uk,24/10/2016,5.98,General Equipment - General,Schools and Educational Services-Not Elsewhere Cla,GPC
Statement 18/10/2016 - 17/11/2016,C&YPS-Non Delegated,Www.Pecs.Org.Uk,23/10/2016,33.90,Training Expenses - General,Schools and Educational Services-Not Elsewhere Cla,GPC
Statement 18/10/2016 - 17/11/2016,C&YPS-Non Delegated,Www.Staples.Co.Uk,05/11/2016,34.99,Other Equipment & Materials - General,"Stationery, Office, and School Supply Stores",GPC
Statement 18/10/2016 - 17/11/2016,C&YPS-Non Delegated,Information not available ,31/10/2016,17.39,Other Expenditure - General,Misc-Unknown,GPC
Statement 18/10/2016 - 17/11/2016,C&YPS-Schools,Aldi,25/10/2016,40.75,Materials - General,"Grocery Stores, Supermarkets",GPC
Statement 18/10/2016 - 17/11/2016,C&YPS-Schools,Aldi,01/11/2016,0.45,Materials - General,"Grocery Stores, Supermarkets",GPC
Statement 18/10/2016 - 17/11/2016,C&YPS-Schools,Aldi,01/11/2016,40.24,Materials - General,"Grocery Stores, Supermarkets",GPC
Statement 18/10/2016 - 17/11/2016,C&YPS-Schools,Aldi,09/11/2016,45.04,Materials - General,"Grocery Stores, Supermarkets",GPC
Statement 18/10/2016 - 17/11/2016,C&YPS-Schools,Amazon UK Marketplace,25/10/2016,3.65,Books - General,Book Stores,GPC
Statement 18/10/2016 - 17/11/2016,C&YPS-Schools,Amazon UK Marketplace,25/10/2016,23.54,Books - General,Book Stores,GPC
Statement 18/10/2016 - 17/11/2016,C&YPS-Schools,Amazon UK Marketplace,08/11/2016,1.51,Books - General,Book Stores,GPC
Statement 18/10/2016 - 17/11/2016,C&YPS-Schools,Amazon UK Marketplace,15/11/2016,19.35,Books - General,Book Stores,GPC
Statement 18/10/2016 - 17/11/2016,C&YPS-Schools,Amazon UK Marketplace,28/10/2016,-1.75,Materials - General,Miscellaneous and Specialty Retail Stores,GPC
Statement 18/10/2016 - 17/11/2016,C&YPS-Schools,Amazon UK Marketplace,10/11/2016,10.99,Materials - General,Miscellaneous and Specialty Retail Stores,GPC
Statement 18/10/2016 - 17/11/2016,C&YPS-Schools,Amazon UK Marketplace,15/11/2016,7.40,Materials - General,Miscellaneous and Specialty Retail Stores,GPC
Statement 18/10/2016 - 17/11/2016,C&YPS-Schools,Argos Ltd,05/11/2016,40.00,Materials - General,Discount Stores,GPC
Statement 18/10/2016 - 17/11/2016,C&YPS-Schools,Argos Retail Group,24/10/2016,48.26,Materials - General,Discount Stores,GPC
Statement 18/10/2016 - 17/11/2016,C&YPS-Schools,Espo,27/10/2016,37.21,Other Expenditure - General,Government Services-Not Elsewhere Classified,GPC
Statement 18/10/2016 - 17/11/2016,C&YPS-Schools,Espo,09/11/2016,-9.05,Other Expenditure - General,Government Services-Not Elsewhere Classified,GPC
Statement 18/10/2016 - 17/11/2016,C&YPS-Schools,Espo,16/11/2016,240.64,Other Expenditure - General,Government Services-Not Elsewhere Classified,GPC
Statement 18/10/2016 - 17/11/2016,C&YPS-Schools,Lutterworth Cycle Cent,24/10/2016,136.00,Materials - General,Bicycle Shops-Sales and Service,GPC
Statement 18/10/2016 - 17/11/2016,C&YPS-Schools,Palmers Garden Ctr,10/11/2016,12.97,Materials - General,"Lawn and Garden Supply Stores, Nurseries",GPC
Statement 18/10/2016 - 17/11/2016,C&YPS-Schools,Pets At Home,17/10/2016,31.00,Materials - General,Pet Shops-Pet Food and Supplies,GPC
Statement 18/10/2016 - 17/11/2016,C&YPS-Schools,Post Office Counter,10/11/2016,165.16,Postal Services - General,Postage Stamps,GPC
Statement 18/10/2016 - 17/11/2016,C&YPS-Schools,Tesco Stores 5182,11/11/2016,34.09,Materials - General,"Grocery Stores, Supermarkets",GPC
Statement 18/10/2016 - 17/11/2016,C&YPS-Schools,Wh Smith,05/11/2016,20.00,Newspapers & Periodicals - General,News Dealers and Newsstands,GPC
Statement 18/10/2016 - 17/11/2016,C&YPS-Schools,Www.Bookset.Co.Uk,14/11/2016,24.48,Books - General,Book Stores,GPC
Statement 18/10/2016 - 17/11/2016,C&YPS-Schools,Www.Schoolstickers.Co.,24/10/2016,14.34,Printing - General,Miscellaneous Publishing and  Printing,GPC
Statement 18/10/2016 - 17/11/2016,Chief Executive,650431,01/11/2016,4.00,Casual/Essential - General,Automobile Parking Lots and Garages,GPC
Statement 18/10/2016 - 17/11/2016,Chief Executive,Amazon UK Marketplace,17/10/2016,1.75,Materials - General,Miscellaneous and Specialty Retail Stores,GPC
Statement 18/10/2016 - 17/11/2016,Chief Executive,Amazon UK Marketplace,09/11/2016,1.78,Other Equipment & Materials - General,Miscellaneous and Specialty Retail Stores,GPC
Statement 18/10/2016 - 17/11/2016,Chief Executive,Amazon UK Marketplace,18/10/2016,20.92,Other Expenditure - General,Miscellaneous and Specialty Retail Stores,GPC
Statement 18/10/2016 - 17/11/2016,Chief Executive,Amazon UK Marketplace,28/10/2016,14.00,Stationery - General,Book Stores,GPC
Statement 18/10/2016 - 17/11/2016,Chief Executive,Amazon UK Marketplace,28/10/2016,12.10,Stationery - General,Miscellaneous and Specialty Retail Stores,GPC
Statement 18/10/2016 - 17/11/2016,Chief Executive,Amazon UK Marketplace,02/11/2016,19.22,Stationery - General,Miscellaneous and Specialty Retail Stores,GPC
Statement 18/10/2016 - 17/11/2016,Chief Executive,Amazon UK Marketplace,10/11/2016,13.12,Stationery - General,Book Stores,GPC
Statement 18/10/2016 - 17/11/2016,Chief Executive,Amazon UK Retail Amazon.C,14/11/2016,17.97,Other Expenditure - General,Miscellaneous and Specialty Retail Stores,GPC
Statement 18/10/2016 - 17/11/2016,Chief Executive,B & Q 1012,11/11/2016,123.36,R & M of Buildings - General,"Building Materials, Lumber Stores",GPC
Statement 18/10/2016 - 17/11/2016,Chief Executive,Cartridge Save,02/11/2016,280.17,IT Equipment - General,"Stationary, Office Supplies, Printing and Writing",GPC
Statement 18/10/2016 - 17/11/2016,Chief Executive,Central Eng Coop,16/11/2016,31.98,Materials - General,Department Stores,GPC
Statement 18/10/2016 - 17/11/2016,Chief Executive,Charnwood Borough Counci,27/10/2016,2.20,Casual/Essential - General,Automobile Parking Lots and Garages,GPC
Statement 18/10/2016 - 17/11/2016,Chief Executive,Charnwood Borough Counci,03/11/2016,2.20,Casual/Essential - General,Automobile Parking Lots and Garages,GPC
Statement 18/10/2016 - 17/11/2016,Chief Executive,Cieh,19/10/2016,279.00,Training Expenses - General,Membership Organizations-Not Elsewhere Classified,GPC
Statement 18/10/2016 - 17/11/2016,Chief Executive,Companies House,03/11/2016,13.00,Other Expenditure - General,Government Services-Not Elsewhere Classified,GPC
Statement 18/10/2016 - 17/11/2016,Chief Executive,Eb *nevill Holt Opera,28/10/2016,52.99,Hospitality - General,Business Services-Not Elsewhere Classified,GPC
Statement 18/10/2016 - 17/11/2016,Chief Executive,Food Safety Direct Ltd,18/10/2016,44.50,Operational Equipment - General,Miscellaneous and Specialty Retail Stores,GPC
Statement 18/10/2016 - 17/11/2016,Chief Executive,Halfords 0813,16/11/2016,18.33,Other Expenditure - General,Bicycle Shops-Sales and Service,GPC
Statement 18/10/2016 - 17/11/2016,Chief Executive,Highsoft Usd,27/10/2016,321.04,IT Equipment - General,"Computers, Computer Peripheral Equipment, Software",GPC
Statement 18/10/2016 - 17/11/2016,Chief Executive,Lion Safety,17/10/2016,143.00,Other Expenditure - General,Men's and Boy's Clothing and Furnishings Store,GPC
Statement 18/10/2016 - 17/11/2016,Chief Executive,Morgans Locksmiths,19/10/2016,13.34,Operational Equipment - General,"Shoe Repair Shops, Shoe Shine Parlors, Hat Cleanin",GPC
Statement 18/10/2016 - 17/11/2016,Chief Executive,Ncp Limited,18/10/2016,12.00,Casual/Essential - General,Automobile Parking Lots and Garages,GPC
Statement 18/10/2016 - 17/11/2016,Chief Executive,Optimal Workshop,04/11/2016,80.53,IT Equipment - Software,Computer Software Stores,GPC
Statement 18/10/2016 - 17/11/2016,Chief Executive,Paypal *adamapple,14/11/2016,56.56,Schools Agency staff - Teaching Staff,Professional Services-Not Elsewhere Classified,GPC
Statement 18/10/2016 - 17/11/2016,Chief Executive,Paypal *cdsleevesru,14/11/2016,42.44,Materials - General,"Artist Supply Stores, Craft Shops",GPC
Statement 18/10/2016 - 17/11/2016,Chief Executive,Paypal *kovamanufac,21/10/2016,523.57,Other Expenditure - General,Business Services-Not Elsewhere Classified,GPC
Statement 18/10/2016 - 17/11/2016,Chief Executive,Paypal *tamper Evid,18/10/2016,130.00,Operational Equipment - General,Professional Services-Not Elsewhere Classified,GPC
Statement 18/10/2016 - 17/11/2016,Chief Executive,Rbi Qss Subs,14/10/2016,80.00,Subscriptions - General,"Books, Periodicals, and Newspapers",GPC
Statement 18/10/2016 - 17/11/2016,Chief Executive,Royal Mail,10/11/2016,54.15,Postal Services - General,Postage Stamps,GPC
Statement 18/10/2016 - 17/11/2016,Chief Executive,Tfl Road Charge,01/11/2016,11.50,Other Expenditure - General,"Bridge and Road Fees, Tolls",GPC
Statement 18/10/2016 - 17/11/2016,Chief Executive,Westminster Forum,08/11/2016,210.00,Conference - General,"Management, Consulting and Public Relations Servic",GPC
Statement 18/10/2016 - 17/11/2016,Chief Executive,Www.Apea.Org.Uk,09/11/2016,50.00,Subscriptions - General,Chemicals and Allied Products Not Elsewhere Classi,GPC
Statement 18/10/2016 - 17/11/2016,Chief Executive,Information not available ,28/10/2016,8.83,IT Equipment - General,Misc-Unknown,GPC
Statement 18/10/2016 - 17/11/2016,Chief Executive,Information not available ,04/11/2016,2.21,IT Equipment - Software,Misc-Unknown,GPC
Statement 18/10/2016 - 17/11/2016,Corporate Resources,Abtac Limited,19/10/2016,165.00,Training Expenses - General,Professional Services-Not Elsewhere Classified,GPC
Statement 18/10/2016 - 17/11/2016,Corporate Resources,Academy High Achievers,11/11/2016,1099.17,Training Expenses - General,Business and Secretarial Schools,GPC
Statement 18/10/2016 - 17/11/2016,Corporate Resources,Adobe Pr Creativecld,01/11/2016,266.76,IT Equipment - Software,Computer Software Stores,GPC
Statement 18/10/2016 - 17/11/2016,Corporate Resources,Amazon UK Marketplace,18/10/2016,11.48,Books - General,Book Stores,GPC
Statement 18/10/2016 - 17/11/2016,Corporate Resources,Amazon UK Marketplace,26/10/2016,19.57,Books - General,Book Stores,GPC
Statement 18/10/2016 - 17/11/2016,Corporate Resources,Amazon UK Marketplace,19/10/2016,42.25,IT Equipment - Purchase - Hardware,Miscellaneous and Specialty Retail Stores,GPC
Statement 18/10/2016 - 17/11/2016,Corporate Resources,Amazon UK Marketplace,14/11/2016,21.99,IT Equipment - Purchase - Hardware,Miscellaneous and Specialty Retail Stores,GPC
Statement 18/10/2016 - 17/11/2016,Corporate Resources,Amazon UK Marketplace,15/11/2016,29.95,IT Equipment - Purchase - Hardware,Book Stores,GPC
Statement 18/10/2016 - 17/11/2016,Corporate Resources,Amazon UK Marketplace,15/11/2016,59.90,IT Equipment - Purchase - Hardware,Miscellaneous and Specialty Retail Stores,GPC
Statement 18/10/2016 - 17/11/2016,Corporate Resources,Amazon UK Marketplace,10/11/2016,117.98,IT Equipment - Repairs,Book Stores,GPC
Statement 18/10/2016 - 17/11/2016,Corporate Resources,Amazon UK Marketplace,17/10/2016,21.70,Materials - General,Miscellaneous and Specialty Retail Stores,GPC
Statement 18/10/2016 - 17/11/2016,Corporate Resources,Amazon UK Marketplace,19/10/2016,254.54,Materials - General,Miscellaneous and Specialty Retail Stores,GPC
Statement 18/10/2016 - 17/11/2016,Corporate Resources,Amazon UK Marketplace,09/11/2016,349.99,Materials - General,Miscellaneous and Specialty Retail Stores,GPC
Statement 18/10/2016 - 17/11/2016,Corporate Resources,Amazon UK Marketplace,09/11/2016,27.63,Materials - General,Miscellaneous and Specialty Retail Stores,GPC
Statement 18/10/2016 - 17/11/2016,Corporate Resources,Amazon UK Marketplace,11/11/2016,28.74,Materials - General,Miscellaneous and Specialty Retail Stores,GPC
Statement 18/10/2016 - 17/11/2016,Corporate Resources,Amazon UK Marketplace,14/11/2016,48.50,Materials - General,Miscellaneous and Specialty Retail Stores,GPC
Statement 18/10/2016 - 17/11/2016,Corporate Resources,Amazon UK Marketplace,14/11/2016,60.06,Materials - General,Miscellaneous and Specialty Retail Stores,GPC
Statement 18/10/2016 - 17/11/2016,Corporate Resources,Amazon UK Marketplace,15/11/2016,7.78,Materials - General,Miscellaneous and Specialty Retail Stores,GPC
Statement 18/10/2016 - 17/11/2016,Corporate Resources,Amazon UK Marketplace,15/11/2016,91.96,Materials - General,Miscellaneous and Specialty Retail Stores,GPC
Statement 18/10/2016 - 17/11/2016,Corporate Resources,Amazon UK Marketplace,09/11/2016,99.99,Other Services - General,Miscellaneous and Specialty Retail Stores,GPC
Statement 18/10/2016 - 17/11/2016,Corporate Resources,Amazon UK Marketplace,20/10/2016,34.82,Protective Clothing & Uniforms - General,Miscellaneous and Specialty Retail Stores,GPC
Statement 18/10/2016 - 17/11/2016,Corporate Resources,Amazon UK Marketplace,29/10/2016,57.94,Protective Clothing & Uniforms - General,Book Stores,GPC
Statement 18/10/2016 - 17/11/2016,Corporate Resources,Amazon UK Marketplace,07/11/2016,89.99,Protective Clothing & Uniforms - General,Miscellaneous and Specialty Retail Stores,GPC
Statement 18/10/2016 - 17/11/2016,Corporate Resources,Amazon UK Marketplace,14/11/2016,8.82,Stationery - General,Book Stores,GPC
Statement 18/10/2016 - 17/11/2016,Corporate Resources,Amazon UK Marketplace,26/10/2016,5.75,Telephones - Mobile Phones,Miscellaneous and Specialty Retail Stores,GPC
Statement 18/10/2016 - 17/11/2016,Corporate Resources,Amazon UK Retail,12/11/2016,19.29,IT Equipment - General,Direct Marketers - Other,GPC
Statement 18/10/2016 - 17/11/2016,Corporate Resources,Amazon UK Retail,18/10/2016,47.99,Other Expenditure - General,Direct Marketers - Other,GPC
Statement 18/10/2016 - 17/11/2016,Corporate Resources,Amazon UK Retail,18/10/2016,16.27,Other Expenditure - General,Direct Marketers - Other,GPC
Statement 18/10/2016 - 17/11/2016,Corporate Resources,Amazon UK Retail,18/10/2016,16.28,Other Expenditure - General,Direct Marketers - Other,GPC
Statement 18/10/2016 - 17/11/2016,Corporate Resources,Amazon UK Retail,18/10/2016,16.28,Other Expenditure - General,Direct Marketers - Other,GPC
Statement 18/10/2016 - 17/11/2016,Corporate Resources,Amazon UK Retail,07/11/2016,3.14,Other Expenditure - General,Direct Marketers - Other,GPC
Statement 18/10/2016 - 17/11/2016,Corporate Resources,Amazon UK Retail,09/11/2016,14.49,Other Expenditure - General,Direct Marketers - Other,GPC
Statement 18/10/2016 - 17/11/2016,Corporate Resources,Amazon UK Retail,09/11/2016,14.50,Other Expenditure - General,Direct Marketers - Other,GPC
Statement 18/10/2016 - 17/11/2016,Corporate Resources,Amazon UK Retail,10/11/2016,14.50,Other Expenditure - General,Direct Marketers - Other,GPC
Statement 18/10/2016 - 17/11/2016,Corporate Resources,Amazon UK Retail,11/11/2016,55.80,Other Expenditure - General,Direct Marketers - Other,GPC
Statement 18/10/2016 - 17/11/2016,Corporate Resources,Amazon UK Retail,13/11/2016,11.91,Other Expenditure - General,Direct Marketers - Other,GPC
Statement 18/10/2016 - 17/11/2016,Corporate Resources,Amazon UK Retail,12/11/2016,19.30,Telephones - Mobile Phones,Direct Marketers - Other,GPC
Statement 18/10/2016 - 17/11/2016,Corporate Resources,Amazon UK Retail Amazon.C,18/10/2016,16.28,Materials - General,Miscellaneous and Specialty Retail Stores,GPC
Statement 18/10/2016 - 17/11/2016,Corporate Resources,Amazon UK Retail Amazon.C,24/10/2016,4.99,Materials - General,Miscellaneous and Specialty Retail Stores,GPC
Statement 18/10/2016 - 17/11/2016,Corporate Resources,Amazon UK Retail Amazon.C,09/11/2016,14.49,Materials - General,Miscellaneous and Specialty Retail Stores,GPC
Statement 18/10/2016 - 17/11/2016,Corporate Resources,Amazon UK Retail Amazon.C,09/11/2016,14.50,Materials - General,Miscellaneous and Specialty Retail Stores,GPC
Statement 18/10/2016 - 17/11/2016,Corporate Resources,Amazon UK Retail Amazon.C,10/11/2016,14.49,Materials - General,Miscellaneous and Specialty Retail Stores,GPC
Statement 18/10/2016 - 17/11/2016,Corporate Resources,Amazon UK Retail Amazon.C,10/11/2016,14.50,Materials - General,Miscellaneous and Specialty Retail Stores,GPC
Statement 18/10/2016 - 17/11/2016,Corporate Resources,Amazon UK Retail Amazon.C,10/11/2016,14.49,Materials - General,Miscellaneous and Specialty Retail Stores,GPC
Statement 18/10/2016 - 17/11/2016,Corporate Resources,Amazon UK Retail Amazon.C,10/11/2016,14.50,Materials - General,Miscellaneous and Specialty Retail Stores,GPC
Statement 18/10/2016 - 17/11/2016,Corporate Resources,Amazon UK Retail Amazon.C,10/11/2016,14.50,Materials - General,Miscellaneous and Specialty Retail Stores,GPC
Statement 18/10/2016 - 17/11/2016,Corporate Resources,Amazon UK Retail Amazon.C,10/11/2016,20.82,Materials - General,Miscellaneous and Specialty Retail Stores,GPC
Statement 18/10/2016 - 17/11/2016,Corporate Resources,Amazon UK Retail Amazon.C,12/11/2016,5.70,Materials - General,Miscellaneous and Specialty Retail Stores,GPC
Statement 18/10/2016 - 17/11/2016,Corporate Resources,Amazon UK Retail Amazon.C,12/11/2016,10.63,Materials - General,Miscellaneous and Specialty Retail Stores,GPC
Statement 18/10/2016 - 17/11/2016,Corporate Resources,Amazon UK Retail Amazon.C,12/11/2016,14.74,Materials - General,Miscellaneous and Specialty Retail Stores,GPC
Statement 18/10/2016 - 17/11/2016,Corporate Resources,Amazon UK Retail Amazon.C,14/11/2016,29.85,Materials - General,Miscellaneous and Specialty Retail Stores,GPC
Statement 18/10/2016 - 17/11/2016,Corporate Resources,Amazon UK Retail Amazon.C,08/11/2016,10.68,Training Expenses - General,Miscellaneous and Specialty Retail Stores,GPC
Statement 18/10/2016 - 17/11/2016,Corporate Resources,Arco Ltd,24/10/2016,117.30,Other Services - General,Industrial Supplies Not Elsewhere Classified,GPC
Statement 18/10/2016 - 17/11/2016,Corporate Resources,Asda Stores 4477,19/10/2016,17.01,Other Expenditure - General,"Grocery Stores, Supermarkets",GPC
Statement 18/10/2016 - 17/11/2016,Corporate Resources,Asda Stores 4477,21/10/2016,0.75,Other Expenditure - General,"Grocery Stores, Supermarkets",GPC
Statement 18/10/2016 - 17/11/2016,Corporate Resources,Asda Stores 4477,03/11/2016,12.19,Other Expenditure - General,"Grocery Stores, Supermarkets",GPC
Statement 18/10/2016 - 17/11/2016,Corporate Resources,Asda Stores 4477,09/11/2016,0.99,Other Expenditure - General,"Grocery Stores, Supermarkets",GPC
Statement 18/10/2016 - 17/11/2016,Corporate Resources,Asda Stores 4477,09/11/2016,5.84,Other Expenditure - General,"Grocery Stores, Supermarkets",GPC
Statement 18/10/2016 - 17/11/2016,Corporate Resources,Asda Stores 4477,15/11/2016,0.99,Other Expenditure - General,"Grocery Stores, Supermarkets",GPC
Statement 18/10/2016 - 17/11/2016,Corporate Resources,Autogrill Leon Kingscross,08/11/2016,6.95,Subsistence - General,"Eating Places, Restaurants",GPC
Statement 18/10/2016 - 17/11/2016,Corporate Resources,B & Q 1012,14/11/2016,30.56,R & M of Buildings - General,"Building Materials, Lumber Stores",GPC
Statement 18/10/2016 - 17/11/2016,Corporate Resources,Blorenge Guest House,18/10/2016,136.67,Training Expenses - General,"Lodging-Hotels, Motels, Resorts",GPC
Statement 18/10/2016 - 17/11/2016,Corporate Resources,Bus Ticket Or Emt Wifi,07/11/2016,15.00,Subsistence - General,"Bus Lines, Charters, Tour Buses",GPC
Statement 18/10/2016 - 17/11/2016,Corporate Resources,Camden Food Co Barrier,07/11/2016,7.19,Subsistence - General,Fast-Food Restaurants (Quick Payment Service Pilot,GPC
Statement 18/10/2016 - 17/11/2016,Corporate Resources,Campanile Glasgow,06/11/2016,222.50,Training Expenses - General,"Lodging-Hotels, Motels, Resorts",GPC
Statement 18/10/2016 - 17/11/2016,Corporate Resources,Campanile Glasgow,09/11/2016,222.50,Training Expenses - General,"Lodging-Hotels, Motels, Resorts",GPC
Statement 18/10/2016 - 17/11/2016,Corporate Resources,Carpetright,14/11/2016,119.60,Other Services - General,Floor Coverings   Stores,GPC
Statement 18/10/2016 - 17/11/2016,Corporate Resources,Cieh,04/11/2016,900.00,Other Expenditure - General,Membership Organizations-Not Elsewhere Classified,GPC
Statement 18/10/2016 - 17/11/2016,Corporate Resources,Cieh,24/10/2016,1200.00,Other Services - General,Membership Organizations-Not Elsewhere Classified,GPC
Statement 18/10/2016 - 17/11/2016,Corporate Resources,City Self Drive/odeon,01/11/2016,29.17,Casual/Essential - General,Automobile Rental Agency,GPC
Statement 18/10/2016 - 17/11/2016,Corporate Resources,City Self Drive/odeon,01/11/2016,41.67,Casual/Essential - General,Automobile Rental Agency,GPC
Statement 18/10/2016 - 17/11/2016,Corporate Resources,Cooks Farm Shop,19/10/2016,16.20,Other Expenditure - Public Enquiry fees,"Lawn and Garden Supply Stores, Nurseries",GPC
Statement 18/10/2016 - 17/11/2016,Corporate Resources,Cooks Farm Shop,24/10/2016,74.00,Other Expenditure - Public Enquiry fees,"Lawn and Garden Supply Stores, Nurseries",GPC
Statement 18/10/2016 - 17/11/2016,Corporate Resources,Co-Op Group 070412,24/10/2016,16.18,Other Expenditure - General,"Grocery Stores, Supermarkets",GPC
Statement 18/10/2016 - 17/11/2016,Corporate Resources,Co-Op Group 070412,01/11/2016,20.22,Other Expenditure - General,"Grocery Stores, Supermarkets",GPC
Statement 18/10/2016 - 17/11/2016,Corporate Resources,Co-Op Late Shop,17/10/2016,3.20,Other Expenditure - General,"Grocery Stores, Supermarkets",GPC
Statement 18/10/2016 - 17/11/2016,Corporate Resources,County Court,26/10/2016,40.00,Other Expenditure - General,Fines,GPC
Statement 18/10/2016 - 17/11/2016,Corporate Resources,County Court,26/10/2016,80.00,Other Expenditure - General,Fines,GPC
Statement 18/10/2016 - 17/11/2016,Corporate Resources,County Court,10/11/2016,40.00,Other Expenditure - General,Fines,GPC
Statement 18/10/2016 - 17/11/2016,Corporate Resources,County Court,19/10/2016,800.00,Training Expenses - General,Fines,GPC
Statement 18/10/2016 - 17/11/2016,Corporate Resources,Cross Country Trains,02/11/2016,13.40,Training Expenses - General,Passenger Railways,GPC
Statement 18/10/2016 - 17/11/2016,Corporate Resources,Currys Superstore,31/10/2016,107.49,Materials - General,"RADIO, TELEVISION, AND STEREO STORES (ELECTRONIC STORES)",GPC
Statement 18/10/2016 - 17/11/2016,Corporate Resources,Destinet Ltd,31/10/2016,174.00,Publicity/Marketing - Information Provision,Advertising Services,GPC
Statement 18/10/2016 - 17/11/2016,Corporate Resources,Dominos Glenfield,07/11/2016,34.39,Subsistence - General,"Eating Places, Restaurants",GPC
Statement 18/10/2016 - 17/11/2016,Corporate Resources,East Midland Trains,18/10/2016,7.50,Public Transport -  Staff - General,Automobile Parking Lots and Garages,GPC
Statement 18/10/2016 - 17/11/2016,Corporate Resources,East Midland Trains,08/11/2016,7.50,Public Transport -  Staff - General,Automobile Parking Lots and Garages,GPC
Statement 18/10/2016 - 17/11/2016,Corporate Resources,East Midlands Leicester,19/10/2016,14.00,Public Transport -  Staff - General,Automobile Parking Lots and Garages,GPC
Statement 18/10/2016 - 17/11/2016,Corporate Resources,East Midlands Leicester,02/11/2016,14.00,Public Transport -  Staff - General,Automobile Parking Lots and Garages,GPC
Statement 18/10/2016 - 17/11/2016,Corporate Resources,East Midlands Leicester,03/11/2016,7.50,Public Transport -  Staff - General,Automobile Parking Lots and Garages,GPC
Statement 18/10/2016 - 17/11/2016,Corporate Resources,East Midlands Leicester,07/11/2016,14.00,Public Transport -  Staff - General,Automobile Parking Lots and Garages,GPC
Statement 18/10/2016 - 17/11/2016,Corporate Resources,East Midlands Leicester,14/11/2016,7.50,Public Transport -  Staff - General,Automobile Parking Lots and Garages,GPC
Statement 18/10/2016 - 17/11/2016,Corporate Resources,East Midlands Market Har,17/10/2016,11.50,Public Transport -  Staff - General,Automobile Parking Lots and Garages,GPC
Statement 18/10/2016 - 17/11/2016,Corporate Resources,East Midlands Market Har,18/10/2016,6.50,Public Transport -  Staff - General,Automobile Parking Lots and Garages,GPC
Statement 18/10/2016 - 17/11/2016,Corporate Resources,East Midlands Market Har,18/10/2016,11.50,Public Transport -  Staff - General,Automobile Parking Lots and Garages,GPC
Statement 18/10/2016 - 17/11/2016,Corporate Resources,East Midlands Market Har,19/10/2016,11.50,Public Transport -  Staff - General,Automobile Parking Lots and Garages,GPC
Statement 18/10/2016 - 17/11/2016,Corporate Resources,East Midlands Market Har,25/10/2016,11.50,Public Transport -  Staff - General,Automobile Parking Lots and Garages,GPC
Statement 18/10/2016 - 17/11/2016,Corporate Resources,East Midlands Market Har,25/10/2016,11.50,Public Transport -  Staff - General,Automobile Parking Lots and Garages,GPC
Statement 18/10/2016 - 17/11/2016,Corporate Resources,East Midlands Market Har,31/10/2016,6.50,Public Transport -  Staff - General,Automobile Parking Lots and Garages,GPC
Statement 18/10/2016 - 17/11/2016,Corporate Resources,East Midlands Market Har,07/11/2016,11.50,Public Transport -  Staff - General,Automobile Parking Lots and Garages,GPC
Statement 18/10/2016 - 17/11/2016,Corporate Resources,East Midlands Market Har,07/11/2016,11.50,Public Transport -  Staff - General,Automobile Parking Lots and Garages,GPC
Statement 18/10/2016 - 17/11/2016,Corporate Resources,East Midlands Market Har,08/11/2016,11.50,Public Transport -  Staff - General,Automobile Parking Lots and Garages,GPC
Statement 18/10/2016 - 17/11/2016,Corporate Resources,East Midlands Market Har,14/11/2016,6.50,Public Transport -  Staff - General,Automobile Parking Lots and Garages,GPC
Statement 18/10/2016 - 17/11/2016,Corporate Resources,East Midlands Market Har,15/11/2016,11.50,Public Transport -  Staff - General,Automobile Parking Lots and Garages,GPC
Statement 18/10/2016 - 17/11/2016,Corporate Resources,East Midlands Market Har,15/11/2016,11.50,Public Transport -  Staff - General,Automobile Parking Lots and Garages,GPC
Statement 18/10/2016 - 17/11/2016,Corporate Resources,East Midlands Market Har,15/11/2016,11.50,Public Transport -  Staff - General,Automobile Parking Lots and Garages,GPC
Statement 18/10/2016 - 17/11/2016,Corporate Resources,East Midlands Trai,08/11/2016,480.00,Casual/Essential - General,Passenger Railways,GPC
Statement 18/10/2016 - 17/11/2016,Corporate Resources,East Midlands Trai,10/11/2016,12.00,Public Transport -  Staff - General,Passenger Railways,GPC
Statement 18/10/2016 - 17/11/2016,Corporate Resources,East Midlands Wellingbor,19/10/2016,5.00,Casual/Essential - General,Automobile Parking Lots and Garages,GPC
Statement 18/10/2016 - 17/11/2016,Corporate Resources,Eb *the Kings Fund Ann,04/11/2016,240.00,Conference - General,Business Services-Not Elsewhere Classified,GPC
Statement 18/10/2016 - 17/11/2016,Corporate Resources,Eclipse Networking Lim,21/10/2016,2.42,IT Equipment - General,Continuity/Subscription Merchants,GPC
Statement 18/10/2016 - 17/11/2016,Corporate Resources,Facebk 38z3kawse2,31/10/2016,41.50,Publicity/Marketing - Information Provision,Advertising Services,GPC
Statement 18/10/2016 - 17/11/2016,Corporate Resources,Facebk D5swzaw3k2,31/10/2016,60.25,Publicity/Marketing - Information Provision,Advertising Services,GPC
Statement 18/10/2016 - 17/11/2016,Corporate Resources,Ford & Slater,21/10/2016,19.50,Materials - General,Automotive Repair Shops (non-dealer),GPC
Statement 18/10/2016 - 17/11/2016,Corporate Resources,Fostertalk,14/11/2016,15.00,Schools Agency staff - Teaching Staff,"Accounting, Auditing, and Bookkeeping Services",GPC
Statement 18/10/2016 - 17/11/2016,Corporate Resources,Friends House,19/10/2016,5.55,Subsistence - General,Religious Organizations,GPC
Statement 18/10/2016 - 17/11/2016,Corporate Resources,Friends House,15/11/2016,6.70,Subsistence - General,Religious Organizations,GPC
Statement 18/10/2016 - 17/11/2016,Corporate Resources,Friends House,15/11/2016,5.30,Subsistence - General,Religious Organizations,GPC
Statement 18/10/2016 - 17/11/2016,Corporate Resources,Friends Meeting House,25/10/2016,139.80,Conference - General,Business Services-Not Elsewhere Classified,GPC
Statement 18/10/2016 - 17/11/2016,Corporate Resources,Ganttic Llc,11/11/2016,47.12,Subscriptions - General,Miscellaneous and Specialty Retail Stores,GPC
Statement 18/10/2016 - 17/11/2016,Corporate Resources,Gourmet Coffee Bar & K,01/11/2016,8.70,Subsistence - General,Fast-Food Restaurants (Quick Payment Service Pilot,GPC
Statement 18/10/2016 - 17/11/2016,Corporate Resources,Gro Hm Passport Office,03/11/2016,9.25,Other Expenditure - General,Government Services-Not Elsewhere Classified,GPC
Statement 18/10/2016 - 17/11/2016,Corporate Resources,Halfords 0428,04/11/2016,16.67,Other Expenditure - General,Bicycle Shops-Sales and Service,GPC
Statement 18/10/2016 - 17/11/2016,Corporate Resources,Halfords 0428,10/11/2016,-23.33,Other Expenditure - General,Bicycle Shops-Sales and Service,GPC
Statement 18/10/2016 - 17/11/2016,Corporate Resources,Halfords 0428,28/10/2016,26.66,Other Services - General,Bicycle Shops-Sales and Service,GPC
Statement 18/10/2016 - 17/11/2016,Corporate Resources,Harlow Bros Ltd,19/10/2016,19.50,Other Expenditure - General,"Building Materials, Lumber Stores",GPC
Statement 18/10/2016 - 17/11/2016,Corporate Resources,Harlow Bros Ltd,08/11/2016,8.65,Other Services - General,"Building Materials, Lumber Stores",GPC
Statement 18/10/2016 - 17/11/2016,Corporate Resources,Heathley Park,01/11/2016,11.98,Subsistence - General,"Drinking Places (Alcoholic Beverages)-Bars, Tavern",GPC
Statement 18/10/2016 - 17/11/2016,Corporate Resources,Higgotts,21/10/2016,4.97,Other Expenditure - General,Landscaping and Horticultural Services,GPC
Statement 18/10/2016 - 17/11/2016,Corporate Resources,Higgotts,04/11/2016,37.25,Other Services - General,Landscaping and Horticultural Services,GPC
Statement 18/10/2016 - 17/11/2016,Corporate Resources,Higgotts,10/11/2016,17.87,Other Services - General,Landscaping and Horticultural Services,GPC
Statement 18/10/2016 - 17/11/2016,Corporate Resources,Holiday Inn Exprss,14/11/2016,510.00,Subsistence - General,"Lodging-Hotels, Motels, Resorts",GPC
Statement 18/10/2016 - 17/11/2016,Corporate Resources,Hootsuite Media Inc.,24/10/2016,123.11,Other Equipment & Materials - General,Business Services-Not Elsewhere Classified,GPC
Statement 18/10/2016 - 17/11/2016,Corporate Resources,Hotels.Com133745916032,08/11/2016,194.76,Training Expenses - General,Travel Agencies,GPC
Statement 18/10/2016 - 17/11/2016,Corporate Resources,Indigo Park Soluti,01/11/2016,7.70,Public Transport -  Staff - General,Automobile Parking Lots and Garages,GPC
Statement 18/10/2016 - 17/11/2016,Corporate Resources,Indigo Park Soluti,03/11/2016,5.20,Public Transport -  Staff - General,Automobile Parking Lots and Garages,GPC
Statement 18/10/2016 - 17/11/2016,Corporate Resources,Indisplay Ltd,28/10/2016,249.28,Stationery - General,"Stationery, Office, and School Supply Stores",GPC
Statement 18/10/2016 - 17/11/2016,Corporate Resources,Indisplay Ltd,28/10/2016,500.00,Stationery - General,"Stationery, Office, and School Supply Stores",GPC
Statement 18/10/2016 - 17/11/2016,Corporate Resources,Ipf,03/11/2016,375.00,Training Expenses - General,"Accounting, Auditing, and Bookkeeping Services",GPC
Statement 18/10/2016 - 17/11/2016,Corporate Resources,Iz *the Engine Room (Mark,18/10/2016,2.50,Subsistence - General,"Eating Places, Restaurants",GPC
Statement 18/10/2016 - 17/11/2016,Corporate Resources,Jollyes Petfood,13/11/2016,3.58,Other Services - General,Pet Shops-Pet Food and Supplies,GPC
Statement 18/10/2016 - 17/11/2016,Corporate Resources,Jurys Birmingham,31/10/2016,125.00,Subsistence - General,"Lodging-Hotels, Motels, Resorts",GPC
Statement 18/10/2016 - 17/11/2016,Corporate Resources,Lcc Catering Services,02/11/2016,5.35,Subsistence - General,Government Services-Not Elsewhere Classified,GPC
Statement 18/10/2016 - 17/11/2016,Corporate Resources,Lcc Catering Services,10/11/2016,4.00,Subsistence - General,Government Services-Not Elsewhere Classified,GPC
Statement 18/10/2016 - 17/11/2016,Corporate Resources,Linkedin-2995989764,21/10/2016,90.17,Other Expenditure - General,Continuity/Subscription Merchants,GPC
Statement 18/10/2016 - 17/11/2016,Corporate Resources,Linkedin-3004341714,27/10/2016,94.64,Other Expenditure - General,Continuity/Subscription Merchants,GPC
Statement 18/10/2016 - 17/11/2016,Corporate Resources,Linkedin-301*1409534,01/11/2016,71.53,Other Expenditure - General,Continuity/Subscription Merchants,GPC
Statement 18/10/2016 - 17/11/2016,Corporate Resources,Linkedin-343*8042163,28/10/2016,61.06,Other Expenditure - General,Continuity/Subscription Merchants,GPC
Statement 18/10/2016 - 17/11/2016,Corporate Resources,Linkedin-3432544893,22/10/2016,89.23,Other Expenditure - General,Continuity/Subscription Merchants,GPC
Statement 18/10/2016 - 17/11/2016,Corporate Resources,Linkedin-344*3976883,03/11/2016,300.00,Recruitment Advertising - General,Continuity/Subscription Merchants,GPC
Statement 18/10/2016 - 17/11/2016,Corporate Resources,Linkedin-3451533483,11/11/2016,227.94,Other Expenditure - General,Continuity/Subscription Merchants,GPC
Statement 18/10/2016 - 17/11/2016,Corporate Resources,Lul Ticket Machine,08/11/2016,10.00,Public Transport -  Staff - General,Passenger Railways,GPC
Statement 18/10/2016 - 17/11/2016,Corporate Resources,M&s Simply Food - Ssp,19/10/2016,9.51,Subsistence - General,"Miscellaneous Food Stores-Convenience Stores, Mark",GPC
Statement 18/10/2016 - 17/11/2016,Corporate Resources,M&s Simply Food - Ssp,25/10/2016,9.20,Subsistence - General,"Miscellaneous Food Stores-Convenience Stores, Mark",GPC
Statement 18/10/2016 - 17/11/2016,Corporate Resources,M&s Simply Food - Ssp,03/11/2016,10.75,Subsistence - General,"Miscellaneous Food Stores-Convenience Stores, Mark",GPC
Statement 18/10/2016 - 17/11/2016,Corporate Resources,M&s Simply Food - Ssp,08/11/2016,8.70,Subsistence - General,"Miscellaneous Food Stores-Convenience Stores, Mark",GPC
Statement 18/10/2016 - 17/11/2016,Corporate Resources,M&s Simply Food - Ssp,11/11/2016,13.35,Subsistence - General,"Miscellaneous Food Stores-Convenience Stores, Mark",GPC
Statement 18/10/2016 - 17/11/2016,Corporate Resources,M&s Simply Food - Ssp,15/11/2016,8.81,Subsistence - General,"Miscellaneous Food Stores-Convenience Stores, Mark",GPC
Statement 18/10/2016 - 17/11/2016,Corporate Resources,Makro Self Service Leices,19/10/2016,10.08,Training Expenses - General,Wholesale Clubs,GPC
Statement 18/10/2016 - 17/11/2016,Corporate Resources,Makro Self Service Leices,07/11/2016,30.38,Training Expenses - General,Wholesale Clubs,GPC
Statement 18/10/2016 - 17/11/2016,Corporate Resources,Marshall Direct Lt,06/11/2016,15.42,Other Services - General,Electrical Parts and Equipment,GPC
Statement 18/10/2016 - 17/11/2016,Corporate Resources,McDonalds,03/11/2016,4.69,Subsistence - General,Fast-Food Restaurants (Quick Payment Service Pilot,GPC
Statement 18/10/2016 - 17/11/2016,Corporate Resources,Mindfulnesscic.Co.,09/11/2016,225.00,Training Expenses - General,Schools and Educational Services-Not Elsewhere Cla,GPC
Statement 18/10/2016 - 17/11/2016,Corporate Resources,Nandos Euston,20/10/2016,12.35,Subsistence - General,"Eating Places, Restaurants",GPC
Statement 18/10/2016 - 17/11/2016,Corporate Resources,Ncc Internet,07/11/2016,100.00,Other Expenditure - General,Government Services-Not Elsewhere Classified,GPC
Statement 18/10/2016 - 17/11/2016,Corporate Resources,New China Town,10/11/2016,6.50,Subsistence - General,Fast-Food Restaurants (Quick Payment Service Pilot,GPC
Statement 18/10/2016 - 17/11/2016,Corporate Resources,Northern Rail Ltd-,17/10/2016,12.90,Public Transport -  Staff - General,Passenger Railways,GPC
Statement 18/10/2016 - 17/11/2016,Corporate Resources,Oyster Autotopup,30/10/2016,20.00,Casual/Essential - General,Passenger Railways,GPC
Statement 18/10/2016 - 17/11/2016,Corporate Resources,Oyster Bus Autoset,25/10/2016,20.00,Casual/Essential - General,Passenger Railways,GPC
Statement 18/10/2016 - 17/11/2016,Corporate Resources,Oyster Renew Web,08/11/2016,50.00,Public Transport -  Staff - General,Passenger Railways,GPC
Statement 18/10/2016 - 17/11/2016,Corporate Resources,P & R Building Supplie,10/11/2016,59.40,Other Services - General,"Building Materials, Lumber Stores",GPC
Statement 18/10/2016 - 17/11/2016,Corporate Resources,Paypal *dlf,02/11/2016,550.00,Training Expenses - General,Charitable and Social Service Organizations,GPC
Statement 18/10/2016 - 17/11/2016,Corporate Resources,Paypal *societyforp,19/10/2016,118.80,Training Expenses - General,Professional Services-Not Elsewhere Classified,GPC
Statement 18/10/2016 - 17/11/2016,Corporate Resources,Plv*cleveleys Taxis Limit,14/11/2016,10.00,Public Transport -  Staff - General,Taxicabs and Limousines,GPC
Statement 18/10/2016 - 17/11/2016,Corporate Resources,Poulton-Le-Fylde Stn T,17/10/2016,10.00,Public Transport -  Staff - General,Passenger Railways,GPC
Statement 18/10/2016 - 17/11/2016,Corporate Resources,Poulton-Le-Fylde Stn T,04/11/2016,10.00,Public Transport -  Staff - General,Passenger Railways,GPC
Statement 18/10/2016 - 17/11/2016,Corporate Resources,Poulton-Le-Fylde Stn T,09/11/2016,10.00,Public Transport -  Staff - General,Passenger Railways,GPC
Statement 18/10/2016 - 17/11/2016,Corporate Resources,Poulton-Le-Fylde Stn T,09/11/2016,14.00,Public Transport -  Staff - General,Passenger Railways,GPC
Statement 18/10/2016 - 17/11/2016,Corporate Resources,Premier Catering Equip,08/11/2016,73.00,R & M of Buildings - General,Electrical Parts and Equipment,GPC
Statement 18/10/2016 - 17/11/2016,Corporate Resources,Premier Inn 44535095,28/10/2016,86.99,Subsistence - General,PREMIER TRAVEL,GPC
Statement 18/10/2016 - 17/11/2016,Corporate Resources,Premier Inn44521250,25/10/2016,67.49,Training Expenses - General,PREMIER TRAVEL,GPC
Statement 18/10/2016 - 17/11/2016,Corporate Resources,Premier Inn44521250,07/11/2016,64.16,Training Expenses - General,PREMIER TRAVEL,GPC
Statement 18/10/2016 - 17/11/2016,Corporate Resources,Premier Inn44521250,11/11/2016,49.16,Training Expenses - General,PREMIER TRAVEL,GPC
Statement 18/10/2016 - 17/11/2016,Corporate Resources,Premier Inn44521250,11/11/2016,53.32,Training Expenses - General,PREMIER TRAVEL,GPC
Statement 18/10/2016 - 17/11/2016,Corporate Resources,Premier Inn44521260,24/10/2016,61.00,Subsistence - General,PREMIER TRAVEL,GPC
Statement 18/10/2016 - 17/11/2016,Corporate Resources,Premier Inn44521260,29/10/2016,71.50,Subsistence - General,PREMIER TRAVEL,GPC
Statement 18/10/2016 - 17/11/2016,Corporate Resources,Premier Inn44521260,30/10/2016,62.50,Subsistence - General,PREMIER TRAVEL,GPC
Statement 18/10/2016 - 17/11/2016,Corporate Resources,Premier Inn44521260,30/10/2016,67.50,Subsistence - General,PREMIER TRAVEL,GPC
Statement 18/10/2016 - 17/11/2016,Corporate Resources,Premier Inn44521260,30/10/2016,67.50,Subsistence - General,PREMIER TRAVEL,GPC
Statement 18/10/2016 - 17/11/2016,Corporate Resources,Pumpkin Cafe,01/11/2016,4.09,Subsistence - General,"Package Stores, Beer, Wine, Liquor",GPC
Statement 18/10/2016 - 17/11/2016,Corporate Resources,Pumpkin Cafe,09/11/2016,4.18,Subsistence - General,"Package Stores, Beer, Wine, Liquor",GPC
Statement 18/10/2016 - 17/11/2016,Corporate Resources,R Massey & Son Ltd,27/10/2016,5.79,Other Expenditure - General,Hardware Stores,GPC
Statement 18/10/2016 - 17/11/2016,Corporate Resources,Sainsburys Local,26/10/2016,5.00,Stationery - General,"Grocery Stores, Supermarkets",GPC
Statement 18/10/2016 - 17/11/2016,Corporate Resources,Sainsburys S/mkt,10/11/2016,39.00,Other Services - General,"Grocery Stores, Supermarkets",GPC
Statement 18/10/2016 - 17/11/2016,Corporate Resources,Sainsburys S/mkts,09/11/2016,17.00,Subsistence - General,"Grocery Stores, Supermarkets",GPC
Statement 18/10/2016 - 17/11/2016,Corporate Resources,Sainsburys Superma,18/10/2016,19.30,Subsistence - General,"Grocery Stores, Supermarkets",GPC
Statement 18/10/2016 - 17/11/2016,Corporate Resources,Sainsburys Superma,07/11/2016,15.75,Subsistence - General,"Grocery Stores, Supermarkets",GPC
Statement 18/10/2016 - 17/11/2016,Corporate Resources,Sainsburys Superma,14/11/2016,15.80,Subsistence - General,"Grocery Stores, Supermarkets",GPC
Statement 18/10/2016 - 17/11/2016,Corporate Resources,Sans Supplies Ltd,17/10/2016,74.75,Operational Equipment - Rental,Miscellaneous and Specialty Retail Stores,GPC
Statement 18/10/2016 - 17/11/2016,Corporate Resources,Sans Supplies Ltd,09/11/2016,44.75,Operational Equipment - Rental,Miscellaneous and Specialty Retail Stores,GPC
Statement 18/10/2016 - 17/11/2016,Corporate Resources,Screwfix,10/11/2016,34.99,Protective Clothing & Uniforms - General,"Building Materials, Lumber Stores",GPC
Statement 18/10/2016 - 17/11/2016,Corporate Resources,Selfserve Ticket,27/10/2016,50.00,Public Transport -  Staff - General,Passenger Railways,GPC
Statement 18/10/2016 - 17/11/2016,Corporate Resources,Sharnford Tractors Ltd,24/10/2016,55.67,Other Expenditure - Public Enquiry fees,"Automobile and Truck Dealers-Sales, Service, Repai",GPC
Statement 18/10/2016 - 17/11/2016,Corporate Resources,Shepshed Auto Spares L,11/11/2016,10.49,Other Expenditure - General,Motorcycle Dealers,GPC
Statement 18/10/2016 - 17/11/2016,Corporate Resources,Skillbase First Aid,28/10/2016,119.99,IT Equipment - Software,Computer Software Stores,GPC
Statement 18/10/2016 - 17/11/2016,Corporate Resources,Slb Supplies Ltd,17/10/2016,18.50,Other Services - General,Pet Shops-Pet Food and Supplies,GPC
Statement 18/10/2016 - 17/11/2016,Corporate Resources,Slb Supplies Ltd,17/10/2016,45.25,Other Services - General,Pet Shops-Pet Food and Supplies,GPC
Statement 18/10/2016 - 17/11/2016,Corporate Resources,Slb Supplies Ltd,09/11/2016,23.00,Other Services - General,Pet Shops-Pet Food and Supplies,GPC
Statement 18/10/2016 - 17/11/2016,Corporate Resources,Staples Uk,18/10/2016,12.99,Stationery - General,"Stationery, Office, and School Supply Stores",GPC
Statement 18/10/2016 - 17/11/2016,Corporate Resources,Starbucks,02/11/2016,6.70,Subsistence - General,Fast-Food Restaurants (Quick Payment Service Pilot,GPC
Statement 18/10/2016 - 17/11/2016,Corporate Resources,Starbucks,02/11/2016,5.75,Subsistence - General,Fast-Food Restaurants (Quick Payment Service Pilot,GPC
Statement 18/10/2016 - 17/11/2016,Corporate Resources,Steve Hindmarsh Ltd,25/10/2016,550.00,Training Expenses - General,Schools and Educational Services-Not Elsewhere Cla,GPC
Statement 18/10/2016 - 17/11/2016,Corporate Resources,Steve Hindmarsh Ltd,25/10/2016,-770.00,Training Expenses - General,Schools and Educational Services-Not Elsewhere Cla,GPC
Statement 18/10/2016 - 17/11/2016,Corporate Resources,Stop Gap,18/10/2016,3.50,Subsistence - General,"Eating Places, Restaurants",GPC
Statement 18/10/2016 - 17/11/2016,Corporate Resources,Stop Gap,25/10/2016,4.54,Subsistence - General,"Eating Places, Restaurants",GPC
Statement 18/10/2016 - 17/11/2016,Corporate Resources,Terra Cotta Restaurant,31/10/2016,15.90,Subsistence - General,"Eating Places, Restaurants",GPC
Statement 18/10/2016 - 17/11/2016,Corporate Resources,Tesco Pay At Pump 3799,10/11/2016,7.52,Petrol/Oil/Tyres/Spares - General,"Fuel Dispenser, Automated",GPC
Statement 18/10/2016 - 17/11/2016,Corporate Resources,Tesco Stores 2044,31/10/2016,5.00,Other Expenditure - General,"Grocery Stores, Supermarkets",GPC
Statement 18/10/2016 - 17/11/2016,Corporate Resources,Tesco Stores 2044,12/11/2016,5.65,Other Expenditure - General,"Grocery Stores, Supermarkets",GPC
Statement 18/10/2016 - 17/11/2016,Corporate Resources,Tesco Stores 3240,17/10/2016,10.05,Subsistence - General,"Grocery Stores, Supermarkets",GPC
Statement 18/10/2016 - 17/11/2016,Corporate Resources,Tesco-Stores 6065,12/11/2016,2.20,Other Expenditure - Public Enquiry fees,"Grocery Stores, Supermarkets",GPC
Statement 18/10/2016 - 17/11/2016,Corporate Resources,The Berkeley Arms Hote,18/10/2016,55.00,Training Expenses - General,"Lodging-Hotels, Motels, Resorts",GPC
Statement 18/10/2016 - 17/11/2016,Corporate Resources,The Berkeley Arms Hote,03/11/2016,55.00,Training Expenses - General,"Lodging-Hotels, Motels, Resorts",GPC
Statement 18/10/2016 - 17/11/2016,Corporate Resources,The Book People,28/10/2016,40.00,Books - General,Book Stores,GPC
Statement 18/10/2016 - 17/11/2016,Corporate Resources,The Leisure Media,01/11/2016,476.40,Other Expenditure - General,Continuity/Subscription Merchants,GPC
Statement 18/10/2016 - 17/11/2016,Corporate Resources,The London Space C,09/11/2016,154.80,Conference - General,Business Services-Not Elsewhere Classified,GPC
Statement 18/10/2016 - 17/11/2016,Corporate Resources,The Post Office,20/10/2016,3.33,Postal Services - General,Postage Stamps,GPC
Statement 18/10/2016 - 17/11/2016,Corporate Resources,The Range,30/10/2016,1.38,Materials - General,Department Stores,GPC
Statement 18/10/2016 - 17/11/2016,Corporate Resources,The Soup Kitchen (Staf,02/11/2016,6.60,Subsistence - General,"Eating Places, Restaurants",GPC
Statement 18/10/2016 - 17/11/2016,Corporate Resources,The Wesley,20/10/2016,160.00,Subsistence - General,"Lodging-Hotels, Motels, Resorts",GPC
Statement 18/10/2016 - 17/11/2016,Corporate Resources,Totaljobs Group Ltd,04/11/2016,210.00,Recruitment Advertising - General,Miscellaneous Publishing and  Printing,GPC
Statement 18/10/2016 - 17/11/2016,Corporate Resources,Trainline,21/10/2016,-0.60,Casual/Essential - General,Passenger Railways,GPC
Statement 18/10/2016 - 17/11/2016,Corporate Resources,Trainline,21/10/2016,-47.00,Casual/Essential - General,Passenger Railways,GPC
Statement 18/10/2016 - 17/11/2016,Corporate Resources,Trainline.Com Ltd,17/10/2016,70.48,Casual/Essential - General,Passenger Railways,GPC
Statement 18/10/2016 - 17/11/2016,Corporate Resources,Trainline.Com Ltd,18/10/2016,51.60,Casual/Essential - General,Passenger Railways,GPC
Statement 18/10/2016 - 17/11/2016,Corporate Resources,Trainline.Com Ltd,24/10/2016,29.83,Casual/Essential - General,Passenger Railways,GPC
Statement 18/10/2016 - 17/11/2016,Corporate Resources,Trainline.Com Ltd,27/10/2016,30.35,Casual/Essential - General,Passenger Railways,GPC
Statement 18/10/2016 - 17/11/2016,Corporate Resources,Trainline.Com Ltd,27/10/2016,300.00,Other Transport Costs - General,Passenger Railways,GPC
Statement 18/10/2016 - 17/11/2016,Corporate Resources,Trainline.Com Ltd,24/10/2016,29.58,Public Transport -  Staff - General,Passenger Railways,GPC
Statement 18/10/2016 - 17/11/2016,Corporate Resources,Trainline.Com Ltd,31/10/2016,28.00,Training Expenses - General,Passenger Railways,GPC
Statement 18/10/2016 - 17/11/2016,Corporate Resources,Tvlicensing.Co.Uk,21/10/2016,145.50,Schools Agency staff - Teaching Staff,"Management, Consulting and Public Relations Servic",GPC
Statement 18/10/2016 - 17/11/2016,Corporate Resources,Uber Bv,25/10/2016,6.04,Public Transport -  Staff - General,Taxicabs and Limousines,GPC
Statement 18/10/2016 - 17/11/2016,Corporate Resources,Uber Gb Nov01 4y5rj Help.,01/11/2016,7.63,Public Transport -  Staff - General,Taxicabs and Limousines,GPC
Statement 18/10/2016 - 17/11/2016,Corporate Resources,Uber Gb Nov01 Posuo Help.,01/11/2016,4.83,Public Transport -  Staff - General,Taxicabs and Limousines,GPC
Statement 18/10/2016 - 17/11/2016,Corporate Resources,Uber Gb Nov01 U2ewy Help.,01/11/2016,5.61,Public Transport -  Staff - General,Taxicabs and Limousines,GPC
Statement 18/10/2016 - 17/11/2016,Corporate Resources,Uber Gb Oct25 6hegl Help.,25/10/2016,5.53,Casual/Essential - General,Taxicabs and Limousines,GPC
Statement 18/10/2016 - 17/11/2016,Corporate Resources,Union Metrics,17/10/2016,16.48,Other Equipment & Materials - General,Business Services-Not Elsewhere Classified,GPC
Statement 18/10/2016 - 17/11/2016,Corporate Resources,Upt-East Midlands Trn-Lb,19/10/2016,12.00,Public Transport -  Staff - General,Professional Services-Not Elsewhere Classified,GPC
Statement 18/10/2016 - 17/11/2016,Corporate Resources,Upt-East Midlands Trn-Lb,26/10/2016,12.00,Public Transport -  Staff - General,Professional Services-Not Elsewhere Classified,GPC
Statement 18/10/2016 - 17/11/2016,Corporate Resources,Upt-East Midlands Trn-Lb,07/11/2016,12.00,Public Transport -  Staff - General,Professional Services-Not Elsewhere Classified,GPC
Statement 18/10/2016 - 17/11/2016,Corporate Resources,Upt-East Midlands Trn-Lb,08/11/2016,12.00,Public Transport -  Staff - General,Professional Services-Not Elsewhere Classified,GPC
Statement 18/10/2016 - 17/11/2016,Corporate Resources,Upt-East Midlands Trn-Lb,15/11/2016,12.00,Public Transport -  Staff - General,Professional Services-Not Elsewhere Classified,GPC
Statement 18/10/2016 - 17/11/2016,Corporate Resources,Waitrose 619,08/11/2016,1.88,Subsistence - General,"Grocery Stores, Supermarkets",GPC
Statement 18/10/2016 - 17/11/2016,Corporate Resources,Waitrose 636,11/11/2016,2.62,Subsistence - General,"Grocery Stores, Supermarkets",GPC
Statement 18/10/2016 - 17/11/2016,Corporate Resources,Wellcome Collection Ca,18/10/2016,13.80,Subsistence - General,Caterers,GPC
Statement 18/10/2016 - 17/11/2016,Corporate Resources,Wellcome Collection Ca,18/10/2016,6.35,Subsistence - General,Caterers,GPC
Statement 18/10/2016 - 17/11/2016,Corporate Resources,Wellcome Collection Ca,18/10/2016,9.95,Subsistence - General,Caterers,GPC
Statement 18/10/2016 - 17/11/2016,Corporate Resources,Wellcome Collection Ca,19/10/2016,7.45,Subsistence - General,Caterers,GPC
Statement 18/10/2016 - 17/11/2016,Corporate Resources,Wellcome Collection Ca,19/10/2016,4.35,Subsistence - General,Caterers,GPC
Statement 18/10/2016 - 17/11/2016,Corporate Resources,Wellcome Collection Ca,19/10/2016,7.75,Subsistence - General,Caterers,GPC
Statement 18/10/2016 - 17/11/2016,Corporate Resources,West Coast Trains,28/10/2016,12.00,Casual/Essential - General,Automobile Parking Lots and Garages,GPC
Statement 18/10/2016 - 17/11/2016,Corporate Resources,West Coast Trains,01/11/2016,24.00,Casual/Essential - General,Automobile Parking Lots and Garages,GPC
Statement 18/10/2016 - 17/11/2016,Corporate Resources,West Coast Trains Ltd,07/11/2016,5.90,Public Transport -  Staff - General,"Candy, Nut, Confectionery Stores",GPC
Statement 18/10/2016 - 17/11/2016,Corporate Resources,Westminster Cafe,25/10/2016,5.60,Subsistence - General,"Eating Places, Restaurants",GPC
Statement 18/10/2016 - 17/11/2016,Corporate Resources,Westminster Forum,03/11/2016,210.00,Conference - General,"Management, Consulting and Public Relations Servic",GPC
Statement 18/10/2016 - 17/11/2016,Corporate Resources,Wickes,03/11/2016,12.50,Other Expenditure - General,"Building Materials, Lumber Stores",GPC
Statement 18/10/2016 - 17/11/2016,Corporate Resources,Wickes,09/11/2016,68.27,Other Services - General,"Building Materials, Lumber Stores",GPC
Statement 18/10/2016 - 17/11/2016,Corporate Resources,Wickes Building,02/11/2016,-7.95,Other Services - General,"Building Materials, Lumber Stores",GPC
Statement 18/10/2016 - 17/11/2016,Corporate Resources,Wilko Retail Limit,24/10/2016,9.50,Other Services - General,Household Appliance Stores,GPC
Statement 18/10/2016 - 17/11/2016,Corporate Resources,Wilko Retail Limit,02/11/2016,34.60,Other Services - General,Household Appliance Stores,GPC
Statement 18/10/2016 - 17/11/2016,Corporate Resources,Wilko Retail Limit,15/11/2016,6.45,Other Services - General,Household Appliance Stores,GPC
Statement 18/10/2016 - 17/11/2016,Corporate Resources,Windmill Stores,09/11/2016,14.22,Other Expenditure - General,"Grocery Stores, Supermarkets",GPC
Statement 18/10/2016 - 17/11/2016,Corporate Resources,Wm Morrison 054,23/10/2016,10.74,Other Expenditure - General,"Grocery Stores, Supermarkets",GPC
Statement 18/10/2016 - 17/11/2016,Corporate Resources,Wm Morrison 054,01/11/2016,5.50,Other Expenditure - General,"Grocery Stores, Supermarkets",GPC
Statement 18/10/2016 - 17/11/2016,Corporate Resources,Wm Morrison 054,13/11/2016,5.25,Other Expenditure - General,"Grocery Stores, Supermarkets",GPC
Statement 18/10/2016 - 17/11/2016,Corporate Resources,Wp-Hemming Group L,03/11/2016,837.60,Other Equipment & Materials - General,Business Services-Not Elsewhere Classified,GPC
Statement 18/10/2016 - 17/11/2016,Corporate Resources,Www Oppassessment Eu Com,15/11/2016,246.00,Other Equipment & Materials - General,Business Services-Not Elsewhere Classified,GPC
Statement 18/10/2016 - 17/11/2016,Corporate Resources,Www.Arb.Org.Uk,16/11/2016,107.00,Schools Agency staff - Teaching Staff,"Engineering, Architectural, and Surveying Services",GPC
Statement 18/10/2016 - 17/11/2016,Corporate Resources,Www.Charteredforesters,21/10/2016,30.00,Other Services - General,Membership Organizations-Not Elsewhere Classified,GPC
Statement 18/10/2016 - 17/11/2016,Corporate Resources,Www.Frjonesandson.,27/10/2016,236.33,Other Expenditure - General,"Lawn and Garden Supply Stores, Nurseries",GPC
Statement 18/10/2016 - 17/11/2016,Corporate Resources,Www.Fwdp.Co.Uk,09/11/2016,50.50,Other Services - General,Industrial Supplies Not Elsewhere Classified,GPC
Statement 18/10/2016 - 17/11/2016,Corporate Resources,Www.Ice.Org.Uk,20/10/2016,310.80,Other Services - General,Membership Organizations-Not Elsewhere Classified,GPC
Statement 18/10/2016 - 17/11/2016,Corporate Resources,Www.Ice.Org.Uk,20/10/2016,310.80,Other Services - General,Membership Organizations-Not Elsewhere Classified,GPC
Statement 18/10/2016 - 17/11/2016,Corporate Resources,Www.Pcwb,26/10/2016,-503.41,IT Equipment - Software,Computer Software Stores,GPC
Statement 18/10/2016 - 17/11/2016,Corporate Resources,Www.Richardhaworth.Co.,27/10/2016,50.11,Materials - General,Miscellaneous House Furnishing Specialty Shops,GPC
Statement 18/10/2016 - 17/11/2016,Corporate Resources,Www.Slingsby.Com,11/11/2016,536.40,Other Equipment & Materials - General,Industrial Supplies Not Elsewhere Classified,GPC
Statement 18/10/2016 - 17/11/2016,Corporate Resources,Www.Slingsby.Com,14/11/2016,178.80,Other Equipment & Materials - General,Industrial Supplies Not Elsewhere Classified,GPC
Statement 18/10/2016 - 17/11/2016,Corporate Resources,Www.Superbreak.Com,02/11/2016,160.20,Training Expenses - General,Travel Agencies,GPC
Statement 18/10/2016 - 17/11/2016,Corporate Resources,Www.Viking-Direct.Co.U,02/11/2016,18.48,Catering Equipment - General,"Stationary, Office Supplies, Printing and Writing",GPC
Statement 18/10/2016 - 17/11/2016,Corporate Resources,Www.Viking-Direct.Co.U,08/11/2016,46.74,Stationery - General,"Stationary, Office Supplies, Printing and Writing",GPC
Statement 18/10/2016 - 17/11/2016,Corporate Resources,Www.Weirbags.Co.Uk,02/11/2016,21.22,Materials - General,Industrial Supplies Not Elsewhere Classified,GPC
Statement 18/10/2016 - 17/11/2016,Corporate Resources,Www/reed.Co.Uk,03/11/2016,228.00,Recruitment Advertising - General,Business and Secretarial Schools,GPC
Statement 18/10/2016 - 17/11/2016,Corporate Resources,Information not available ,18/10/2016,0.45,Other Equipment & Materials - General,Misc-Unknown,GPC
Statement 18/10/2016 - 17/11/2016,Corporate Resources,Information not available ,25/10/2016,3.39,Other Equipment & Materials - General,Misc-Unknown,GPC
Statement 18/10/2016 - 17/11/2016,Corporate Resources,Information not available ,14/11/2016,1.30,Subscriptions - General,Misc-Unknown,GPC
Statement 18/10/2016 - 17/11/2016,E&T,Amazon UK Marketplace,25/10/2016,9.28,Books - General,Book Stores,GPC
Statement 18/10/2016 - 17/11/2016,E&T,Amazon UK Marketplace,08/11/2016,7.62,Furniture - General,Miscellaneous and Specialty Retail Stores,GPC
Statement 18/10/2016 - 17/11/2016,E&T,Amazon UK Marketplace,04/11/2016,3.87,IT Equipment - General,Miscellaneous and Specialty Retail Stores,GPC
Statement 18/10/2016 - 17/11/2016,E&T,Amazon UK Marketplace,31/10/2016,9.98,Materials - General,Miscellaneous and Specialty Retail Stores,GPC
Statement 18/10/2016 - 17/11/2016,E&T,Amazon UK Marketplace,16/11/2016,37.46,Materials - General,Miscellaneous and Specialty Retail Stores,GPC
Statement 18/10/2016 - 17/11/2016,E&T,Amazon UK Marketplace,24/10/2016,3.49,Other Expenditure - General,Book Stores,GPC
Statement 18/10/2016 - 17/11/2016,E&T,Amazon UK Marketplace,31/10/2016,20.75,Petrol/Oil/Tyres/Spares - General,Miscellaneous and Specialty Retail Stores,GPC
Statement 18/10/2016 - 17/11/2016,E&T,Amazon UK Marketplace,19/10/2016,13.80,Stationery - General,Miscellaneous and Specialty Retail Stores,GPC
Statement 18/10/2016 - 17/11/2016,E&T,Amazon UK Marketplace,04/11/2016,7.88,Stationery - General,Miscellaneous and Specialty Retail Stores,GPC
Statement 18/10/2016 - 17/11/2016,E&T,Amazon UK Marketplace,07/11/2016,3.15,Stationery - General,Miscellaneous and Specialty Retail Stores,GPC
Statement 18/10/2016 - 17/11/2016,E&T,Amazon UK Marketplace,18/10/2016,7.78,Telephones - Mobile Phones,Miscellaneous and Specialty Retail Stores,GPC
Statement 18/10/2016 - 17/11/2016,E&T,Amazon UK Marketplace,04/11/2016,23.34,Telephones - Mobile Phones,Book Stores,GPC
Statement 18/10/2016 - 17/11/2016,E&T,Amazon UK Marketplace,09/11/2016,15.56,Telephones - Mobile Phones,Book Stores,GPC
Statement 18/10/2016 - 17/11/2016,E&T,Amazon UK Retail,20/10/2016,9.15,Materials - General,Direct Marketers - Other,GPC
Statement 18/10/2016 - 17/11/2016,E&T,Amazon UK Retail Amazon.C,21/10/2016,73.12,Materials - General,Miscellaneous and Specialty Retail Stores,GPC
Statement 18/10/2016 - 17/11/2016,E&T,Arco Ltd,27/10/2016,14.08,Other Expenditure - General,Industrial Supplies Not Elsewhere Classified,GPC
Statement 18/10/2016 - 17/11/2016,E&T,Cartridge Save,03/11/2016,26.53,Stationery - General,"Stationary, Office Supplies, Printing and Writing",GPC
Statement 18/10/2016 - 17/11/2016,E&T,Dvla Vehicle Tax,04/11/2016,272.50,Other Expenditure - General,Government Services-Not Elsewhere Classified,GPC
Statement 18/10/2016 - 17/11/2016,E&T,Dvla Vehicle Tax,10/11/2016,652.50,Other Expenditure - General,Government Services-Not Elsewhere Classified,GPC
Statement 18/10/2016 - 17/11/2016,E&T,Dvla Vehicle Tax,10/11/2016,167.50,Other Expenditure - General,Government Services-Not Elsewhere Classified,GPC
Statement 18/10/2016 - 17/11/2016,E&T,Dvla Vehicle Tax,10/11/2016,167.50,Other Expenditure - General,Government Services-Not Elsewhere Classified,GPC
Statement 18/10/2016 - 17/11/2016,E&T,Dvla Vehicle Tax,10/11/2016,652.50,Other Expenditure - General,Government Services-Not Elsewhere Classified,GPC
Statement 18/10/2016 - 17/11/2016,E&T,Dvla Vehicle Tax,10/11/2016,167.50,Other Expenditure - General,Government Services-Not Elsewhere Classified,GPC
Statement 18/10/2016 - 17/11/2016,E&T,Dvla Vehicle Tax,10/11/2016,652.50,Other Expenditure - General,Government Services-Not Elsewhere Classified,GPC
Statement 18/10/2016 - 17/11/2016,E&T,Dvla Vehicle Tax,10/11/2016,167.50,Other Expenditure - General,Government Services-Not Elsewhere Classified,GPC
Statement 18/10/2016 - 17/11/2016,E&T,Dvla Vehicle Tax,10/11/2016,167.50,Other Expenditure - General,Government Services-Not Elsewhere Classified,GPC
Statement 18/10/2016 - 17/11/2016,E&T,Dvla Vehicle Tax,10/11/2016,167.50,Other Expenditure - General,Government Services-Not Elsewhere Classified,GPC
Statement 18/10/2016 - 17/11/2016,E&T,Dvla Vehicle Tax,10/11/2016,167.50,Other Expenditure - General,Government Services-Not Elsewhere Classified,GPC
Statement 18/10/2016 - 17/11/2016,E&T,Dvla Vehicle Tax,10/11/2016,167.50,Other Expenditure - General,Government Services-Not Elsewhere Classified,GPC
Statement 18/10/2016 - 17/11/2016,E&T,Dvla Vehicle Tax,10/11/2016,167.50,Other Expenditure - General,Government Services-Not Elsewhere Classified,GPC
Statement 18/10/2016 - 17/11/2016,E&T,Dvla Vehicle Tax,10/11/2016,167.50,Other Expenditure - General,Government Services-Not Elsewhere Classified,GPC
Statement 18/10/2016 - 17/11/2016,E&T,Dvla Vehicle Tax,10/11/2016,167.50,Other Expenditure - General,Government Services-Not Elsewhere Classified,GPC
Statement 18/10/2016 - 17/11/2016,E&T,Dvla Vehicle Tax,10/11/2016,232.50,Other Expenditure - General,Government Services-Not Elsewhere Classified,GPC
Statement 18/10/2016 - 17/11/2016,E&T,East Midlands Trai,05/11/2016,19.00,Public Transport -  Staff - General,Passenger Railways,GPC
Statement 18/10/2016 - 17/11/2016,E&T,East Midlands Trains,08/11/2016,272.60,Casual/Essential - General,Passenger Railways,GPC
Statement 18/10/2016 - 17/11/2016,E&T,East Midlands Trains,09/11/2016,39.60,Casual/Essential - General,Passenger Railways,GPC
Statement 18/10/2016 - 17/11/2016,E&T,Hemming Group Ltd,08/11/2016,149.00,Subscriptions - General,Catalog Merchants,GPC
Statement 18/10/2016 - 17/11/2016,E&T,In-Car Safety Centre,16/11/2016,220.00,R&M of Vehicles-Non Contract - General,"Automotive Parts, Accessories Stores",GPC
Statement 18/10/2016 - 17/11/2016,E&T,J Coates Garage Services,21/10/2016,17.57,R&M of Vehicles-Non Contract - General,Automotive Repair Shops (non-dealer),GPC
Statement 18/10/2016 - 17/11/2016,E&T,National Railcard,24/10/2016,30.00,Casual/Essential - General,Passenger Railways,GPC
Statement 18/10/2016 - 17/11/2016,E&T,Tesco Store 2849,28/10/2016,58.89,Other Equipment & Materials - General,"Grocery Stores, Supermarkets",GPC
Statement 18/10/2016 - 17/11/2016,E&T,The Fuel Card Company Uk,08/11/2016,196.29,Fuel Oil - General,"Fuel Dealers-Fuel Oil, Wood, Coal, Liquefied Petro",GPC
Statement 18/10/2016 - 17/11/2016,E&T,Trainline,07/11/2016,129.59,Casual/Essential - General,Passenger Railways,GPC
Statement 18/10/2016 - 17/11/2016,E&T,Trainline.Com Ltd,25/10/2016,144.10,Casual/Essential - General,Passenger Railways,GPC
Statement 18/10/2016 - 17/11/2016,E&T,Trainline.Com Ltd,28/10/2016,157.50,Other Expenditure - General,Passenger Railways,GPC
Statement 18/10/2016 - 17/11/2016,E&T,Trainline.Com Ltd,25/10/2016,107.00,Public Transport -  Staff - General,Passenger Railways,GPC
Statement 18/10/2016 - 17/11/2016,E&T,Trainline.Com Ltd,25/10/2016,319.00,Public Transport -  Staff - General,Passenger Railways,GPC
Statement 18/10/2016 - 17/11/2016,E&T,Uktoolcentre,03/11/2016,221.58,Materials - General,Hardware Stores,GPC
Statement 18/10/2016 - 17/11/2016,E&T,Vanliners Limited,03/11/2016,149.40,R&M of Vehicles-Non Contract - General,"Automotive Parts, Accessories Stores",GPC
Statement 18/10/2016 - 17/11/2016,E&T,Www.Sign-Holders.Co.Uk,31/10/2016,29.00,Stationery - General,Miscellaneous and Specialty Retail Stores,GPC
Statement 18/10/2016 - 17/11/2016,Leicestershire Highways,"Amazon Svcs Europe,sar",09/11/2016,6.52,Books - General,Book Stores,GPC
Statement 18/10/2016 - 17/11/2016,Leicestershire Highways,Amazon UK Marketplace,07/11/2016,9.98,Books - General,Book Stores,GPC
Statement 18/10/2016 - 17/11/2016,Leicestershire Highways,Amazon UK Marketplace,19/10/2016,27.53,Materials - General,Miscellaneous and Specialty Retail Stores,GPC
Statement 18/10/2016 - 17/11/2016,Leicestershire Highways,Amazon UK Marketplace,07/11/2016,134.73,Materials - General,Miscellaneous and Specialty Retail Stores,GPC
Statement 18/10/2016 - 17/11/2016,Leicestershire Highways,Amazon UK Marketplace,08/11/2016,10.50,Materials - General,Miscellaneous and Specialty Retail Stores,GPC
Statement 18/10/2016 - 17/11/2016,Leicestershire Highways,Amazon UK Marketplace,09/11/2016,6.54,Materials - General,Miscellaneous and Specialty Retail Stores,GPC
Statement 18/10/2016 - 17/11/2016,Leicestershire Highways,Amazon UK Retail Amazon.C,23/10/2016,21.44,Materials - General,Miscellaneous and Specialty Retail Stores,GPC
Statement 18/10/2016 - 17/11/2016,Leicestershire Highways,Amazon UK Retail Amazon.C,07/11/2016,28.05,Materials - General,Miscellaneous and Specialty Retail Stores,GPC
Statement 18/10/2016 - 17/11/2016,Leicestershire Highways,Ncs Vue Wamitab Test,21/10/2016,130.00,Training Expenses - General,Schools and Educational Services-Not Elsewhere Cla,GPC
Statement 18/10/2016 - 17/11/2016,Leicestershire Highways,Stationery Office Book,07/11/2016,65.00,Books - General,Book Stores,GPC
Statement 18/10/2016 - 17/11/2016,Leicestershire Highways,Stationery Office Book,09/11/2016,65.00,Books - General,Book Stores,GPC
Statement 18/10/2016 - 17/11/2016,Leicestershire Highways,Tvlicensing.Co.Uk,31/10/2016,145.50,Schools Agency staff - Teaching Staff,"Management, Consulting and Public Relations Servic",GPC
Statement 18/10/2016 - 17/11/2016,Leicestershire Highways,Tvlicensing.Co.Uk,31/10/2016,145.50,Schools Agency staff - Teaching Staff,"Management, Consulting and Public Relations Servic",GPC
Statement 18/10/2016 - 17/11/2016,Leicestershire Highways,Tvlicensing.Co.Uk,31/10/2016,145.50,Schools Agency staff - Teaching Staff,"Management, Consulting and Public Relations Servic",GPC
Statement 18/10/2016 - 17/11/2016,Leicestershire Highways,Tvlicensing.Co.Uk,31/10/2016,145.50,Schools Agency staff - Teaching Staff,"Management, Consulting and Public Relations Servic",GPC
Statement 18/10/2016 - 17/11/2016,Leicestershire Highways,Tvlicensing.Co.Uk,31/10/2016,145.50,Schools Agency staff - Teaching Staff,"Management, Consulting and Public Relations Servic",GPC
Statement 18/10/2016 - 17/11/2016,Leicestershire Highways,Whsmith.Co.Uk,27/10/2016,55.50,Materials - General,CombinationMail/Phones and Retail Merchants,GPC
Statement 18/10/2016 - 17/11/2016,Leicestershire Highways,Www.First4magnets.Com,16/11/2016,26.22,Materials - General,Miscellaneous and Specialty Retail Stores,GPC
Statement 18/10/2016 - 17/11/2016,Leicestershire Highways,Www.Safelincs.Co.Uk,03/11/2016,125.02,Other Equipment & Materials - General,Durable Goods Not Elsewhere Classified,GPC
Statement 18/10/2016 - 17/11/2016,Public Health,Amazon UK Marketplace,17/10/2016,1.19,IT Equipment - Purchase - Hardware,Miscellaneous and Specialty Retail Stores,GPC
Statement 18/10/2016 - 17/11/2016,Public Health,Amazon UK Marketplace,09/11/2016,15.95,Other Equipment & Materials - General,Miscellaneous and Specialty Retail Stores,GPC
Statement 18/10/2016 - 17/11/2016,Public Health,Amazon UK Marketplace,25/10/2016,9.90,Stationery - General,Book Stores,GPC
Statement 18/10/2016 - 17/11/2016,Public Health,Amazon UK Marketplace,28/10/2016,2.53,Stationery - General,Miscellaneous and Specialty Retail Stores,GPC
Statement 18/10/2016 - 17/11/2016,Public Health,Arriva Passenger S,04/11/2016,65.00,Public Transport -  Staff - General,Automotive Repair Shops (non-dealer),GPC
Statement 18/10/2016 - 17/11/2016,Public Health,Charnwood Borough Counci,21/10/2016,2.20,Casual/Essential - General,Automobile Parking Lots and Garages,GPC
Statement 18/10/2016 - 17/11/2016,Public Health,Facebk 39yk2aew32,31/10/2016,136.28,Advertising - General,Advertising Services,GPC
Statement 18/10/2016 - 17/11/2016,Public Health,Love2shop.Co.Uk,09/11/2016,154.50,Other Equipment & Materials - General,"Civic, Social, and Fraternal Associations",GPC
Statement 18/10/2016 - 17/11/2016,Public Health,Makro Self Service,31/10/2016,40.97,Provisions - General,Wholesale Clubs,GPC
Statement 18/10/2016 - 17/11/2016,Public Health,Ncp Limited,24/10/2016,7.50,Subsistence - General,Automobile Parking Lots and Garages,GPC
Statement 18/10/2016 - 17/11/2016,Public Health,Netball UK Ltd,02/11/2016,206.66,Other Equipment & Materials - General,Sporting Goods Stores,GPC
Statement 18/10/2016 - 17/11/2016,Public Health,Trainline,02/11/2016,164.73,Public Transport -  Staff - General,Passenger Railways,GPC
Statement 18/10/2016 - 17/11/2016,Public Health,Trainline.Com Ltd,01/11/2016,71.20,Public Transport -  Staff - General,Passenger Railways,GPC
Statement 18/10/2016 - 17/11/2016,Public Health,Travelodge Website,14/11/2016,86.67,Conference - General,Travelodge,GPC
Statement 18/10/2016 - 17/11/2016,Public Health,Upt - Nottinghamcity Cou,26/10/2016,5.50,Subsistence - General,Professional Services-Not Elsewhere Classified,GPC
Statement 18/10/2016 - 17/11/2016,Public Health,Upt-East Midlands Trn-Lb,02/11/2016,12.00,Public Transport -  Staff - General,Professional Services-Not Elsewhere Classified,GPC
Statement 18/10/2016 - 17/11/2016,Public Health,Vodafone Payg Mbb Topu,11/11/2016,25.00,Advertising - General,Telecommunication Service Including Local and Long,GPC
"**Amounts stated are net of VAT, except where VAT has not been recovered.",,,,,,,
